Workbook

Sheet Instructions
B2: MassDOT Safety Alternatives Analysis Guide Spreadsheet Tool
B3: Method 1 - Expected Crash Frequency via Empirical Bayes
B5: Overview | L5: Color Coding Rules
B7: This Excel file has been developed to assist analyis in conducting Safety Alternative Analysis. The SPFs were developed as a part of the project entitled "Calibration of Safety Performance Functions and Crash Modification Factors for Massachusetts’ Urban Intersections". | L7: The worksheets include three color options to help users identify locations where input data is required.
L10: Color Used | N10: Type of Information Required from User
B11: Macros must be enable to use this spreadsheet
L12: Sample | N12: Required input information as identified in the HSM. To be keyed in manually.
L13: Text
B14: The contents of this Excel file include the following:
L15: Sample | N15: Input data required from the user but restricted to options provided in the pull-down menu.
B16: Worksheet Name | E16: Contents | L16: Text
B18: Instructions | E18: The worksheet you are seeing now provides an overview of the Excel file, summary of the worksheets and the color coding rules. | L18: Sample | N18: Optional input information that can be used to supplement the analysis if this information is available.
L19: Text
B21: CMFs | E21: Provides the State-Preferred CMF List. In cases where a CMF for a treatment is not provided in this list, the analyst should work with MassDOT to identify an appropriate value for analysis.
B25: Input | E25: Contains input required to perform the analysis. For detailed explanation on input fields, please refer to the MassDOT Safety Analysis Guide. At end of sheet, the Run Report macro must be run to obtain results in the Output worksheet.
B29: Output | E29: Summarizes the results of the analysis.
B31: Year #, Design Year | E31: Internal SPF worksheets. | L31: Acknowledgement
L33: University of Massachusetts Lowell (SPF development).
E34: Please do NOT change any of the hidden worksheets. | L34: VHB, Inc.
B39: Last Updated: | D39: June 2022

Sheet CMFs
A1: Facility | B1: Countermeasure | C1: Crash Type | D1: All Severity CMF | E1: FI CMF | F1: Area Type | G1: Prior Condition | H1: Site Description | I1: Notes | J1: Resource 1 | K1: Resource 2 | L1: Resource 3
A2: Pedestrian and Bicycle | B2: Add Separated Bike Lane | C2: Vehicle-Bicycle | D2: 0.26 | E2: 0.26 | F2: Urban | G2: No Bicycle Infrastructure | H2: Urban Street | I2: Assumed KABC CMF applies to all because all Bike crashes are assumed to be KABC | J2: http://www.cmfclearinghouse.org/detail.cfm?facid=4097
B3: Add Separation between Road and Bike Lane | C3: Vehicle-Bicycle | D3: 0.63 | E3: 0.63 | F3: Urban | G3: Bike Lane with No Buffer | H3: Urban Street | J3: Cross-Sectional Comparison of Cycle Track and Bike Lane CMF
B4: Add Shared Use Path | C4: Vehicle-Bicycle | D4: 0.75 | E4: 0.75 | F4: Urban | G4: No Shared Use Path Present | H4: Principal Arterial Other, Minor arterial, major and minor collectors | J4: http://www.cmfclearinghouse.org/detail.cfm?facid=9250
B5: Add Sidewalk - Urban | C5: Vehicle-Pedestrian | D5: 0.12 | E5: 0.12 | F5: Urban/Suburban | G5: No Sidewalk Present | J5: https://www.pedbikeinfo.org/cms/downloads/WalkingAlongRoadways_Study_Guidelines.pdf
B6: Add Wide Paved Shoulder for Pedestrian Walkway | C6: Vehicle-Pedestrian | D6: 0.29 | E6: 0.29 | F6: Rural | G6: Narrow, Unwalkable Shoulder | H6: Rural Highway with Pedestrian Traffic | J6: https://safety.fhwa.dot.gov/speedmgt/ref_mats/fhwasa1304/resources/CRF%20Desktop%20Reference.pdf
B7: Advanced Pedestrian Crossing Signage | C7: Vehicle-Pedestrian | D7: 0.75 | E7: 0.75 | F7: Urban and Suburban | G7: No Advanced Warning Signage or Markings | H7: Mid-Block and Intersection Crossings | I7: Minimum of 340 to Maximum of 52892 Annual Average Daily Traffic (AADT) | J7: http://www.cmfclearinghouse.org/detail.cfm?facid=9017
B8: Bike box | C8: Vehicle-Bicycle | D8: 0.65 | E8: 0.65 | F8: Urban | G8: No Bike Box | H8: Signalized Intersection | J8: Herrstedt, L., M.A. Nielsen, L. Agústson, K.M.L. Krogsgaard, E. Jørgensen, and N.O. Jørgensen. Safety of Cyclists in Urban Areas: Danish Experiences. Copenhagen, Denmark: Danish Road Directorate, 1994 via Signalized Intersections Informational Guide
B9: Bike lane | C9: All | D9: =AVERAGE(0.7859,1.3065,0.901,0.558,0.435,0.51,0.643,0.734,0.694,0.649) -> 0.72164 | E9: 0.93 | F9: Urban | G9: No Bike Lane | H9: Urban Street | I9: FI CMF only applicable for Method 3. Weighted average from http://www.cmfclearinghouse.org/study_detail.cfm?stid=618. KABC CMF is a weighted average of all KABC CMFs in the study | J9: http://www.cmfclearinghouse.org/study_detail.cfm?stid=618
B10: Convert to High-Visibility Crosswalk | C10: Vehicle-Pedestrian | D10: 0.52 | E10: 0.52 | F10: Urban | G10: Standard Crosswalk Markings | H10: Three or Four Leg Intersection | I10: Signalized and unsignalized intersections. | J10: https://www.sciencedirect.com/science/article/abs/pii/S0001457512001613 | K10: http://www.cmfclearinghouse.org/detail.cfm?facid=4123
B11: Exclusive Pedestrian Phase | C11: Vehicle-Pedestrian | D11: 0.49 | E11: 0.49 | F11: Urban | G11: Signalized Intersection without Exclusive Phase | H11: Signalized Intersection | I11: 3-leg,4-leg,More than 4 legs intersection | J11: http://www.cmfclearinghouse.org/detail.cfm?facid=4117
B12: Implement Leading Pedestrian Interval | C12: All | D12: 0.9 | E12: 0.83 | F12: Urban and Suburban | G12: No Leading Pedestrian Interval | H12: Urban Signalized Intersection | I12: FI CMF only applicable for Method 3 | J12: http://www.cmfclearinghouse.org/detail.cfm?facid=9902 | K12: http://www.cmfclearinghouse.org/detail.cfm?facid=9901
B13: Increase Pedestrian Crossing Time | C13: Vehicle-Pedestrian | D13: 0.49 | E13: 0.49 | F13: Urban | G13: Standard Crossing Time | H13: Signalized Intersection with Pedestrian Crossing Phase | I13: 3-leg,4-leg,More than 4 legs | J13: http://www.cmfclearinghouse.org/detail.cfm?facid=4115
B14: Install Crosswalk Lighting | C14: Vehicle-Pedestrian | D14: 0.41 | E14: 0.41 | F14: All | G14: No Lighting Present | H14: Intersection | J14: http://www.cmfclearinghouse.org/detail.cfm?facid=440 | K14: http://www.cmfclearinghouse.org/detail.cfm?facid=441
B15: Install Grade-Separated Pedestrian Crossing | C15: Vehicle-Pedestrian | D15: 0.14 | E15: 0.14 | F15: Urban | G15: At-Grade Pedestrian Crossing | H15: Pedestrian Crossing | J15: https://lctr.eng.fiu.edu/Documents/CRFFinalReport.pdf
B16: Install Median Island for Pedestrian Crossing at Controlled Crossing | C16: Vehicle-Pedestrian | D16: 0.711 | E16: 0.734 | F16: Urban and Suburban | G16: Two-Way Left-Turn Lane | H16: Signalized Pedestrian Crossing | I16: FI CMF only applicable for Method 3. Minimum of 10500 to Maximum of 57000 Annual Average Daily Traffic (AADT) | J16: http://www.cmfclearinghouse.org/detail.cfm?facid=5075 | K16: http://www.cmfclearinghouse.org/detail.cfm?facid=5076
B17: Install Median Island for Pedestrian Crossing at Uncontrolled Crossing | C17: Vehicle-Pedestrian | D17: 0.685 | E17: 0.685 | F17: Urban and Suburban | G17: No Raised Median Present | H17: Uncontrolled Pedestrian Crossing | J17: http://www.cmfclearinghouse.org/detail.cfm?facid=8799
B18: Install Pedestrian Countdown Timer | C18: All | D18: 0.912 | E18: 0.952 | G18: No Pedestrian Countdown Timer | H18: 4- legged signalized Intersection with Pedestrian Crossing | I18: FI CMF only applicable for Method 3. | J18: http://www.cmfclearinghouse.org/detail.cfm?facid=8791 | K18: http://www.cmfclearinghouse.org/detail.cfm?facid=8790
B19: Install Pedestrian Hybrid Beacon (or HAWK Crossing) | C19: Vehicle-Pedestrian | D19: 0.543 | E19: 0.55 | F19: Urban and Suburban | G19: No PHB/HAWK | H19: Uncontrolled Pedestrian Crossing | J19: http://www.cmfclearinghouse.org/detail.cfm?facid=10608 | K19: http://www.cmfclearinghouse.org/detail.cfm?facid=10607
B20: Install Raised Pedestrian Crossing | C20: All | D20: 0.7 | E20: 0.64 | G20: Flat Pedestrian Crossing | H20: Pedestrian Crossing | I20: FI CMF only applicable for Method 3. | J20: Bahar, G., Parkhill, M., Hauer, E., Council, F., Persaud, B., Zegeer, C., Elvik, R., Smiley, A., and Scott, B. “Prepare Parts I and II of a Highway Safety Manual: Knowledge Base for Part II”. Unpublished material from NCHRP Project 17-27, (May 2007). | K20: https://safety.fhwa.dot.gov/ped_bike/tools_solve/fhwasa18041/fhwasa18041.pdf
B21: Install Rectangular Rapid Flashing Beacon (RRFB) | C21: Vehicle-Pedestrian | D21: 0.526 | E21: 0.526 | F21: Urban and Suburban | G21: No RRFB Present | H21: Uncontrolled Pedestrian Crossing | J21: http://www.cmfclearinghouse.org/detail.cfm?facid=9024
A23: Interchanges | B23: Add Interchange Lighting | C23: All | D23: 0.5 | E23: 0.74 | F23: All | G23: No Lighting Present | H23: Interchange | I23: Proportionally adjusted from the target crash type (nighttime) to all crashes | J23: http://www.cmfclearinghouse.org/detail.cfm?facid=1283 | K23: http://www.cmfclearinghouse.org/detail.cfm?facid=1284
B24: Add Lane to Interchange Ramp | C24: All | D24: 2.15 | E24: 1.62 | F24: Urban and Suburban | G24: One Lane on Ramp | H24: Interchange Entrance or Exit Ramp | I24: Proportionally adjusted from FI and PDO to All | J24: Highway Safety Manual Equation 19-20 and Table 19-5
B25: Convert Diamond Interchange to a Diverging Diamond Interchange | C25: All | D25: 0.67 | E25: 0.59 | F25: Suburban | G25: Traditional Diamond Interchange | H25: Diamond Interchange | I25: Speed limit 40-45 mph | J25: http://www.cmfclearinghouse.org/detail.cfm?facid=8278 | K25: http://www.cmfclearinghouse.org/detail.cfm?facid=8258
B26: Extend Acceleration Lane from X Miles to Y Miles | C26: All | D26: exp(-2.59*[Y-X]) | E26: exp(-4.55*[Y-X]) | G26: Acceleration Lane Length of X Miles | H26: Freeway Interchange Area | I26: Principal Arterial Interstate | J26: http://www.cmfclearinghouse.org/detail.cfm?facid=5216 | K26: http://www.cmfclearinghouse.org/detail.cfm?facid=5215
B27: Extend Deceleration Lane to 700 Feet | C27: All | D27: 0.41 | E27: 0.41 | G27: Expressway Deceleration Lane Less than 700 feet | H27: Expressway Approaching Exit | J27: http://www.cmfclearinghouse.org/study_detail.cfm?stid=303
B28: Increase Spacing Between Entrance Ramp and Exit Ramp from X Feet to Y Feet | C28: All | D28: exp(450/Y-450/X) | E28: exp(171/Y-171/X) | G28: X Feet Between Entrance and Exit Ramps | H28: Freeway Interchange Area | J28: http://www.cmfclearinghouse.org/detail.cfm?facid=7445 | K28: http://www.cmfclearinghouse.org/detail.cfm?facid=7444
B29: Provide Auxiliary Lane in Weaving Area | C29: All | D29: 0.79 | E29: 0.77 | G29: No Auxiliary Lane Between Ramps | H29: Freeway Interchange Area | J29: http://www.cmfclearinghouse.org/detail.cfm?facid=7441 | K29: http://www.cmfclearinghouse.org/detail.cfm?facid=7440
B30: Widen Ramp Lane Width from X Feet to Y Feet | C30: All | D30: (3149*exp[-0.0458*(Y-X)]+10168)/13317 | E30: exp[-0.0458*(Y-X)] | F30: All | G30: Lane Width of X Feet | H30: Freeway Ramp | I30: Proportionally adjusted from FI and PDO to All | J30: Highway Safety Manual Equation 19-34, Table 19-25 | K30: http://onlinepubs.trb.org/onlinepubs/nchrp/docs/nchrp17-45_fr.pdf
B31: Widen Ramp Left Shoulder Width from X Feet to Y Feet | C31: All | D31: (3149*exp[-0.0539*(Y-X)]+10168*exp[-0.0259*(Y-X)])/13317 | E31: exp[-0.0539*(Y-X)] | F31: All | G31: Right Shoulder Width of X Feet | H31: Freeway Ramp | I31: Proportionally adjusted from FI and PDO to All | J31: Highway Safety Manual Equation 19-35, Table 19-26 | K31: http://onlinepubs.trb.org/onlinepubs/nchrp/docs/nchrp17-45_fr.pdf
B32: Widen Ramp Right Shoulder Width from X Feet to Y Feet | C32: All | D32: (3149*exp[-0.0539*(Y-X)]+10168*exp[-0.0259*(Y-X)])/13317 | E32: exp[-0.0539*(Y-X)] | F32: All | G32: Right Shoulder Width of X Feet | H32: Freeway Ramp | I32: Proportionally adjusted from FI and PDO to All | J32: Highway Safety Manual Equation 19-35, Table 19-26 | K32: http://onlinepubs.trb.org/onlinepubs/nchrp/docs/nchrp17-45_fr.pdf
A33: Intersections | B33: Add 3-Inch Yellow Retroreflective Sheeting to Signal Backplates | C33: All | D33: 0.85 | E33: 0.85 | F33: Urban | G33: No Retroreflective Sheeting on Signals | H33: Signalized Intersection | J33: http://www.cmfclearinghouse.org/detail.cfm?facid=1410
B34: Add Flashing Lights at Railroad Grade Crossing | C34: All | D34: 0.21 | E34: 0.21 | G34: Static Signs | H34: At-Grade Railroad Crossing | J34: http://www.cmfclearinghouse.org/detail.cfm?facid=485
B35: Add Intersection Lighting | C35: All | D35: 0.98 | E35: 0.97521825 | F35: All | G35: No Lighting | H35: Intersection | I35: Proportionally adjusted from the target crash type (nighttime) to all crashes. 3-leg,4-leg intersection | J35: http://www.cmfclearinghouse.org/detail.cfm?facid=4462
B36: Add Low-Volume Driveway at Approach Corner of Signalized Intersection | C36: All | D36: 0.82 | E36: 0.79 | G36: No Driveway within 50 Feet of Approach Corner | H36: Four-Leg Signalized Intersection | J36: http://www.cmfclearinghouse.org/detail.cfm?facid=9738 | K36: http://www.cmfclearinghouse.org/detail.cfm?facid=9734
B37: Add Low-Volume Driveway at Receiving Corner of Signalized Intersection | C37: All | D37: 1.33 | E37: 1.29 | G37: No Driveway within 50 Feet of Receiving Corner | H37: Four-Leg Signalized Intersection | J37: http://www.cmfclearinghouse.org/detail.cfm?facid=9740 | K37: http://www.cmfclearinghouse.org/detail.cfm?facid=9736
B38: Change Intersection Skew Angle from X to Y at a Rural Four-Leg Stop-Control Intersection of Two Lane Highways | C38: All | D38: e^(0.0054*[Y-X]) | E38: e^(0.0054*[Y-X]) | F38: Rural | G38: Intersection Skew Angle of X Degrees | H38: Four-Leg Minor Stop-Controlled Intersection of Rural Two-Lane Highways | J38: Highway Safety Manual Equation 10-23
B39: Change Intersection Skew Angle from X to Y at a Rural Four-Leg Stop-Control Intersection with a Multilane Highway | C39: All | D39: ((0.053*Y)/(1.43+0.053*Y)+1)/((0.053*X)/(1.43+0.053*X)+1) | E39: ((0.048*Y)/(0.72+0.048*Y)+1)/((0.048*X)/(0.72+0.048*X)+1) | F39: Rural | G39: Intersection Skew Angle of X Degrees | H39: Four-Leg Minor Stop-Controlled Intersection with a Multilane Highway | J39: Highway Safety Manual Equation 11-21 | K39: Highway Safety Manual Equation 11-20
B40: Change Intersection Skew Angle from X to Y at a Rural Three-Leg Stop-Control Intersection of Two Lane Highways | C40: All | D40: e^(0.004*[Y-X]) | E40: e^(0.004*[Y-X]) | F40: Rural | G40: Intersection Skew Angle of X Degrees | H40: Three-Leg Minor Stop-Controlled Intersection of Rural Two-Lane Highways | J40: Highway Safety Manual Equation 10-22
B41: Change Intersection Skew Angle from X to Y at a Rural Three-Leg Stop-Control Intersection with a Multilane Highway | C41: All | D41: ((0.016*Y)/(0.98+0.016*Y)+1)/((0.016*X)/(0.98+0.016*X)+1) | E41: ((0.017*Y)/(0.52+0.017*Y)+1)/((0.017*X)/(0.52+0.017*X)+1) | F41: Rural | G41: Intersection Skew Angle of X Degrees | H41: Three-Leg Minor Stop-Controlled Intersection with a Multilane Highway | J41: Highway Safety Manual Equation 11-19 | K41: Highway Safety Manual Equation 11-18
B42: Change Left Turn Phasing from Permissive to Protected/Permissive on One Approach | C42: All | D42: 1.031 | E42: 0.962 | F42: Urban | G42: Permissive Left-Turn Phasing | H42: Four Leg Signalized Intersection Approach | I42: I use permissive/protected, but it can also be protective/permissive (no difference between lead or lag). This applies to all left-turn phasing CMFs | J42: http://www.cmfclearinghouse.org/detail.cfm?facid=4269 | K42: http://www.cmfclearinghouse.org/detail.cfm?facid=4268
B43: Change Left Turn Phasing from Permissive to Flashing Yellow Arrow on One Approach | C43: All | D43: 0.753 | E43: 0.753 | F43: Urban | G43: Permissive Left-Turn Phasing | H43: Four Leg Signalized Intersection Approach | J43: http://www.cmfclearinghouse.org/detail.cfm?facid=4174
B44: Change Left Turn Phasing from Permissive to Protected on One Approach | C44: All | D44: 0.94 | E44: 0.94 | F44: Urban and Suburban | G44: Permissive Left-Turn Phasing | H44: Signalized Intersection Approach | J44: Highway Safety Manual Table 12-25
B45: Change Left Turn Phasing from Permissive/Protected to Flashing Yellow Arrow on All Approaches | C45: All | D45: 0.922 | E45: 0.86 | F45: Urban | G45: Protective/Permissive Left-Turn Phasing | H45: Signalized Intersection | J45: http://www.cmfclearinghouse.org/detail.cfm?facid=9668 | K45: http://www.cmfclearinghouse.org/detail.cfm?facid=4176
B46: Change Left Turn Phasing from Permissive/Protected to Protected on Major Approach | C46: All | D46: 0.63964 | E46: 0.52282 | F46: Urban | G46: Protective/Permissive Left-Turn Phasing | H46: Signalized Intersection | I46: Proportionally adjusted from the target crash type (angle and left-turn) to all crashes | J46: http://www.cmfclearinghouse.org/detail.cfm?facid=339
B47: Change Left Turn Phasing from Permissive/Protected to Protected on Minor Approach | C47: All | D47: 0.65 | E47: 0.53728 | F47: Urban | G47: Protective/Permissive Left-Turn Phasing | H47: Signalized Intersection | I47: Proportionally adjusted from the target crash type (angle and left-turn) to all crashes | J47: http://www.cmfclearinghouse.org/detail.cfm?facid=337
B48: Change Left Turn Phasing from Protected to Flashing Yellow Arrow on All Approaches | C48: All | D48: 1.338 | E48: 1.338 | F48: Urban | G48: Protected Left-Turn Phasing | H48: Four-Leg Signalized Intersection | J48: http://www.cmfclearinghouse.org/detail.cfm?facid=4172
B49: Change the Number of Approaches with Left Turn Lanes from X to Y at a Rural Four-Leg Signalized Intersection of Two Lane Highways | C49: All | D49: 0.82^[Y-X] | E49: 0.82^[Y-X] | F49: Rural | G49: Left Turn Lanes on X Approaches | H49: Four-Leg Signalized Intersection of Two-Lane Rural Roads | J49: Highway Safety Manual Table 10-13
B50: Change the Number of Approaches with Left Turn Lanes from X to Y at an Urban or Suburban Four-Leg Signalized Intersection | C50: All | D50: 0.90^[Y-X] | E50: 0.90^[Y-X] | F50: Urban and Suburban | G50: Left Turn Lanes on X Approaches | H50: Four-Leg Signalized Intersection with an Arterial | J50: Highway Safety Manual Table 12-24
B51: Change the Number of Approaches with Left Turn Lanes from X to Y at an Urban or Suburban Three-Leg Signalized Intersection | C51: All | D51: 0.93^[Y-X] | E51: 0.93^[Y-X] | F51: Urban and Suburban | G51: Left Turn Lanes on X Approaches | H51: Three-Leg Signalized Intersection with an Arterial | J51: Highway Safety Manual Table 12-24
B52: Change the Number of Approaches with Right Turn Lanes from X to Y at a Rural Four-Leg Signalized Intersection of Two Lane Highways | C52: All | D52: 0.96^[Y-X] | E52: 0.96^[Y-X] | F52: Rural | G52: Right Turn Lanes on X Approaches | H52: Four-Leg Signalized Intersection of Two-Lane Rural Roads | J52: Highway Safety Manual Table 10-14
B53: Change the Number of Approaches with Right Turn Lanes from X to Y at an Urban or Suburban Four-Leg Signalized Intersection | C53: All | D53: 0.96^[Y-X] | E53: 0.96^[Y-X] | F53: Urban and Suburban | G53: Right Turn Lanes on X Approaches | H53: Four-Leg Signalized Intersection with an Arterial | J53: Highway Safety Manual Table 12-24
B54: Change the Number of Approaches with Right Turn Lanes from X to Y at an Urban or Suburban Three-Leg Signalized Intersection | C54: All | D54: 0.96^[Y-X] | E54: 0.96^[Y-X] | F54: Urban and Suburban | G54: Right Turn Lanes on X Approaches | H54: Three-Leg Signalized Intersection with an Arterial | J54: Highway Safety Manual Table 12-24
B55: Change the Number of Approaches with Right Turn on Red Prohibitied from X to Y | C55: All | D55: 0.98^[Y-X] | E55: 0.98^[Y-X] | G55: Right Turn on Red Permitted | H55: Signalized Intersection | J55: http://www.cmfclearinghouse.org/detail.cfm?facid=5194
B56: Change the Number of Major Approaches with Left Turn Lanes from X to Y at a Rural Four-Leg Stop-Controlled Intersection of Two Lane Highways | C56: All | D56: 0.72^[Y-X] | E56: 0.72^[Y-X] | F56: Rural | G56: Left Turn Lanes on X Major Approaches | H56: Four-Leg Minor Stop-Controlled Intersection of Two-Lane Rural Roads | J56: Highway Safety Manual Table 10-13
B57: Change the Number of Major Approaches with Left Turn Lanes from X to Y at a Rural Four-Leg Stop-Controlled Intersection with a Multilane Highway | C57: All | D57: 0.72^[Y-X] | E57: 0.65^[Y-X] | F57: Rural | G57: Left Turn Lanes on X Major Approaches | H57: Four-Leg Minor Stop-Controlled Intersection with Multilane Highway | J57: Highway Safety Manual Table 11-22
B58: Change the Number of Major Approaches with Left Turn Lanes from X to Y at an Urban or Suburban Four-Leg Stop-Controlled Intersection with an Arterial | C58: All | D58: 0.73^[Y-X] | E58: 0.73^[Y-X] | F58: Urban and Suburban | G58: Left Turn Lanes on X Major Approaches | H58: Four-Leg Minor Stop-Controlled Intersection with an Arterial | J58: Highway Safety Manual Table 11-22
B59: Change the Number of Major Approaches with Right Turn Lanes from X to Y at a Rural Four-Leg Stop-Controlled Intersection of Two Lane Highways | C59: All | D59: 0.86^[Y-X] | E59: 0.86^[Y-X] | F59: Rural | G59: Right Turn Lanes on X Major Approaches | H59: Four-Leg Minor Stop-Controlled Intersection of Two-Lane Rural Roads | J59: Highway Safety Manual Table 10-14
B60: Change the Number of Major Approaches with Right Turn Lanes from X to Y at a Rural Four-Leg Stop-Controlled Intersection with a Multilane Highway | C60: All | D60: 0.86^[Y-X] | E60: 0.77^[Y-X] | F60: Rural | G60: Right Turn Lanes on X Major Approaches | H60: Four-Leg Minor Stop-Controlled Intersection with Multilane Highway | J60: Highway Safety Manual Table 11-23
B61: Change the Number of Major Approaches with Right Turn Lanes from X to Y at an Urban or Suburban Four-Leg Stop-Controlled Intersection with an Arterial | C61: All | D61: 0.86^[Y-X] | E61: 0.86^[Y-X] | F61: Urban and Suburban | G61: Right Turn Lanes on X Major Approaches | H61: Four-Leg Minor Stop-Controlled Intersection with an Arterial | J61: Highway Safety Manual Table 11-22
B62: Convert a Signalized T-Intersection to a Continuous Green-T Intersection | C62: All | D62: 0.958 | E62: 0.846 | G62: Signalized 3-Leg Intersection | H62: 3-Leg Intersection | J62: http://www.cmfclearinghouse.org/detail.cfm?facid=8656 | K62: http://www.cmfclearinghouse.org/detail.cfm?facid=8655
B63: Convert All-Way Stop-Controlled Intersection to a Modern Roundabout | C63: All | D63: 1.114 | E63: 0.554 | F63: All | G63: All-Way Stop-Controlled Intersection | H63: 3-Leg or 4-Leg Intersection | I63: Minimum of 4100 (total entering) to Maximum of 48100 (total entering) Annual Average Daily Traffic (AADT) | J63: http://www.cmfclearinghouse.org/detail.cfm?facid=4933 | K63: http://www.cmfclearinghouse.org/detail.cfm?facid=4932
B64: Convert At-Grade Intersection to a Diverging Diamond Interchange | C64: All | D64: 0.42 | E64: 0.42 | G64: At-Grade Four-Leg Signalized Intersection | H64: At-Grade Four Leg Intersection | J64: http://www.cmfclearinghouse.org/detail.cfm?facid=9658
B65: Convert At-Grade Intersection to Interchange | C65: All | D65: 0.58 | E65: 0.43 | G65: At-Grade Four-Leg Intersection | H65: At-Grade Four-Leg Intersection | J65: http://www.cmfclearinghouse.org/detail.cfm?facid=459 | K65: http://www.cmfclearinghouse.org/detail.cfm?facid=460
B66: Convert Four-Leg Intersection to Two Three-Leg Intersections | C66: All | D66: 1.03 | E66: 0.75 | F66: Urban | G66: Four-Leg Intersection | H66: Intersection | I66: Proportionally adjusted from FI and PDO to All. No fatal or all CMF provided in study, presume 1 or apply ABC CMF? | J66: http://www.cmfclearinghouse.org/detail.cfm?facid=201 | K66: http://www.cmfclearinghouse.org/detail.cfm?facid=203
B67: Convert from Minor Stop-Control to All-Way Stop-Control | C67: All | D67: 0.46 | E67: 0.3 | F67: Urban | G67: Minor Stop-Controlled Intersection | H67: Stop-controlled Intersection | I67: All severity CMF is proportionally adjusted from the Angle and Rear End CMF | J67: http://www.cmfclearinghouse.org/detail.cfm?facid=310 | K67: http://www.cmfclearinghouse.org/detail.cfm?facid=311 | L67: http://www.cmfclearinghouse.org/detail.cfm?facid=314
B68: Convert from Pedestal-Mounted Traffic Signal to Mast Arm-Mounted Traffic Signal | C68: All | D68: 0.71 | E68: 0.71 | G68: Signalized Intersection with Post-Mounted Traffic Signals | H68: Signalized Intersection | J68: http://www.cmfclearinghouse.org/detail.cfm?facid=1422
B69: Convert from Pedestal-Mounted Traffic Signal to Span Wire-Mounted Traffic Signal | C69: All | D69: 0.71 | E69: 0.71 | G69: Signalized Intersection with Post-Mounted Traffic Signals | H69: Signalized Intersection | J69: http://www.cmfclearinghouse.org/detail.cfm?facid=1422
B70: Convert from Span Wire-Mounted Traffic Signal to Mast Arm-Mounted Traffic Signal | C70: All | D70: 0.97 | E70: 0.98 | F70: All | G70: Signalized Intersection with Span Wire-Mounted Traffic Signals | H70: Signalized Intersection | J70: http://www.cmfclearinghouse.org/detail.cfm?facid=9405 | K70: http://www.cmfclearinghouse.org/detail.cfm?facid=9404
B71: Convert from two 3-leg intersections Offset by L Miles to a 4-leg intersection with Major Road AADT | C71: All | D71: ((0.05-0.005*ln(AADT))/L+0.322)/(2*(0.05-0.005*ln(AADT))/L+0.322) | E71: ((0.05-0.005*ln(AADT))/L+0.322)/(2*(0.05-0.005*ln(AADT))/L+0.322) | F71: Rural | G71: Two Three-Leg Intersections Offset by X Miles | H71: Rural Intersections | J71: Highway Safety Manual Equation 10-17
B72: Convert from Two-Way Stop-Control to Signalized Intersection | C72: Multi-Vehicle | D72: 0.57 | E72: 0.46 | F72: Urban/Suburban | G72: Minor Stop-Controlled Intersection | H72: Three-Leg or Four-Leg Intersection | J72: MassDOT CMF Memo
B73: Convert Minor Stop-Control Intersection to Modern Roundabout | C73: Multi-Vehicle | D73: 0.48 | E73: 0.16 | F73: Urban/Suburban | G73: Minor Stop-Controlled Intersection | H73: Four-Leg Intersection | J73: MassDOT CMF Memo
B74: Convert Signalized Intersection to Modern Roundabout | C74: All | D74: 0.792 | E74: 0.342 | F74: Urban and Suburban | G74: Signalized Intersection | H74: Three-leg, Four-leg Signalized Intersection | J74: http://www.cmfclearinghouse.org/detail.cfm?facid=4253 | K74: http://www.cmfclearinghouse.org/detail.cfm?facid=4252
B75: Convert Two-Way Stop-Control Intersection to Right-In-Right-Out Operations | C75: All | D75: 0.55 | E75: 0.55 | F75: Urban | G75: Three-Leg Stop-Controlled Intersection with Left-Turns Allowed | H75: Three-Leg Intersection | J75: http://www.cmfclearinghouse.org/detail.cfm?facid=9821
B76: Extend Left Turn Lane | C76: All | D76: 0.72 | E76: 0.76 | F76: Urban | G76: Turn Lane with Insufficient Length | H76: Signalized Intersection | I76: Proportionally adjusted from the target crash types (rear end and sideswipe) to all crashes | J76: https://journals.sagepub.com/doi/pdf/10.1177/0361198120920270
B77: Extend Right Turn Lane | C77: All | D77: 0.72 | E77: 0.76 | F77: Urban | G77: Turn Lane with Insufficient Length | H77: Signalized Intersection | I77: Proportionally adjusted from the target crash types (rear end and sideswipe) to all crashes | J77: https://journals.sagepub.com/doi/pdf/10.1177/0361198120920270
B78: Flatten Vertical Curve on Intersection Approach to Increase Stopping Sight Distance | C78: All | D78: 0.7 | E78: 0.62 | F78: Rural | G78: Intersection Downstream from a Crest Vertical Curve with Limited Sight Distance | H78: Rural Segment with Downstream Intersection | I78: Speed Limit 25-65 mph; applies to crest vertical curves. Taken as the inverse of the CMFs. | J78: http://www.cmfclearinghouse.org/detail.cfm?facid=6871 | K78: http://www.cmfclearinghouse.org/detail.cfm?facid=6870
B79: General Signalized Intersection Improvements at an HSIP Cluster | C79: Multi-Vehicle | D79: 0.81 | E79: 0.67 | F79: Urban/Suburban | G79: No Hidden Intersection, Driveway or Curve | H79: Signalized Intersection | I79: Improvements include any combination of repaving, new pavement markings, upgrading signal timing and equipment | J79: MassDOT CMF Memo
B80: High Friction Surface Treatment on Intersection Approach | C80: All | D80: 0.799 | E80: 0.799 | F80: All | G80: Intersection with Low Friction Numbers | H80: Signalized or Stop-Controlled Intersection | J80: http://www.cmfclearinghouse.org/detail.cfm?facid=2259
B81: Increase All Red Clearance Interval | C81: All | D81: 0.798 | E81: 0.863 | F81: Urban | G81: All-Red Clearance Interval Shorter than 1 Second | H81: Signalized Intersection | I81: Three-leg, four-leg signalized | J81: http://www.cmfclearinghouse.org/detail.cfm?facid=4212 | K81: http://www.cmfclearinghouse.org/detail.cfm?facid=4211
B82: Increase Intersection Triangle Sight Distance from X Feet of Available Sight Distance to Y Feet | C82: All | D82: 0.64*exp(203.368*[1/Y-1/X])+0.36 | E82: 0.71*exp(195.791*[1/Y-1/X])+0.29 | I82: Proportionally adjusted from the target crash type (angle and left-turn) to all crashes | J82: Eccles, Kimberly, Scott Himes, Kara Peach, Frank Gross, Richard J. Porter, Timothy J. Gates, and Christopher M. Monsere. Guidance for Evaluating the Safety Impacts of Intersection Sight Distance, National Cooperative Highway Research Program, Report 875, Washington, D.C., 2018. Available at https://www.nap.edu/download/25081
B83: Increase Yellow Change Interval by One Second | C83: All | D83: 1.14 | E83: 1.07 | F83: Urban | G83: Existing Yellow Change Interval | H83: Signalized Intersection | I83: Three-leg, four-leg signalized | J83: http://www.cmfclearinghouse.org/detail.cfm?facid=4208 | K83: http://www.cmfclearinghouse.org/detail.cfm?facid=4207
B84: Innovative Intersection - Median U-Turn | C84: All | D84: 0.633 | E84: 0.7732 | F84: Urban and Suburban | G84: Signalized Intersection | H84: Four-Leg Signalized Intersection | J84: http://www.cmfclearinghouse.org/detail.cfm?facid=10851 | K84: http://www.cmfclearinghouse.org/detail.cfm?facid=10852
B85: Innovative Intersection - RCUT | C85: All | D85: 0.8 | E85: 0.8 | F85: All | G85: Both signalized and stop-controlled intersections | H85: Four-Leg Intersection | I85: Speed Limit >= 55 mph | J85: http://www.cmfclearinghouse.org/detail.cfm?facid=10382
B86: Innovative Intersection - Displaced Left Turn | C86: All | D86: 0.88 | E86: 0.88 | G86: Signalized Intersection | H86: Four-Leg Intersection | J86: https://www.researchgate.net/publication/327915966_Development_of_Crash_Modification_Factors_for_Continuous_Flow_Intersections
B87: Innovative Intersection - Signalized RCUT | C87: All | D87: 0.7632 | E87: 0.05669 | F87: Urban and Suburban | G87: Signalized Intersection | H87: Four-Leg Signalized Intersection | J87: http://www.cmfclearinghouse.org/detail.cfm?facid=10880 | K87: http://www.cmfclearinghouse.org/detail.cfm?facid=10879
B88: Install Adaptive Traffic Signal Control | C88: All | D88: 0.948 | E88: 0.958 | G88: Traditional Traffic Signal | H88: Signalized Intersection | J88: http://www.cmfclearinghouse.org/detail.cfm?facid=10561 | K88: http://www.cmfclearinghouse.org/detail.cfm?facid=10559
B89: Install Advance Warning Dilemma Zone Protection System at Signalized Intersection | C89: All | D89: 0.918 | E89: 0.89 | G89: No Dilemma Zone Warning System | H89: High-Speed Signalized Intersection | J89: http://www.cmfclearinghouse.org/detail.cfm?facid=4857 | K89: http://www.cmfclearinghouse.org/detail.cfm?facid=4855
B90: Install Flashing Lights and Sound Signals at Railroad Grade Crossing | C90: All | D90: 0.5 | E90: 0.5 | G90: Static Signs | H90: At-Grade Railroad Crossing | J90: http://www.cmfclearinghouse.org/detail.cfm?facid=482
B91: Install Gates and Signs at Railroad Grade Crossing | C91: All | D91: 0.07 | E91: 0.07 | G91: Static Signs | H91: At-Grade Railroad Crossing | J91: http://www.cmfclearinghouse.org/detail.cfm?facid=493
B92: Install Red Signal Ahead Sign | C92: All | D92: 0.86 | E92: 0.8313 | F92: Urban | G92: Signalized Intersection without "Red Signal Ahead" Warning Sign | H92: Signalized Intersection | I92: Proportionally adjusted from FI and PDO to All. Proportionally adjusted from the target crash type (angle) to all crashes | J92: http://www.cmfclearinghouse.org/detail.cfm?facid=1684
B93: Install Transverse Rumble Strips on Stop Controlled Approaches | C93: All | D93: 0.87 | E93: 0.71 | F93: Rural | G93: No Transverse Rumble Strips | H93: Four-leg Stop-Controlled Intersection | J93: http://www.cmfclearinghouse.org/detail.cfm?facid=9045 | K93: http://www.cmfclearinghouse.org/detail.cfm?facid=9046
B94: Optimimize Total Change Period to Greater than ITE Recommended | C94: All | D94: 0.922 | E94: 0.937 | F94: Urban | G94: Total Change Interval Less Than ITE Recommended | H94: Signalized Intersection | J94: http://www.cmfclearinghouse.org/detail.cfm?facid=4219 | K94: http://www.cmfclearinghouse.org/detail.cfm?facid=4220
B95: Prohibit Left Turns and U-Turns with "No Left Turn" and "No U-Turn" Signs | C95: All | D95: 0.28 | E95: 0.28 | F95: Urban and Suburban | G95: Left Turns and U-Turns Allowed | H95: 3-Leg and 4-Leg Minor Stop-Controlled Intersections | J95: http://www.cmfclearinghouse.org/detail.cfm?facid=393
B96: Prohibit Left Turns with "No Left Turn" Signs | C96: All | D96: 0.32 | E96: 0.32 | F96: Urban and Suburban | G96: Left Turns Allowed | H96: 3-Leg and 4-Leg Minor Stop-Controlled Intersections | J96: http://www.cmfclearinghouse.org/detail.cfm?facid=391
B97: Provide a Left Turn Lane on a Major Approach at a Rural Three-Leg Stop-Controlled Intersection of Two Lane Highways | C97: All | D97: 0.56 | E97: 0.56 | F97: Rural | G97: No Left Turn Lane on Major Approach | H97: Three-Leg Minor Stop-Controlled Intersection of Two-Lane Rural Roads | J97: Highway Safety Manual Table 10-13
B98: Provide a Left Turn Lane on a Major Approach at a Rural Three-Leg Stop-Controlled Intersection with a Multilane Highway | C98: All | D98: 0.56 | E98: 0.45 | F98: Rural | G98: No Left Turn Lane on Major Approach | H98: Three-Leg Minor Stop-Controlled Intersection with Multilane Highway | J98: Highway Safety Manual Table 11-22
B99: Provide a Left Turn Lane on a Major Approach at an Urban or Suburban Three-Leg Stop-Controlled Intersection with an Arterial | C99: All | D99: 0.67 | E99: 0.67 | F99: Urban and Suburban | G99: No Left Turn Lane on Major Approach | H99: Three-Leg Minor Stop-Controlled Intersection with an Arterial | J99: Highway Safety Manual Table 11-22
B100: Provide a Right Turn Lane on a Major Approach at a Rural Three-Leg Stop-Controlled Intersection of Two Lane Highways | C100: All | D100: 0.86 | E100: 0.86 | F100: Rural | G100: No Right Turn Lane on Major Approach | H100: Three-Leg Minor Stop-Controlled Intersection of Two-Lane Rural Roads | J100: Highway Safety Manual Table 10-14
B101: Provide a Right Turn Lane on a Major Approach at a Rural Three-Leg Stop-Controlled Intersection with a Multilane Highway | C101: All | D101: 0.86 | E101: 0.77 | F101: Rural | G101: No right Turn Lane on Major Approach | H101: Three-Leg Minor Stop-Controlled Intersection with Multilane Highway | J101: Highway Safety Manual Table 11-23
B102: Provide a Right Turn Lane on a Major Approach at an Urban or Suburban Three-Leg Stop-Controlled Intersection with an Arterial | C102: All | D102: 0.86 | E102: 0.86 | F102: Urban and Suburban | G102: No Right Turn Lane on Major Approach | H102: Three-Leg Minor Stop-Controlled Intersection with an Arterial | J102: Highway Safety Manual Table 11-22
B103: Provide Advance Street Name Signs | C103: All | D103: 0.984 | E103: 0.99 | F103: All | G103: No Advanced Street Signs | H103: Signalized Intersection | J103: http://www.cmfclearinghouse.org/detail.cfm?facid=2450 | K103: http://www.cmfclearinghouse.org/detail.cfm?facid=2449
B104: Remove Minor Street Leg from Four Leg Signalized Intersection | C104: All | D104: 0.74 | E104: 0.74 | F104: Urban and Suburban | G104: Four-Leg Signalized Intersection | H104: Signalized Intersection | I104: Cross-sectional comparison of 4SG and 3SG SPFs | J104: MassDOT Intersection SPFs
B105: Remove Minor Street Leg from Four Leg Stop-Controlled Intersection | C105: All | D105: 0.98 | E105: 0.98 | F105: Urban and Suburban | G105: Four-Leg Stop-Controlled Intersection | H105: Stop-Controlled Intersection | I105: Cross-sectional comparison of 4ST and 3ST SPFs | J105: MassDOT Intersection SPFs
B106: Replace 8-Inch Signal Heads with 12-Inch Signal Heads | C106: All | D106: 0.97 | E106: 0.97 | G106: Signalized Intersection with 8-Inch Signal Heads | H106: Signalized Intersection | J106: http://www.cmfclearinghouse.org/detail.cfm?facid=2334
B107: Replace Incandescent Signal Bulbs with LEDs - 3-Leg Intersection | C107: All | D107: 1.04 | E107: 1.17 | F107: Urban | G107: Incandescent Bulbs | H107: 3-Leg Signalized Intersection | J107: http://www.cmfclearinghouse.org/detail.cfm?facid=4891 | K107: http://www.cmfclearinghouse.org/detail.cfm?facid=4890
B108: Replace Incandescent Signal Bulbs with LEDs - 4-Leg Intersection | C108: All | D108: 0.982 | E108: 1.047 | F108: Urban | G108: Incandescent Bulbs | H108: 4-Leg Signalized Intersection | J108: http://www.cmfclearinghouse.org/detail.cfm?facid=4899 | K108: http://www.cmfclearinghouse.org/detail.cfm?facid=4898
B109: Shift Left Turn Lane to Create Positive Offset | C109: All | D109: 0.662 | E109: 0.644 | G109: Left Turn Lanes with Negative Offset | H109: Four-Leg Intersection | J109: http://www.cmfclearinghouse.org/detail.cfm?facid=6096 | K109: http://www.cmfclearinghouse.org/detail.cfm?facid=6095
B110: Signalizing driveway (Commercial, industrial, residential?) | C110: Multi-Vehicle | D110: 0.57 | E110: 0.46 | F110: Urban/Suburban | G110: Minor Stop-Controlled Intersection | H110: Three-Leg or Four-Leg Intersection | J110: MassDOT CMF Memo
B111: Systemic Stop-Control Intersection Improvements | C111: All | D111: 0.917 | E111: 0.899 | F111: All | G111: Stop-Controlled Intersection without Supplemental Signage or Pavement Markings | H111: Stop-Controlled Intersection | J111: http://www.cmfclearinghouse.org/detail.cfm?facid=8867 | K111: http://www.cmfclearinghouse.org/detail.cfm?facid=8866
A112: Freeway Segments | B112: Add Roadside Guardrail | C112: All | D112: 1.00043628 | E112: 0.9750513528 | G112: No Roadside Barrier Present | H112: Freeway Segment | I112: Proportionally adjusted from the target crash type (run off road) to all crashes; Speed Limit 50-70 mph | J112: http://www.cmfclearinghouse.org/detail.cfm?facid=8395 | K112: http://www.cmfclearinghouse.org/detail.cfm?facid=8394
B113: Add Segment Lighting | C113: All | D113: 0.94 | E113: 0.9034293194 | F113: All | G113: No Lighting Present | H113: Freeway/Expressway Segment | I113: Proportionally adjusted from FI and PDO to All. Proportionally adjusted from the target crash type (nighttime) to all crashes | J113: http://www.cmfclearinghouse.org/detail.cfm?facid=581 | K113: http://www.cmfclearinghouse.org/detail.cfm?facid=582
B114: Add Thru Lane on Segment (via Restriping) | C114: All | D114: 0.93 | E114: 0.76 | F114: Urban | G114: Fewer Lanes | H114: Freeway Segment | I114: Speed Limit >50 mph; Proportionally adjusted from FI and PDO to All | J114: http://www.cmfclearinghouse.org/detail.cfm?facid=8334
B115: Adding a New Off-Ramp | C115: All | D115: Contact MassDOT | E115: Contact MassDOT | F115: All | G115: No Off Ramp Present | H115: Freeway Segment | I115: CMF spreadsheet to be provided "Entrance Ramp Calculator to Calculate CMF". Proportionally adjusted from FI and PDO to All. These CMFs provide a rough estimate of expected changes to safety performance with interchange modifications. We recommend using IHSDM or ISATe to perform a more detailed review. | J115: HSM Chapters 18 and 19
B116: Adding a New On-Ramp | C116: All | D116: Contact MassDOT | E116: Contact MassDOT | F116: All | G116: No On Ramp Present | H116: Freeway Segment | I116: CMF spreadsheet to be provided "Exit Ramp Calculator to Calculate CMF". These CMFs provide a rough estimate of expected changes to safety performance with interchange modifications. We recommend using IHSDM or ISATe to perform a more detailed review. Proportionally adjusted from FI and PDO to All | J116: HSM Chapters 18 and 19
B117: Addition of raised pavement reflectors | C117: All | D117: 0.99 | E117: 0.9785398487 | F117: Rural | G117: No raised pavement markers | H117: Freeway/Expressway Segment | I117: Proportionally adjusted from FI and PDO to All. Proportionally adjusted from the target crash type (nighttime) to all crashes | J117: http://www.cmfclearinghouse.org/detail.cfm?facid=110
B118: Change from other type of weave to Type B Weave | C118: Multi-Vehicle | D118: Contact MassDOT | E118: Contact MassDOT | F118: All | G118: Non-Type B Weave Present | H118: Freeway Segment | I118: CMF spreadsheet to be provided "Convert to Type B Weave". These CMFs provide a rough estimate of expected changes to safety performance with interchange modifications. We recommend using IHSDM or ISATe to perform a more detailed review. Proportionally adjusted from FI and PDO to All | J118: HSM Equation 18-30 through 18-34, Table 18-20
B119: Eliminate Weaving Condition | C119: Multi-Vehicle | D119: Contact MassDOT | E119: Contact MassDOT | F119: All | G119: Weave Present | H119: Freeway Segment | I119: CMF spreadsheet to be provided "Adding or Eliminating Weave". These CMFs provide a rough estimate of expected changes to safety performance with interchange modifications. We recommend using IHSDM or ISATe to perform a more detailed review. Proportionally adjusted from FI and PDO to All | J119: HSM Equation 18-30 through 18-34, Table 18-20
B120: Install Median Cable Barrier | C120: All | D120: 0.99 | E120: 0.9911684958 | F120: All | G120: Traversable Median with No Barrier | H120: Divided Freeway or Expressway | I120: Proportionally adjusted from FI and PDO to All. Proportionally adjusted from the target crash type (cross-median) to all crashes | J120: MassDOT CMF Memo
B121: Install Median Concrete Barrier | C121: All | D121: 0.99 | E121: 0.9877340219 | F121: Rural | G121: Traversable Median with No Barrier | H121: Divided Freeway or Expressway | I121: Proportionally adjusted from FI and PDO to All. Proportionally adjusted from the target crash type (cross-median) to all crashes | J121: http://www.cmfclearinghouse.org/detail.cfm?facid=2256
B122: Install Median Guardrail | C122: All | D122: 0.99 | E122: 0.9904325371 | G122: Traversable Median with No Barrier | H122: Divided Freeway or Expressway | I122: Proportionally adjusted from FI and PDO to All. Proportionally adjusted from the target crash type (cross-median) to all crashes | J122: http://www.cmfclearinghouse.org/detail.cfm?facid=51
B123: Install Rumble Strips on Inside Shoulder | C123: Single-Vehicle | D123: 0.95 | E123: 0.811 | F123: All | G123: Paved Shoulder with No Rumble Strips | H123: Freeway or Expressway Tangent | I123: Proportionally adjusted from FI and PDO to All | J123: Highway Safety Manual Equations 18-36 & 18-37
B124: Install Rumble Strips on Outside Shoulder | C124: Single-Vehicle | D124: 0.95 | E124: 0.811 | F124: All | G124: Paved Shoulder with No Rumble Strips | H124: Freeway or Expressway Tangent | I124: Proportionally adjusted from FI and PDO to All | J124: Highway Safety Manual Equations 18-36 & 18-37
B125: Install Variable Speed Limits | C125: All | D125: 0.71 | E125: 0.71 | F125: Urban | G125: Static Speed Limit | H125: Divided Interstate | I125: Speed Limit > 40 mph; Proportionally adjusted from FI and PDO to All | J125: http://www.cmfclearinghouse.org/detail.cfm?facid=8730
B126: Install/Upgrade Horizontal Curve Signage with Flourescent Sheeting, Warning Signs, and Flashing Beacons | C126: All | D126: 0.606 | E126: 0.606 | G126: No Curve Delineation Treatment | H126: Horizontal Curve on Expressway | I126: Italian Study | J126: http://www.cmfclearinghouse.org/detail.cfm?facid=1851
B127: Introduce Weaving Condition | C127: Multi-Vehicle | D127: Contact MassDOT | E127: Contact MassDOT | F127: All | G127: No Weave Present | H127: Freeway Segment | I127: CMF spreadsheet to be provided "Adding or Eliminating Weave". These CMFs provide a rough estimate of expected changes to safety performance with interchange modifications. We recommend using IHSDM or ISATe to perform a more detailed review. Proportionally adjusted from FI and PDO to All | J127: HSM Equation 18-30 through 18-34, Table 18-20
B128: Widen Average Clear Zone from X Feet to Y Feet | C128: Single-Vehicle | D128: (74548*exp(-0.00451*[X-Y])+195150)/269698 | E128: exp(-0.00451*[X-Y]) | F128: All | G128: Average Clear Zone Width of X Feet | H128: Freeway Segment | I128: Proportionally adjusted from FI and PDO to All | J128: Highway Safety Manual Equation 18-38
B129: Widen Median from X Feet to Y Feet - Multi-Vehicle Crashes | C129: Multi-Vehicle | D129: (74548*exp(-0.00302*[Y-X])+195150*exp(-0.00291*[Y-X]))/269698 | E129: exp(-0.00302*[Y-X]) | F129: All | G129: Median Width of X Feet | H129: Divided Freeway Segment with No Median Barrier | I129: Proportionally adjusted from FI and PDO to All | J129: Highway Safety Manual Table 18-17
B130: Widen Median from X Feet to Y Feet - Single-Vehicle Crashes | C130: Single-Vehicle | D130: (74548*exp(0.00102*[Y-X])+195150*exp(-0.00289*[Y-X]))/269698 | E130: exp(0.00102*[Y-X]) | F130: All | G130: Median Width of X Feet | H130: Divided Freeway Segment with No Median Barrier | I130: Proportionally adjusted from FI and PDO to All | J130: Highway Safety Manual Table 18-17
B131: Widen Paved Inside Shoulder from X Feet to Y Feet | C131: All | D131: (74548*exp(0.0172*[X-Y])+195150*exp(0.0153*[X-Y]))/269698 | E131: exp(0.0172*[X-Y]) | F131: All | G131: Paved Inside Shoulder of X Feet | H131: Freeway Segment | I131: Proportionally adjusted from FI and PDO to All | J131: Highway Safety Manual Equation 18-26, Table 18-16
B132: Widen Paved Outside Shoulder on Curve from X Feet to Y Feet | C132: Single-Vehicle | D132: (74548*exp(0.0897*[X-Y])+195150*exp(0.0840*[X-Y]))/269698 | E132: exp(0.0897*[X-Y]) | F132: All | G132: Paved Outside Shoulder of X Feet | H132: Freeway Horizontal Curve | I132: Proportionally adjusted from FI and PDO to All | J132: Highway Safety Manual Eqaution 18-35, Table 18-21
B133: Widen Paved Outside Shoulder on Tangent from X Feet to Y Feet | C133: Single-Vehicle | D133: (74548*exp(0.0647*[X-Y])+195150)/269698 | E133: exp(0.0647*[X-Y]) | F133: All | G133: Paved Outside Shoulder of X Feet | H133: Freeway Tangent | I133: Proportionally adjusted from FI and PDO to All | J133: Highway Safety Manual Eqaution 18-35, Table 18-21
A134: Non-Freeway Segments | B134: Add Auxiliary Passing Lane | C134: All | D134: 0.63 | E134: 0.58 | F134: Rural | G134: No Passing Lanes Present but Operations Indicate Need | H134: Two-Lane Undivided Highway | I134: Proportionally adjusted from FI and PDO to All | J134: http://www.cmfclearinghouse.org/detail.cfm?facid=4083 | K134: http://www.cmfclearinghouse.org/detail.cfm?facid=4082
B135: Add Breakaway Supports for Utility Poles in Clear Zone | C135: All | D135: 1 | E135: 0.9934672278 | F135: Rural | G135: Utility Poles without Breakaway Supports | H135: Roadway with Utility Poles along Roadside | I135: Proportionally adjusted from FI and PDO to All. Proportionally adjusted from the target crash type (fixed-object crashes) to all crashes. Based on an assumption of an 1 step improvement in roadside hazard rating | J135: http://www.cmfclearinghouse.org/detail.cfm?facid=5187
B136: Add Centerline Rumble Strips | C136: All | D136: 0.97 | E136: 0.957654361 | F136: Rural | G136: No Centerline Rumble Strips | H136: Two Lane Undivided Highway | I136: Proportionally adjusted from FI and PDO to All. Proportionally adjusted from the target crash type (head-on and sideswipe-opposite) to all crashes | J136: http://www.cmfclearinghouse.org/detail.cfm?facid=3360 | K136: http://www.cmfclearinghouse.org/detail.cfm?facid=3355
B137: Add Fluorescent Sheeting to Chevron Signs | C137: All | D137: 0.82 | E137: 0.75 | F137: Rural | G137: No Sign or Sign Without Flourescent Sheeting | H137: Two Lane Undivided Highway | J137: http://www.cmfclearinghouse.org/detail.cfm?facid=2433 | K137: http://www.cmfclearinghouse.org/detail.cfm?facid=2431
B138: Add SafetyEdge | C138: All | D138: 0.97 | E138: 0.9572912415 | F138: Rural | G138: Steep Pavement Edge Dropoff | H138: Two Lane Undivided Highway | I138: Proportionally adjusted from the target crash type (run off road) to all crashes. Proportionally adjusted from FI and PDO to All | J138: http://www.cmfclearinghouse.org/detail.cfm?facid=9661
B139: Add Segment Lighting | C139: All | D139: 0.93 | E139: 0.87649829 | F139: All | G139: No Lighting Present | H139: Urban Street | I139: Proportionally adjusted from the target crash type (nighttime) to all crashes. Proportionally adjusted from FI and PDO to All | J139: http://www.cmfclearinghouse.org/detail.cfm?facid=7774
B140: Add Shoulder Rumble Strips | C140: All | D140: 0.98 | E140: 0.9654262431 | F140: Rural | G140: No Shoulder Rumble Strips Present | H140: Two Lane Undivided Highway | I140: Proportionally adjusted from the target crash type (run off road) to all crashes. Proportionally adjusted from FI and PDO to All | J140: http://www.cmfclearinghouse.org/detail.cfm?facid=3447 | K140: http://www.cmfclearinghouse.org/detail.cfm?facid=3442
B141: Add Thru Lane on Segment - Convert from Rural Two Lane Roadway to Four Lane Divided | C141: All | D141: 0.712 | E141: 0.549 | F141: Rural | G141: Two Lane Undivided Highway with Congestion-Related Safety Issues | H141: Two Lane Undivided Highway Segment | J141: http://www.cmfclearinghouse.org/detail.cfm?facid=7569 | K141: http://www.cmfclearinghouse.org/detail.cfm?facid=7571
B142: Add Thru Lane on Segment - Convert from Urban Two Lane Roadway to Four Lane Divided | C142: All | D142: 0.341 | E142: 0.367 | F142: Urban | G142: Two Lane Undivided Highway with Congestion-Related Safety Issues | H142: Two Lane Undivided Highway Segment | J142: http://www.cmfclearinghouse.org/detail.cfm?facid=7568 | K142: http://www.cmfclearinghouse.org/detail.cfm?facid=7566
B143: Add TWLTL - 2U to 3T | C143: All | D143: 0.797 | E143: 0.739 | F143: All | G143: No Two Way Left Turn Lane | H143: Two Lane Undivided Highway | J143: http://www.cmfclearinghouse.org/detail.cfm?facid=2341 | K143: http://www.cmfclearinghouse.org/detail.cfm?facid=2346
B144: Add TWLTL - 4U to 5T | C144: All | D144: 0.564 | E144: 0.564 | F144: Urban and Suburban | G144: 4-Lane Undivided Street | H144: Urban or Suburban Arterial | I144: This CMF applies in areas with a population between 5,000 and 25,000 people. | J144: http://www.cmfclearinghouse.org/detail.cfm?facid=9418
B145: Add Wet-Reflective Pavement Markings | C145: All | D145: 0.825 | E145: 0.595 | G145: Standard Pavement Markings | H145: Multilane Highway | J145: http://www.cmfclearinghouse.org/detail.cfm?facid=8110 | K145: http://www.cmfclearinghouse.org/detail.cfm?facid=8109
B146: Change Roadside Hazard Rating from X to Y by Flattening Roadside Slope | C146: All | D146: exp(0.0668*(Y-X)) | E146: exp(0.0668*(Y-X)) | F146: Rural | G146: Roadside Slope Associated with Roadside Hazard Rating of X | H146: Two Lane Rural Road | J146: http://www.cmfclearinghouse.org/detail.cfm?facid=5187 | K146: https://www.fhwa.dot.gov/publications/research/safety/99207/appd.cfm
B147: Change Roadside Hazard Rating from X to Y by Widening Clear Zone | C147: All | D147: exp(0.0668*(Y-X)) | E147: exp(0.0668*(Y-X)) | F147: Rural | G147: Roadside Clear Zone Associated with Roadside Hazard Rating of X | H147: Two Lane Rural Road | J147: http://www.cmfclearinghouse.org/detail.cfm?facid=5187 | K147: https://www.fhwa.dot.gov/publications/research/safety/99207/appd.cfm
B148: Convert Angle Parking to Parallel Parking | C148: All | D148: 0.91 | E148: 0.9563129301 | F148: Urban | G148: Angle Parking | H148: Local Roadways | I148: Proportionally adjusted from the target crash type (parking-related) to all crashes. Proportionally adjusted from FI and PDO to All | J148: http://www.cmfclearinghouse.org/detail.cfm?facid=164
B149: Convert Edgeline Markings from 4" to 6" | C149: All | D149: 0.825 | E149: 0.635 | F149: Rural | G149: 4-inch edgelines | H149: Two Lane Undivided Highway | I149: Crash type also excludes intersection/interchange crashes and winter month crashes | J149: https://www.cmfclearinghouse.org/detail.cfm?facid=4736 | K149: http://www.cmfclearinghouse.org/detail.cfm?facid=4737
B150: Decrease Lane Width on Urban Street | C150: All | D150: Check CMF Clearinghouse for Relevant Lane Width Change: http://www.cmfclearinghouse.org/study_detail.cfm?stid=439 | E150: Check CMF Clearinghouse for Relevant Lane Width Change: http://www.cmfclearinghouse.org/study_detail.cfm?stid=439 | F150: Urban | G150: Lane width of 10, 11, or 12 feet | H150: Urban Street | I150: Average for 1' and 2' lane width reductions, average AADT from study | J150: http://www.cmfclearinghouse.org/study_detail.cfm?stid=439
B151: Flatten Crest Vertical Curve | C151: All | D151: 0.82 | E151: 0.76 | F151: Rural | G151: Crest Vertical Curve without Sufficient Sight Distance | H151: Crest Vertical Curve on Two Lane Undivided Highway | I151: Speed Limit 25-65 mph | J151: http://www.cmfclearinghouse.org/detail.cfm?facid=6869 | K151: http://www.cmfclearinghouse.org/detail.cfm?facid=6868
B152: Flatten Horizontal Curve | C152: All | D152: 0.315 | E152: 0.259 | F152: Rural | G152: Horizontal Curve with Sharp Horizontal Curve | H152: Two Lane Rural Road | I152: Minimum of 400 to Maximum of 12000 Annual Average Daily Traffic (AADT) | J152: http://www.cmfclearinghouse.org/detail.cfm?facid=9651 | K152: http://www.cmfclearinghouse.org/detail.cfm?facid=9525
B153: High Friction Surface Treatment on Horizontal Curve | C153: All | D153: 0.529 | E153: 0.49 | G153: Perceived Friction-Related Crash problem | H153: Horizontal Curve | J153: http://www.cmfclearinghouse.org/detail.cfm?facid=10319 | K153: http://www.cmfclearinghouse.org/detail.cfm?facid=10318
B154: Horizontal Curve Warning Signs and Flashers | C154: All | D154: 0.42 | E154: 0.42 | F154: Rural | G154: Horizontal Curve with Speed-Related Crash Issues | H154: Rural Highway | J154: https://www.fhwa.dot.gov/hfl/partnerships/tapco/final_report.pdf
B155: Implement Traffic Calming Measure(s) | C155: All | D155: 0.68 | E155: 0.67 | F155: Urban | G155: No Traffic Calming Measure Present | H155: Minor Collector | I155: Generic traffic calming CMF | J155: http://www.cmfclearinghouse.org/detail.cfm?facid=128 | K155: http://www.cmfclearinghouse.org/detail.cfm?facid=129
B156: Improve Roadside by Reducing Roadside Hazard Rating from X to Y | C156: All | D156: exp(0.0668*(Y-X)) | E156: exp(0.0668*(Y-X)) | F156: Rural | G156: Roadside Hazard Rating of X | H156: Two Lane Undivided Highway | J156: http://www.cmfclearinghouse.org/detail.cfm?facid=5187 | K156: https://www.fhwa.dot.gov/publications/research/safety/99207/appd.cfm
B157: Improve STOP Sign Retroreflectivity at Stop-Controlled Intersection | C157: All | D157: 0.946 | E157: 0.906 | F157: All | G157: STOP Sign with Low Retroreflectivity | H157: Stop-Controlled Intersection | J157: http://www.cmfclearinghouse.org/detail.cfm?facid=6052 | K157: http://www.cmfclearinghouse.org/detail.cfm?facid=6053
B158: Increase Pavement Marking Retroreflectivity | C158: All | D158: 0.95 | E158: 0.950599316 | F158: Rural | G158: Longtiudinal Pavement Markings with Low Retroreflectivity | H158: Two-lane rural highway | I158: Proportionally adjusted from the target crash type (nighttime) to all crashes. Proportionally adjusted from FI and PDO to All | J158: http://www.cmfclearinghouse.org/detail.cfm?facid=6842
B159: Install Dynamic Speed Feedback Sign | C159: All | D159: 0.95 | E159: 0.95 | F159: Rural | G159: Horziontal Curve with Speeding Problem | H159: Horizontal Curve on Two Lane Highway with a Posted Speed Limit Greater than 45 MPH | I159: Speed Limit 50-65 mph | J159: http://www.cmfclearinghouse.org/detail.cfm?facid=6885
B160: Install Light-Reflecting Devices to Scare Away Animals | C160: All | D160: 1 | E160: 0.9999783958 | G160: No Light-Reflecting Devices | H160: Roadway Segment with a History of Animal Crashes | I160: Proportionally adjusted from the target crash type (vehicle-animal) to all crashes | J160: http://www.cmfclearinghouse.org/detail.cfm?facid=9149
B161: Install Roadside Barrier | C161: All | D161: 0.97 | E161: 0.9105149822 | G161: Unprotected Roadside Embankment | H161: Fill Segment | I161: Proportionally adjusted from the target crash type (run off road) to all crashes. Proportionally adjusted from FI and PDO to All. Proportionally adjusted from K and ABC to FI. | J161: http://www.cmfclearinghouse.org/detail.cfm?facid=37 | K161: http://www.cmfclearinghouse.org/detail.cfm?facid=38 | L161: http://www.cmfclearinghouse.org/detail.cfm?facid=39
B162: Install Speed Cameras | C162: All | D162: 0.46 | E162: 0.52 | F162: Urban | G162: No Speed Cameras Present | H162: Principal Arterial - Other | J162: http://www.cmfclearinghouse.org/detail.cfm?facid=2915 | K162: http://www.cmfclearinghouse.org/detail.cfm?facid=2921
B163: Prohibit On-Street Parking | C163: All | D163: 0.75 | E163: 0.8 | F163: Urban | G163: Parking Permitted on Street | H163: Minor Arterial | I163: Proportionally adjusted from FI and PDO to All | J163: http://www.cmfclearinghouse.org/detail.cfm?facid=153 | K163: http://www.cmfclearinghouse.org/detail.cfm?facid=154
B164: Reduce Access Point Density from X Driveways per Mile to Y Driveways per Mile | C164: All | D164: exp(0.0232*[Y-X]) | E164: exp(0.0152*[Y-X]) | F164: Rural | G164: Driveway Density of X Driveways per Mile | H164: Two Lane Undivided Highway | J164: http://www.cmfclearinghouse.org/detail.cfm?facid=1973 | K164: http://www.cmfclearinghouse.org/detail.cfm?facid=2248
B165: Reduce Superelevation Deficiency on Horizontal Curve from X to Y, Superelevation Deficiency Between 0.01 and 0.02 Feet per Foot | C165: All | D165: (1+6*(Y-0.01))/(1+6*(X-0.01)) | E165: (1+6*(Y-0.01))/(1+6*(X-0.01)) | F165: Rural | G165: Superelevation Deficiency of X Feet per Foot, X is Between 0.01 and 0.02 | H165: Horizontal Curve on Two Lane Undivided Highway | J165: http://www.cmfclearinghouse.org/detail.cfm?facid=5183
B166: Reduce Superelevation Deficiency on Horizontal Curve from X to Y, Superelevation Deficiency Greater than 0.02 Feet per Foot | C166: All | D166: (1+3*(Y-0.02))/(1+3*(X-0.02)) | E166: (1+3*(Y-0.02))/(1+3*(X-0.02)) | F166: Rural | G166: Superelevation Deficiency of X Feet per Foot, X is Greater than 0.02 | H166: Horizontal Curve on Two Lane Undivided Highway | J166: http://www.cmfclearinghouse.org/detail.cfm?facid=5184
B167: Resurface Rural Roadway | C167: All | D167: 1.03 | E167: 0.74 | F167: Rural | G167: Poor Pavement Condition | H167: Two Lane Undivided Highway | I167: Minimum of 410 to Maximum of 26943 Annual Average Daily Traffic (AADT) | J167: http://www.cmfclearinghouse.org/detail.cfm?facid=5629 | K167: http://www.cmfclearinghouse.org/detail.cfm?facid=5626
B168: Resurface Urban Street | C168: All | D168: 0.929 | E168: 0.787 | F168: Urban | G168: Old Pavement | H168: Urban Street, Signalized Intersection | J168: http://www.cmfclearinghouse.org/detail.cfm?facid=10280 | K168: http://www.cmfclearinghouse.org/detail.cfm?facid=9289
B169: Road Diet - 4U to 3T | C169: All | D169: 0.71 | E169: 0.71 | F169: Urban | G169: Four Lane Undivided Roadway | H169: Four Lane Undivided Minor Arterial | J169: http://www.cmfclearinghouse.org/detail.cfm?facid=199
B170: Widen Average Lane Width for Rural Roadway by 1 Foot | C170: All | D170: 0.93 | E170: 0.93 | F170: Rural | G170: Rural Roadway with Narrow Lanes | H170: Rural Highway | I170: Averaged 1' Lane Width Widening and Used HSM Adjustment Factor | J170: Highway Safety Manual Table 10-8 and Equation 10-11
B171: Widen Average Lane Width for Urban Street by 1 Foot | C171: All | D171: 0.84 | E171: 0.9 | F171: Urban | G171: Urban Street with Narrow Lanes | H171: Urban Street | I171: Average of 1' increases from 10 to 11 and 11 to 12 | J171: http://www.cmfclearinghouse.org/study_detail.cfm?stid=439
B172: Widen Paved Shoulder on Rural Roadway | C172: All | D172: 0.93 | E172: 0.93 | F172: Rural | G172: Narrow Shoulder | H172: Rural Highway | J172: Highway Safety Manual Table 10-9

Sheet Input
A1: Required Manual Input | C1: Optional Manual Input | E1: Select from Drop-Down List
A3: General Information and Input Data for Urban and Suburban Arterial Intersections
A4: General Information | E4: Location Information
A5: Analyst: | E5: City:
A6: Agency or Company: | E6: Intersection:
A7: Date Performed (MM/DD/YYYY): | E7: Jurisdiction:
A8: Study Period (Years, 1 minimum, 10 maximum): | C8: 1 | E8: Analysis Year:
A10: Intersection Data
A11: Intersection Type: | C11: 3SG MassDOT
A12: Intersection Lighting (Present/Not Present): | C12: Not Present
A15: Stop Controlled
A16: Number of major-road approaches with left-turn lanes (0,1,2): | G16: 0
A17: Number of major-road approaches with right-turn lanes (0,1,2): | G17: 0
A19: Signal Controlled
A20: Number of approaches with left-turn lanes (0,1,2,3,4) [for 3SG, use maximum value of 3] | G20: 2
A21: Number of approaches with right-turn lanes (0,1,2,3,4) [for 3SG, use maximum value of 3] | G21: 0
A22: Number of approaches with left-turn signal phasing [for 3SG, use maximum value of 3] | G22: 0
A23: Type of left-turn signal phasing for Leg #1 | G23: Permissive
A24: Type of left-turn signal phasing for Leg #2 | G24: Permissive
A25: Type of left-turn signal phasing for Leg #3 | G25: Permissive
A26: Type of left-turn signal phasing for Leg #4 | G26: Permissive
A27: Number of approaches with right-turn-on-red prohibited [for 3SG, use maximum value of 3] | G27: 0
A28: Intersection red light cameras (present/not present) | G28: Not Present
A29: Sum of all pedestrian crossing volumes (PedVol) -- Signalized intersections only | G29: 1
A30: Maximum number of lanes crossed by a pedestrian (nlanesx) | G30: 0
A31: Number of bus stops within 300 m (1,000 ft) of the intersection | G31: 0
A32: Schools within 300 m (1,000 ft) of the intersection (present/not present) | G32: Not Present
A33: Number of alcohol sales establishments within 300 m (1,000 ft) of the intersection | G33: 0
A35: Step 1 – Expected Change in Safety Performance
A37: Step 1.1A - Observed Crash Data for Intersection
A38: Crash Type, Severity | B38: Total | C38: Average per Year | D38: Year 1 | E38: Year 2 | F38: Year 3 | G38: Year 4 | H38: Year 5 | I38: Year 6 | J38: Year 7 | K38: Year 8 | L38: Year 9 | M38: Year 10
A39: MV, FI | B39: =IF(COUNTA(D39:INDIRECT(ADDRESS(39,3+$C$8)))<>$C$8,"INVALID",SUM(D39:INDIRECT(ADDRESS(39,3+$C$8)))) -> INVALID | C39: =IF(COUNTA(D39:INDIRECT(ADDRESS(39,3+$C$8)))<>$C$8,"ENSURE TABLE ROW IS COMPLETELY FILLED OUT",AVERAGE(D39:INDIRECT(ADDRESS(39,3+$C$8)))) -> ENSURE TABLE ROW IS COMPLETELY FILLED OUT
A40: MV, PDO | B40: =IF(COUNTA(D40:INDIRECT(ADDRESS(40,3+$C$8)))<>$C$8,"INVALID",SUM(D40:INDIRECT(ADDRESS(40,3+$C$8)))) -> INVALID | C40: =IF(COUNTA(D40:INDIRECT(ADDRESS(40,3+$C$8)))<>$C$8,"ENSURE TABLE ROW IS COMPLETELY FILLED OUT",AVERAGE(D40:INDIRECT(ADDRESS(40,3+$C$8)))) -> ENSURE TABLE ROW IS COMPLETELY FILLED OUT
A41: SV, FI | B41: =IF(COUNTA(D41:INDIRECT(ADDRESS(41,3+$C$8)))<>$C$8,"INVALID",SUM(D41:INDIRECT(ADDRESS(41,3+$C$8)))) -> INVALID | C41: =IF(COUNTA(D41:INDIRECT(ADDRESS(41,3+$C$8)))<>$C$8,"ENSURE TABLE ROW IS COMPLETELY FILLED OUT",AVERAGE(D41:INDIRECT(ADDRESS(41,3+$C$8)))) -> ENSURE TABLE ROW IS COMPLETELY FILLED OUT
A42: SV, PDO | B42: =IF(COUNTA(D42:INDIRECT(ADDRESS(42,3+$C$8)))<>$C$8,"INVALID",SUM(D42:INDIRECT(ADDRESS(42,3+$C$8)))) -> INVALID | C42: =IF(COUNTA(D42:INDIRECT(ADDRESS(42,3+$C$8)))<>$C$8,"ENSURE TABLE ROW IS COMPLETELY FILLED OUT",AVERAGE(D42:INDIRECT(ADDRESS(42,3+$C$8)))) -> ENSURE TABLE ROW IS COMPLETELY FILLED OUT
A43: Ped, FI | B43: =IF(COUNTA(D43:INDIRECT(ADDRESS(43,3+$C$8)))<>$C$8,"INVALID",SUM(D43:INDIRECT(ADDRESS(43,3+$C$8)))) -> INVALID | C43: =IF(COUNTA(D43:INDIRECT(ADDRESS(43,3+$C$8)))<>$C$8,"ENSURE TABLE ROW IS COMPLETELY FILLED OUT",AVERAGE(D43:INDIRECT(ADDRESS(43,3+$C$8)))) -> ENSURE TABLE ROW IS COMPLETELY FILLED OUT
A44: Ped, PDO | B44: =IF(COUNTA(D44:INDIRECT(ADDRESS(44,3+$C$8)))<>$C$8,"INVALID",SUM(D44:INDIRECT(ADDRESS(44,3+$C$8)))) -> INVALID | C44: =IF(COUNTA(D44:INDIRECT(ADDRESS(44,3+$C$8)))<>$C$8,"ENSURE TABLE ROW IS COMPLETELY FILLED OUT",AVERAGE(D44:INDIRECT(ADDRESS(44,3+$C$8)))) -> ENSURE TABLE ROW IS COMPLETELY FILLED OUT
A45: Bike, FI | B45: =IF(COUNTA(D45:INDIRECT(ADDRESS(45,3+$C$8)))<>$C$8,"INVALID",SUM(D45:INDIRECT(ADDRESS(45,3+$C$8)))) -> INVALID | C45: =IF(COUNTA(D45:INDIRECT(ADDRESS(45,3+$C$8)))<>$C$8,"ENSURE TABLE ROW IS COMPLETELY FILLED OUT",AVERAGE(D45:INDIRECT(ADDRESS(45,3+$C$8)))) -> ENSURE TABLE ROW IS COMPLETELY FILLED OUT
A46: Bike, PDO | B46: =IF(COUNTA(D46:INDIRECT(ADDRESS(46,3+$C$8)))<>$C$8,"INVALID",SUM(D46:INDIRECT(ADDRESS(46,3+$C$8)))) -> INVALID | C46: =IF(COUNTA(D46:INDIRECT(ADDRESS(46,3+$C$8)))<>$C$8,"ENSURE TABLE ROW IS COMPLETELY FILLED OUT",AVERAGE(D46:INDIRECT(ADDRESS(46,3+$C$8)))) -> ENSURE TABLE ROW IS COMPLETELY FILLED OUT
A49: Step 1.1B - Traffic Data | D49: Year 1 | E49: Year 2 | F49: Year 3 | G49: Year 4 | H49: Year 5 | I49: Year 6 | J49: Year 7 | K49: Year 8 | L49: Year 9 | M49: Year 10
A50: Present AADT(Major):
A51: AADT Check | D51: =IF(D50<>"",eval('Construction - do not delete'!$V$84),"") ->  | E51: =IF(E50<>"",eval('Construction - do not delete'!$V$86),"") ->  | F51: =IF(F50<>"",eval('Construction - do not delete'!$V$88),"") ->  | G51: =IF(G50<>"",eval('Construction - do not delete'!$V$90),"") ->  | H51: =IF(H50<>"",eval('Construction - do not delete'!$V$92),"") ->  | I51: =IF(I50<>"",eval('Construction - do not delete'!$V$94),"") ->  | J51: =IF(J50<>"",eval('Construction - do not delete'!$V$96),"") ->  | K51: =IF(K50<>"",eval('Construction - do not delete'!$V$98),"") ->  | L51: =IF(L50<>"",eval('Construction - do not delete'!$V$100),"") ->  | M51: =IF(M50<>"",eval('Construction - do not delete'!$V$102),"") -> 
A52: Present AADT(Minor):
A53: AADT Check | D53: =IF(D52<>"",eval('Construction - do not delete'!$AB$84),"") ->  | E53: =IF(E52<>"",eval('Construction - do not delete'!$AB$86),"") ->  | F53: =IF(F52<>"",eval('Construction - do not delete'!$AB$88),"") ->  | G53: =IF(G52<>"",eval('Construction - do not delete'!$AB$90),"") ->  | H53: =IF(H52<>"",eval('Construction - do not delete'!$AB$92),"") ->  | I53: =IF(I52<>"",eval('Construction - do not delete'!$AB$94),"") ->  | J53: =IF(J52<>"",eval('Construction - do not delete'!$AB$96),"") ->  | K53: =IF(K52<>"",eval('Construction - do not delete'!$AB$98),"") ->  | L53: =IF(L52<>"",eval('Construction - do not delete'!$AB$100),"") ->  | M53: =IF(M52<>"",eval('Construction - do not delete'!$AB$102),"") -> 
D54: =IF(AND(D50<>"",D52<>"",D39<>"",D40<>"",D41<>"",D42<>"",D43<>"",D44<>"",D45<>"",D46<>""),"",IF(AND(D50="",D52="",D39="",D40="",D41="",D42="",D43="",D44="",D45="",D46=""),"","Must have all data for Year 1 filled out in both Tables Above")) ->  | E54: =IF(AND(E50<>"",E52<>"",E39<>"",E40<>"",E41<>"",E42<>"",E43<>"",E44<>"",E45<>"",E46<>""),"",IF(AND(E50="",E52="",E39="",E40="",E41="",E42="",E43="",E44="",E45="",E46=""),"","Must have all data for Year 1 filled out in both Tables Above")) -> 
A55: Design Year AADT(Major):
A56: AADT Check | D56: =IF(D55<>"",eval('Construction - do not delete'!$V$104),"") -> 
A57: Design Year AADT(Minor):
A58: AADT Check | D58: =IF(D57<>"",eval('Construction - do not delete'!$AB$104),"") -> 
D59: =IF(OR(D55="",D57=""),"Please Enter Both Design Year AADT's","") -> Please Enter Both Design Year AADT's
A60: Step 2 – Expected Change in Safety Performance
A61: Facility Type: | B61: =INDEX(Table5[],MATCH(C61,Table5[Facility Type],0),2) -> U3SG | C61: =IF(C11="3SG MassDOT",'Construction - do not delete'!H83, IF(C11="4SG MassDOT",'Construction - do not delete'!H85,IF(C11="3ST MassDOT", 'Construction - do not delete'!H84,IF(C11="4ST MassDOT",'Construction - do not delete'!H86,"")))) -> Urban Three-Leg Signalized Intersection
A62: Discount Rate (i) | B62: 0.07 | C62: Number of Proposed Alternatives: | D62: 0 | E62: =IF(OR(D62="",D62=0),"To Unlock Tables Below Please Select The Number of Proposed Alternatives","") -> To Unlock Tables Below Please Select The Number of Proposed Alternatives
B66: Alternative 1 | C66: Alternative 2 | D66: Alternative 3 | E66: Alternative 4
A67: Name of Countermeasure 1
A68: Name of Countermeasure 2 (If Desired)
A69: Estimated Service Life (Years)
A70: Estimated Improvement Cost
A73: CMF Input - Use CMFs Tab to Calculate - If no CMF Adjustment being made leave the default value of 1.000; PDO CMF Not required - PDO crash reductions calculated by subtracting FI crashes from ALL crashes
A74: Alternative 1 | B74: CMF Combination Method (If Applicable): | C74: Countermeasure 1: | E74: Countermeasure 2 (Select CMF Combination Method to Unlock):
A75: Name | C75: =IF(B67="","",B67) ->  | E75: =IF(B68="","",B68) -> 
A76: Crash Type, Severity | C76: CMF | E76: CMF
A77: MV, ALL | B77: Not Applicable | C77: 1 | E77: 1 | G77: =IF(AND(B77="Multiplicative",C77<=1,E77<=1),"ERROR - At Least 1 Value Must Be >1.0",IF(AND(B77<>"Not Applicable",B77<>"Multiplicative"),IF(OR(C77>1,E77>1),"If a CMF is > 1, must select Multiplicative",""),IF(AND(B77="Not Applicable",E77<>1),"Please clear value from countermeasure 2 CMF",""))) -> 
A78: MV, FI | B78: Not Applicable | C78: 1 | E78: 1
A79: SV, ALL | B79: Not Applicable | C79: 1 | E79: 1
A80: SV, FI | B80: Not Applicable | C80: 1 | E80: 1
A81: Ped, ALL | B81: Not Applicable | C81: 1 | E81: 1
A82: Ped, FI | B82: Not Applicable | C82: 5.53 | E82: 1
A83: Bike, ALL | B83: Not Applicable | C83: 1 | E83: 1
A84: Bike, FI | B84: Not Applicable | C84: 1 | E84: 1
A86: Alternative 2 | B86: CMF Combination Method (If Applicable): | C86: Countermeasure 1: | E86: Countermeasure 2 (Select CMF Combination Method to Unlock):
A87: Name | C87: =IF(C67="","",C67) ->  | E87: =IF(C68="","",C68) -> 
A88: Crash Type, Severity | C88: CMF | E88: CMF
A89: MV, ALL | B89: Not Applicable | C89: 1 | E89: 1 | G89: =IF(AND(B89="Multiplicative",C89<=1,E89<=1),"ERROR - At Least 1 Value Must Be >1.0",IF(AND(B89<>"Not Applicable",B89<>"Multiplicative"),IF(OR(C89>1,E89>1),"If a CMF is > 1, must select Multiplicative",""),IF(AND(B89="Not Applicable",E89<>1),"Please clear value from countermeasure 2 CMF",""))) -> 
A90: MV, FI | B90: Not Applicable | C90: 1 | E90: 1 | G90: =IF(AND(B90="Multiplicative",C90<=1,E90<=1),"ERROR - At Least 1 Value Must Be >1.0",IF(AND(B90<>"Not Applicable",B90<>"Multiplicative"),IF(OR(C90>1,E90>1),"If a CMF is > 1, must select Multiplicative",""),IF(AND(B90="Not Applicable",E90<>1),"Please clear value from countermeasure 2 CMF",""))) -> 
A91: SV, ALL | B91: Not Applicable | C91: 1 | E91: 1
A92: SV, FI | B92: Not Applicable | C92: 1 | E92: 1
A93: Ped, ALL | B93: Not Applicable | C93: 1 | E93: 1
A94: Ped, FI | B94: Not Applicable | C94: 1 | E94: 1
A95: Bike, ALL | B95: Not Applicable | C95: 1 | E95: 1
A96: Bike, FI | B96: Not Applicable | C96: 1 | E96: 1
A98: Alternative 3 | B98: CMF Combination Method (If Applicable): | C98: Countermeasure 1: | E98: Countermeasure 2 (Select CMF Combination Method to Unlock):
A99: Name | C99: =IF(D67="","",D67) ->  | E99: =IF(D68="","",D68) -> 
A100: Crash Type, Severity | C100: CMF | E100: CMF
A101: MV, ALL | B101: Not Applicable | C101: 1 | E101: 1 | G101: =IF(AND(B101="Multiplicative",C101<=1,E101<=1),"ERROR - At Least 1 Value Must Be >1.0",IF(AND(B101<>"Not Applicable",B101<>"Multiplicative"),IF(OR(C101>1,E101>1),"If a CMF is > 1, must select Multiplicative",""),IF(AND(B101="Not Applicable",E101<>1),"Please clear value from countermeasure 2 CMF",""))) -> 
A102: MV, FI | B102: Not Applicable | C102: 1 | E102: 1 | G102: =IF(AND(B102="Multiplicative",C102<=1,E102<=1),"ERROR - At Least 1 Value Must Be >1.0",IF(AND(B102<>"Not Applicable",B102<>"Multiplicative"),IF(OR(C102>1,E102>1),"If a CMF is > 1, must select Multiplicative",""),IF(AND(B102="Not Applicable",E102<>1),"Please clear value from countermeasure 2 CMF",""))) -> 
A103: SV, ALL | B103: Not Applicable | C103: 1 | E103: 1
A104: SV, FI | B104: Not Applicable | C104: 1 | E104: 1
A105: Ped, ALL | B105: Not Applicable | C105: 1 | E105: 1
A106: Ped, FI | B106: Not Applicable | C106: 1 | E106: 1
A107: Bike, ALL | B107: Not Applicable | C107: 1 | E107: 1
A108: Bike, FI | B108: Not Applicable | C108: 1 | E108: 1
G109: =IF(AND(B109="Multiplicative",C109<=1,E109<=1),"ERROR - At Least 1 Value Must Be >1.0",IF(AND(B109<>"Not Applicable",B109<>"Multiplicative"),IF(OR(C109>1,E109>1),"If a CMF is > 1, must select Multiplicative",""),IF(AND(B109="Not Applicable",E109<>""),"Please clear value from countermeasure 2 CMF",""))) -> 
A110: Alternative 4 | B110: CMF Combination Method (If Applicable): | C110: Countermeasure 1: | E110: Countermeasure 2 (Select CMF Combination Method to Unlock):
A111: Name | C111: =IF(E67="","",E67) ->  | E111: =IF(E68="","",E68) -> 
A112: Crash Type, Severity | C112: CMF | E112: CMF
A113: MV, ALL | B113: Not Applicable | C113: 1 | E113: 1 | G113: =IF(AND(B113="Multiplicative",C113<=1,E113<=1),"ERROR - At Least 1 Value Must Be >1.0",IF(AND(B113<>"Not Applicable",B113<>"Multiplicative"),IF(OR(C113>1,E113>1),"If a CMF is > 1, must select Multiplicative",""),IF(AND(B113="Not Applicable",E113<>1),"Please clear value from countermeasure 2 CMF",""))) -> 
A114: MV, FI | B114: Not Applicable | C114: 1 | E114: 1 | G114: =IF(AND(B114="Multiplicative",C114<=1,E114<=1),"ERROR - At Least 1 Value Must Be >1.0",IF(AND(B114<>"Not Applicable",B114<>"Multiplicative"),IF(OR(C114>1,E114>1),"If a CMF is > 1, must select Multiplicative",""),IF(AND(B114="Not Applicable",E114<>1),"Please clear value from countermeasure 2 CMF",""))) -> 
A115: SV, ALL | B115: Not Applicable | C115: 1 | E115: 1
A116: SV, FI | B116: Not Applicable | C116: 1 | E116: 1
A117: Ped, ALL | B117: Not Applicable | C117: 1 | E117: 1
A118: Ped, FI | B118: Not Applicable | C118: 1 | E118: 1
A119: Bike, ALL | B119: Not Applicable | C119: 1 | E119: 1
A120: Bike, FI | B120: Not Applicable | C120: 1 | E120: 1

Sheet Input Summary (hidden)
A1: Required Automated Input For Each Year | C1: Single Automated Data Pull
A3: General Information and Input Data for Urban and Suburban Arterial Intersections
A4: General Information | C4: Location Information
A5: Analyst | B5: =Input!C5 -> 0 | C5: City | D5: =Input!F5 -> 0
A6: Agency or Company | B6: =Input!C6 -> 0 | C6: Intersection | D6: =Input!F6 -> 0
A7: Date Performed | B7: =Input!C7 -> 00:00:00 | C7: Jurisdiction | D7: =Input!F7 -> 0
C8: Analysis Year | D8: =Input!F8 -> 0
A9: Facility Type: | B9: =Input!C61 -> Urban Three-Leg Signalized Intersection | C9: Discount Rate (i) | E9: =Input!B62 -> 0.07
A10: Sheet to Pull Data From: | B10: =Input!C11 -> 3SG MassDOT | C10: Intersection Type: | E10: =LEFT(B10,3) -> 3SG
A11: Number of Proposed Alternatives: | B11: =Input!D62 -> 0 | C11: Study Period: | E11: =Input!C8 -> 1
A12: Present Data:
A13: Present AADT(Major):
A14: Present AADT(Minor):
A15: Intersection Lighting (Present/Not Present): | E15: =Input!C12 -> Not Present
A17: Stop Controlled
A18: Present Data:
A19: Number of major-road approaches with left-turn lanes (0,1,2) | E19: =Input!G16 -> 0
A20: Number of major-road approaches with right-turn lanes (0,1,2) | E20: =Input!G17 -> 0
A22: Signal Controlled
A23: Present Data:
A24: Number of approaches with left-turn lanes (0,1,2,3,4) [for 3SG, use maximum value of 3] | E24: =Input!G20 -> 2
A25: Number of approaches with right-turn lanes (0,1,2,3,4) [for 3SG, use maximum value of 3] | E25: =Input!G21 -> 0
A26: Number of approaches with left-turn signal phasing [for 3SG, use maximum value of 3] | E26: =Input!G22 -> 0
A27: Type of left-turn signal phasing for Leg #1 | E27: =Input!G23 -> Permissive
A28: Type of left-turn signal phasing for Leg #2 | E28: =Input!G24 -> Permissive
A29: Type of left-turn signal phasing for Leg #3 | E29: =Input!G25 -> Permissive
A30: Type of left-turn signal phasing for Leg #4 (if applicable) | E30: =Input!G26 -> Permissive
A31: Number of approaches with right-turn-on-red prohibited [for 3SG, use maximum value of 3] | E31: =Input!G27 -> 0
A32: Intersection red light cameras (present/not present) | E32: =Input!G28 -> Not Present
A33: Sum of all pedestrian crossing volumes (PedVol) -- Signalized intersections only | E33: =Input!G29 -> 1
A34: Maximum number of lanes crossed by a pedestrian (nlanesx) | E34: =Input!G30 -> 0
A35: Number of bus stops within 300 m (1,000 ft) of the intersection | E35: =Input!G31 -> 0
A36: Schools within 300 m (1,000 ft) of the intersection (present/not present) | E36: =Input!G32 -> Not Present
A37: Number of alcohol sales establishments within 300 m (1,000 ft) of the intersection | E37: =Input!G33 -> 0

Sheet Output
B1: Ensure that program at end of Input was run. If any Input values are modified, the program must be run again. If cells display #REF, press the F9 key.
A2: Results | B2: Step 1.1C - Predicted Crash Frequency for the Sample Intersection
A3: Crash Type, Severity | B3: Total Predicted Crashes during the Study Period (Npr,study) | C3: Average Crash Frequency per Year | D3: Predicted Crash Frequency per Year (From Prediction Spreadsheet [Predicted Nb])
D4: Year 1 | E4: Year 2 | F4: Year 3 | G4: Year 4 | H4: Year 5 | I4: Year 6 | J4: Year 7 | K4: Year 8 | L4: Year 9 | M4: Year 10
A5: MV, FI | B5: =SUM(D5:M5) ->  | C5: =(SUM(D5:M5)/COUNT(D5:M5)) ->  | D5: =IF(eval('Construction - do not delete'!E110)="","",eval('Construction - do not delete'!E110)) ->  | E5: =IF(eval('Construction - do not delete'!F110)="","",eval('Construction - do not delete'!F110)) ->  | F5: =IF(eval('Construction - do not delete'!G110)="","",eval('Construction - do not delete'!G110)) ->  | G5: =IF(eval('Construction - do not delete'!H110)="","",eval('Construction - do not delete'!H110)) ->  | H5: =IF(eval('Construction - do not delete'!I110)="","",eval('Construction - do not delete'!I110)) ->  | I5: =IF(eval('Construction - do not delete'!J110)="","",eval('Construction - do not delete'!J110)) ->  | J5: =IF(eval('Construction - do not delete'!K110)="","",eval('Construction - do not delete'!K110)) ->  | K5: =IF(eval('Construction - do not delete'!L110)="","",eval('Construction - do not delete'!L110)) ->  | L5: =IF(eval('Construction - do not delete'!M110)="","",eval('Construction - do not delete'!M110)) ->  | M5: =IF(eval('Construction - do not delete'!N110)="","",eval('Construction - do not delete'!N110)) -> 
A6: MV, PDO | B6: =SUM(D6:M6) ->  | C6: =(SUM(D6:M6)/COUNT(D6:M6)) ->  | D6: =IF(eval('Construction - do not delete'!E111)="","",eval('Construction - do not delete'!E111)) ->  | E6: =IF(eval('Construction - do not delete'!F111)="","",eval('Construction - do not delete'!F111)) ->  | F6: =IF(eval('Construction - do not delete'!G111)="","",eval('Construction - do not delete'!G111)) ->  | G6: =IF(eval('Construction - do not delete'!H111)="","",eval('Construction - do not delete'!H111)) ->  | H6: =IF(eval('Construction - do not delete'!I111)="","",eval('Construction - do not delete'!I111)) ->  | I6: =IF(eval('Construction - do not delete'!J111)="","",eval('Construction - do not delete'!J111)) ->  | J6: =IF(eval('Construction - do not delete'!K111)="","",eval('Construction - do not delete'!K111)) ->  | K6: =IF(eval('Construction - do not delete'!L111)="","",eval('Construction - do not delete'!L111)) ->  | L6: =IF(eval('Construction - do not delete'!M111)="","",eval('Construction - do not delete'!M111)) ->  | M6: =IF(eval('Construction - do not delete'!N111)="","",eval('Construction - do not delete'!N111)) -> 
A7: SV, FI | B7: =SUM(D7:M7) ->  | C7: =(SUM(D7:M7)/COUNT(D7:M7)) ->  | D7: =IF(eval('Construction - do not delete'!E112)="","",eval('Construction - do not delete'!E112)) ->  | E7: =IF(eval('Construction - do not delete'!F112)="","",eval('Construction - do not delete'!F112)) ->  | F7: =IF(eval('Construction - do not delete'!G112)="","",eval('Construction - do not delete'!G112)) ->  | G7: =IF(eval('Construction - do not delete'!H112)="","",eval('Construction - do not delete'!H112)) ->  | H7: =IF(eval('Construction - do not delete'!I112)="","",eval('Construction - do not delete'!I112)) ->  | I7: =IF(eval('Construction - do not delete'!J112)="","",eval('Construction - do not delete'!J112)) ->  | J7: =IF(eval('Construction - do not delete'!K112)="","",eval('Construction - do not delete'!K112)) ->  | K7: =IF(eval('Construction - do not delete'!L112)="","",eval('Construction - do not delete'!L112)) ->  | L7: =IF(eval('Construction - do not delete'!M112)="","",eval('Construction - do not delete'!M112)) ->  | M7: =IF(eval('Construction - do not delete'!N112)="","",eval('Construction - do not delete'!N112)) -> 
A8: SV, PDO | D8: =IF(eval('Construction - do not delete'!E113)="","",eval('Construction - do not delete'!E113)) ->  | E8: =IF(eval('Construction - do not delete'!F113)="","",eval('Construction - do not delete'!F113)) ->  | F8: =IF(eval('Construction - do not delete'!G113)="","",eval('Construction - do not delete'!G113)) ->  | G8: =IF(eval('Construction - do not delete'!H113)="","",eval('Construction - do not delete'!H113)) ->  | H8: =IF(eval('Construction - do not delete'!I113)="","",eval('Construction - do not delete'!I113)) ->  | I8: =IF(eval('Construction - do not delete'!J113)="","",eval('Construction - do not delete'!J113)) ->  | J8: =IF(eval('Construction - do not delete'!K113)="","",eval('Construction - do not delete'!K113)) ->  | K8: =IF(eval('Construction - do not delete'!L113)="","",eval('Construction - do not delete'!L113)) ->  | L8: =IF(eval('Construction - do not delete'!M113)="","",eval('Construction - do not delete'!M113)) ->  | M8: =IF(eval('Construction - do not delete'!N113)="","",eval('Construction - do not delete'!N113)) -> 
A9: Ped, FI | C9: =SUM(D9:M9)/COUNT(D9:M9) ->  | D9: =IF(eval('Construction - do not delete'!E114)="","",eval('Construction - do not delete'!E114)) ->  | E9: =IF(eval('Construction - do not delete'!F114)="","",eval('Construction - do not delete'!F114)) ->  | F9: =IF(eval('Construction - do not delete'!G114)="","",eval('Construction - do not delete'!G114)) ->  | G9: =IF(eval('Construction - do not delete'!H114)="","",eval('Construction - do not delete'!H114)) ->  | H9: =IF(eval('Construction - do not delete'!I114)="","",eval('Construction - do not delete'!I114)) ->  | I9: =IF(eval('Construction - do not delete'!J114)="","",eval('Construction - do not delete'!J114)) ->  | J9: =IF(eval('Construction - do not delete'!K114)="","",eval('Construction - do not delete'!K114)) ->  | K9: =IF(eval('Construction - do not delete'!L114)="","",eval('Construction - do not delete'!L114)) ->  | L9: =IF(eval('Construction - do not delete'!M114)="","",eval('Construction - do not delete'!M114)) ->  | M9: =IF(eval('Construction - do not delete'!N114)="","",eval('Construction - do not delete'!N114)) -> 
A10: Ped, PDO
A11: Bike, FI | C11: =SUM(D11:M11)/COUNT(D11:M11) ->  | D11: =IF(eval('Construction - do not delete'!E116)="","",eval('Construction - do not delete'!E116)) ->  | E11: =IF(eval('Construction - do not delete'!F116)="","",eval('Construction - do not delete'!F116)) ->  | F11: =IF(eval('Construction - do not delete'!G116)="","",eval('Construction - do not delete'!G116)) ->  | G11: =IF(eval('Construction - do not delete'!H116)="","",eval('Construction - do not delete'!H116)) ->  | H11: =IF(eval('Construction - do not delete'!I116)="","",eval('Construction - do not delete'!I116)) ->  | I11: =IF(eval('Construction - do not delete'!J116)="","",eval('Construction - do not delete'!J116)) ->  | J11: =IF(eval('Construction - do not delete'!K116)="","",eval('Construction - do not delete'!K116)) ->  | K11: =IF(eval('Construction - do not delete'!L116)="","",eval('Construction - do not delete'!L116)) ->  | L11: =IF(eval('Construction - do not delete'!M116)="","",eval('Construction - do not delete'!M116)) ->  | M11: =IF(eval('Construction - do not delete'!N116)="","",eval('Construction - do not delete'!N116)) -> 
A12: Bike, PDO
A14: Step 1.1D - Expected number of crashes during the study period, calculated using EB
A15: Crash Type, Severity | B15: Predicted Crashes during the Study Period (Npr,study) | C15: Observed Crashes during the Study Period (Nobs,study) | D15: Overdispersion Parameter ( K ) | E15: Weight ( w ) | F15: Expected Crashes during the Study Period (Nexp,study)
A16: MV, FI | B16: =B5 ->  | C16: =Input!B39 -> INVALID | D16: =IF('Input Summary'!$E$10="3ST",'Intersection Tables'!F18,IF('Input Summary'!$E$10="3SG",'Intersection Tables'!F19,IF('Input Summary'!$E$10="4ST",'Intersection Tables'!F20,IF('Input Summary'!$E$10="4SG",'Intersection Tables'!F21,"Please Select Intersection Type")))) -> 0.77 | E16: =1/(1+B16*D16) ->  | F16: =E16*B16+(1-E16)*C16 -> 
A17: MV, PDO | B17: =B6 ->  | C17: =Input!B40 -> INVALID | D17: =IF('Input Summary'!$E$10="3ST",'Intersection Tables'!F23,IF('Input Summary'!$E$10="3SG",'Intersection Tables'!F24,IF('Input Summary'!$E$10="4ST",'Intersection Tables'!F25,IF('Input Summary'!$E$10="4SG",'Intersection Tables'!F26,"Please Select Intersection Type")))) -> 0.59 | E17: =1/(1+B17*D17) ->  | F17: =E17*B17+(1-E17)*C17 -> 
A18: SV, All | B18: =B19+B20 ->  | C18: =C19+C20 ->  | D18: =IF('Input Summary'!$E$10="3ST",'Intersection Tables'!M13,IF('Input Summary'!$E$10="3SG",'Intersection Tables'!M14,IF('Input Summary'!$E$10="4ST",'Intersection Tables'!M15,IF('Input Summary'!$E$10="4SG",'Intersection Tables'!M16,"Please Select Intersection Type")))) -> 0.2 | E18: =1/(1+B18*D18) ->  | F18: =E18*B18+(1-E18)*C18 ->  | G18: Row used only for 3ST and 4ST calculation of SV, FI (see formula in cell F19)
A19: SV, FI | B19: =B7 ->  | C19: =Input!B41 -> INVALID | D19: =IF('Input Summary'!$E$10="3ST",'Intersection Tables'!M18,IF('Input Summary'!$E$10="3SG",'Intersection Tables'!M19,IF('Input Summary'!$E$10="4ST",'Intersection Tables'!M20,IF('Input Summary'!$E$10="4SG",'Intersection Tables'!M21,"Please Select Intersection Type")))) -> 0.16 | F19: =IF(OR('Input Summary'!E10="3SG",'Input Summary'!E10="4SG"),(E19*B19+(1-E19)*C19),Output!F18-Output!F20) -> 
A20: SV, PDO | B20: =B8 ->  | C20: =Input!B42 -> INVALID | D20: =IF('Input Summary'!$E$10="3ST",'Intersection Tables'!M23,IF('Input Summary'!$E$10="3SG",'Intersection Tables'!M24,IF('Input Summary'!$E$10="4ST",'Intersection Tables'!M25,IF('Input Summary'!$E$10="4SG",'Intersection Tables'!M26,"Please Select Intersection Type")))) -> 0.55 | F20: =E20*B20+(1-E20)*C20 -> 
A21: Ped, FI | B21: =B9 ->  | C21: =Input!B43 -> INVALID | D21: =IF('Input Summary'!$E$10="3ST",0,IF('Input Summary'!$E$10="3SG",'Intersection Tables'!V13,IF('Input Summary'!$E$10="4ST",0,IF('Input Summary'!$E$10="4SG",'Intersection Tables'!V14,"Please Select Intersection Type")))) -> 0.22 | F21: =E21*B21+(1-E21)*C21 -> 
A22: Ped, PDO
A23: Bike, FI | B23: =B11 ->  | C23: =Input!B45 -> INVALID | D23: =IF('Input Summary'!$E$10="3ST",0,IF('Input Summary'!$E$10="3SG",0.41,IF('Input Summary'!$E$10="4ST",0,IF('Input Summary'!$E$10="4SG",0.1,"Please Select Intersection Type")))) -> 0.41 | F23: =E23*B23+(1-E23)*C23 -> 
A24: Bike, PDO
A25: Total (FI) | B25: =SUM(B16,B19,B21,B23) ->  | C25: =SUM(C16,C19,C21,C23) -> 0 | D25: - | E25: - | F25: =SUM(F16,F19,F21,F23) -> 
A26: Total (PDO) | B26: =SUM(B17,B20) ->  | C26: =SUM(C17,C20) -> 0 | D26: - | E26: - | F26: =SUM(F17,F20) -> 
A28: Step 1.1E - Calculate Expected Number of Crashes in the Design Year
A29: Crash Type, Severity | B29: Predicted Crashes during the Study Period (Npr,study) | C29: Predicted Crashes during the Design Year (Npr,design) | D29: Growth Ratio (Npr,design/Npr,study) | E29: Expected Crashes during the Study Period (Nexp,study) | F29: Estimated Crashes during the Design Year (Nestimated,design,nobuild)
A30: MV, FI | B30: =B5 ->  | C30: =eval('Construction - do not delete'!B122) ->  | D30: =IFERROR((C30/B30),0) -> 0 | E30: =F16 ->  | F30: =IFERROR((C30/B30*E30),0) -> 0
A31: MV, PDO | B31: =B6 ->  | C31: =eval('Construction - do not delete'!B123) ->  | D31: =IFERROR((C31/B31),0) -> 0 | E31: =F17 ->  | F31: 0
A32: SV, FI | B32: =B7 ->  | C32: =eval('Construction - do not delete'!B124) ->  | D32: 0 | E32: =F19 ->  | F32: 0
A33: SV, PDO | B33: =B8 ->  | C33: =eval('Construction - do not delete'!B125) ->  | D33: 0 | E33: =F20 ->  | F33: 0
A34: Ped, FI | B34: =B9 ->  | C34: =eval('Construction - do not delete'!B126) ->  | D34: =IFERROR((C34/B34),0) -> 0 | E34: =F21 ->  | F34: 0
A35: Ped, PDO | B35: =D10 -> 0 | C35: =eval('Construction - do not delete'!R74) ->  | D35: =C35/B35 ->  | E35: =E22*B22+(1-E22)*C22 -> 0 | F35: 0
A36: Bike, FI | B36: =B11 ->  | C36: =eval('Construction - do not delete'!B128) ->  | D36: =IFERROR((C36/B36),0) -> 0 | F36: 0
A37: Bike, PDO | B37: =D12 -> 0 | C37: =eval('Construction - do not delete'!R76) ->  | D37: =C37/B37 ->  | E37: 0 | F37: 0
A38: Total (FI) | B38: =SUM(B30,B32,B34,B36) ->  | C38: =SUM(C30,C32,C34,C36) ->  | D38: - | E38: - | F38: =SUM(F30,F32,F34,F36) -> 0
A39: Total (PDO) | B39: =SUM(B31,B33) ->  | C39: =SUM(C31,C33) ->  | D39: - | E39: - | F39: =SUM(F31,F33) -> 0
A40: Total | B40: =SUM(B30:B34,B36) ->  | C40: =SUM(C30:C34,C36) ->  | D40: - | E40: - | F40: =SUM(F30:F34,F36) -> 0
A44: Step 2 – Expected Change in Safety Performance
A45: Alternative 1 | F45: Estimated Lifetime of Alternative 1: | G45: =IF(Input!B69="","",Input!B69) -> 
A46: Countermeasure 1: | B46: =IF(Input!B67="","",Input!B67) ->  | D46: Countermeasure 2: | E46: =IF(Input!B68="","",Input!B68) -> 
A47: Crash Type, Severity | B47: Estimated Crashes during the Design Year | C47: CMF1 | D47: CMF2 (If Applicable) | E47: Resultant CMF | F47: Estimated Crashes during the Design Year for Alternative 1 | G47: Reduced Crashes for Alternative 1
A48: MV, ALL | B48: =IF('Input Summary'!$B$11>=1,F30+F31,"") ->  | C48: =Input!C77 -> 1 | D48: =IF(Input!B77="Not Applicable","",Input!E77) ->  | E48: =IF(Input!C77="","",IF(Input!B77="Not Applicable",Input!C77,IF(Input!B77="Multiplicative",'Construction - do not delete'!B145,IF(Input!B77="Additive",'Construction - do not delete'!D145,IF(Input!B77="Dominant Effect",'Construction - do not delete'!E145,IF(Input!B77="Dominant Common Residuals",'Construction - do not delete'!G145,"Error")))))) -> 1 | F48: =IF(B48="","",B48*E48) ->  | G48: =IF(B48="","",B48-F48) -> 
A49: MV, FI | B49: =IF('Input Summary'!$B$11>=1,Output!$F$30,"") ->  | C49: =Input!C78 -> 1 | D49: =IF(Input!B78="Not Applicable","",Input!E78) ->  | E49: =IF(Input!C78="","",IF(Input!B78="Not Applicable",Input!C78,IF(Input!B78="Multiplicative",'Construction - do not delete'!B146,IF(Input!B78="Additive",'Construction - do not delete'!D146,IF(Input!B78="Dominant Effect",'Construction - do not delete'!E146,IF(Input!B78="Dominant Common Residuals",'Construction - do not delete'!G146,"Error")))))) -> 1 | F49: =IF(B49="","",B49*E49) ->  | G49: =IF(B49="","",B49-F49) ->  | H49: =IF(E49<0,"Error Confirm CMF Values","") -> 
A50: MV, PDO | B50: =IF('Input Summary'!$B$11>=1,Output!$F$31,"") ->  | F50: =IF(B50="","",F48-F49) ->  | G50: =IF(B50="","",B50-F50) ->  | H50: =IF(F50<0,"Check CMF Input Values","") -> 
A51: SV, ALL | B51: =IF('Input Summary'!$B$11>=1,F32+F33,"") ->  | C51: =Input!C79 -> 1 | D51: =IF(Input!B79="Not Applicable","",Input!E79) ->  | E51: =IF(Input!C79="","",IF(Input!B79="Not Applicable",Input!C79,IF(Input!B79="Multiplicative",'Construction - do not delete'!B147,IF(Input!B79="Additive",'Construction - do not delete'!D147,IF(Input!B79="Dominant Effect",'Construction - do not delete'!E147,IF(Input!B79="Dominant Common Residuals",'Construction - do not delete'!G147,"Error")))))) -> 1 | F51: =IF(B51="","",B51*E51) ->  | G51: =IF(B51="","",B51-F51) -> 
A52: SV, FI | B52: =IF('Input Summary'!$B$11>=1,Output!$F$32,"") ->  | C52: =Input!C80 -> 1 | D52: =IF(Input!B80="Not Applicable","",Input!E80) ->  | E52: =IF(Input!C80="","",IF(Input!B80="Not Applicable",Input!C80,IF(Input!B80="Multiplicative",'Construction - do not delete'!B148,IF(Input!B80="Additive",'Construction - do not delete'!D148,IF(Input!B80="Dominant Effect",'Construction - do not delete'!E148,IF(Input!B80="Dominant Common Residuals",'Construction - do not delete'!G148,"Error")))))) -> 1 | F52: =IF(B52="","",B52*E52) -> 
A53: SV, PDO | B53: =IF('Input Summary'!$B$11>=1,Output!$F$33,"") ->  | C53: =Input!C80 -> 1 | D53: =IF(Input!B80="Not Applicable","",Input!E80) ->  | E53: =IF(Input!C80="","",IF(Input!B80="Not Applicable",Input!C80,IF(Input!B80="Multiplicative",'Construction - do not delete'!B148,IF(Input!B80="Additive",'Construction - do not delete'!D148,IF(Input!B80="Dominant Effect",'Construction - do not delete'!E148,IF(Input!B80="Dominant Common Residuals",'Construction - do not delete'!G148,"Error")))))) -> 1 | F53: =IF(B53="","",F51-F52) ->  | H53: =IF(F53<0,"Check CMF Input Values","") -> 
A54: Ped, ALL | B54: =IF('Input Summary'!$B$11>=1,F34+F35,"") ->  | C54: =Input!C81 -> 1 | D54: =IF(Input!B81="Not Applicable","",Input!E81) ->  | E54: =IF(Input!C81="","",IF(Input!B81="Not Applicable",Input!C81,IF(Input!B81="Multiplicative",'Construction - do not delete'!B149,IF(Input!B81="Additive",'Construction - do not delete'!D149,IF(Input!B81="Dominant Effect",'Construction - do not delete'!E149,IF(Input!B81="Dominant Common Residuals",'Construction - do not delete'!G149,"Error")))))) -> 1 | F54: =IF(B54="","",B54*E54) ->  | G54: =IF(B54="","",B54-F54) -> 
A55: Ped, FI | B55: =IF('Input Summary'!$B$11>=1,Output!$F$34,"") ->  | C55: =Input!C82 -> 5.53 | D55: =IF(Input!B82="Not Applicable","",Input!E82) ->  | E55: =IF(Input!C82="","",IF(Input!B82="Not Applicable",Input!C82,IF(Input!B82="Multiplicative",'Construction - do not delete'!B150,IF(Input!B82="Additive",'Construction - do not delete'!D150,IF(Input!B82="Dominant Effect",'Construction - do not delete'!E150,IF(Input!B82="Dominant Common Residuals",'Construction - do not delete'!G150,"Error")))))) -> 5.53 | F55: =IF(B55="","",F54) -> 
A56: Ped, PDO | B56: =IF('Input Summary'!$B$11>=1,Output!$F$35,"") ->  | C56: =Input!C82 -> 5.53 | D56: =IF(Input!B82="Not Applicable","",Input!E82) ->  | E56: =IF(Input!C82="","",IF(Input!B82="Not Applicable",Input!C82,IF(Input!B82="Multiplicative",'Construction - do not delete'!B150,IF(Input!B82="Additive",'Construction - do not delete'!D150,IF(Input!B82="Dominant Effect",'Construction - do not delete'!E150,IF(Input!B82="Dominant Common Residuals",'Construction - do not delete'!G150,"Error")))))) -> 5.53 | F56: =IF(B56="","",F54-F55) -> 
A57: Bike, ALL | B57: =IF('Input Summary'!$B$11>=1,F36+F37,"") ->  | C57: =Input!C83 -> 1 | D57: =IF(Input!B83="Not Applicable","",Input!E83) ->  | E57: =IF(Input!C83="","",IF(Input!B83="Not Applicable",Input!C83,IF(Input!B83="Multiplicative",'Construction - do not delete'!B151,IF(Input!B83="Additive",'Construction - do not delete'!D151,IF(Input!B83="Dominant Effect",'Construction - do not delete'!E151,IF(Input!B83="Dominant Common Residuals",'Construction - do not delete'!G151,"Error")))))) -> 1 | F57: =IF(B57="","",B57*E57) ->  | G57: =IF(B57="","",B57-F57) -> 
A58: Bike, FI | B58: =IF('Input Summary'!$B$11>=1,Output!$F$36,"") ->  | C58: =Input!C84 -> 1 | D58: =IF(Input!B84="Not Applicable","",Input!E84) ->  | E58: =IF(Input!C84="","",IF(Input!B84="Not Applicable",Input!C84,IF(Input!B84="Multiplicative",'Construction - do not delete'!B152,IF(Input!B84="Additive",'Construction - do not delete'!D152,IF(Input!B84="Dominant Effect",'Construction - do not delete'!E152,IF(Input!B84="Dominant Common Residuals",'Construction - do not delete'!G152,"Error")))))) -> 1 | F58: =IF(B58="","",F57) -> 
A59: Bike, PDO | B59: =IF('Input Summary'!$B$11>=1,Output!$F$37,"") ->  | C59: =Input!C84 -> 1 | D59: =IF(Input!B84="Not Applicable","",Input!E84) ->  | E59: =IF(Input!C84="","",IF(Input!B84="Not Applicable",Input!C84,IF(Input!B84="Multiplicative",'Construction - do not delete'!B152,IF(Input!B84="Additive",'Construction - do not delete'!D152,IF(Input!B84="Dominant Effect",'Construction - do not delete'!E152,IF(Input!B84="Dominant Common Residuals",'Construction - do not delete'!G152,"Error")))))) -> 1 | F59: =IF(B59="","",F57-F58) -> 
A60: Total, FI | B60: =IFERROR(B49+B52+B55+B58,"") ->  | F60: =IFERROR(F49+F52+F55+F58,"") ->  | G60: =IFERROR(G49+G52+G55+G58,"") -> 
A61: Total, PDO | B61: =IFERROR(B50+B53+B56+B59,"") ->  | F61: =IFERROR(F50+F53,"") ->  | G61: =IFERROR(G50+G53+G56+G59,"") -> 
A63: Alternative 2 | F63: Estimated Lifetime of Alternative 2: | G63: =IF(Input!C69="","",Input!C69) -> 
A64: Countermeasure 1: | B64: =IF(Input!C67="","",Input!C67) ->  | D64: Countermeasure 2: | E64: =IF(Input!C68="","",Input!C68) -> 
A65: Crash Type, Severity | B65: Estimated Crashes during the Design Year | C65: CMF1 | D65: CMF2 (If Applicable) | E65: Resultant CMF | F65: Estimated Crashes during the Design Year for Alternative 2 | G65: Reduced Crashes for Alternative 2
A66: MV, ALL | B66: =IF('Input Summary'!$B$11>=2,F30+F31,"") ->  | C66: =Input!C89 -> 1 | D66: =IF(Input!B89="Not Applicable","",Input!E89) ->  | E66: =IF(Input!C89="","",IF(Input!B89="Not Applicable",Input!C89,IF(Input!B89="Multiplicative",'Construction - do not delete'!B157,IF(Input!B89="Additive",'Construction - do not delete'!D157,IF(Input!B89="Dominant Effect",'Construction - do not delete'!E157,IF(Input!B89="Dominant Common Residuals",'Construction - do not delete'!G157,"Error")))))) -> 1 | F66: =IF(B66="","",B66*E66) ->  | G66: =IF(B66="","",B66-F66) -> 
A67: MV, FI | B67: =IF('Input Summary'!$B$11>=2,Output!$F$30,"") ->  | C67: =Input!C90 -> 1 | D67: =IF(Input!B90="Not Applicable","",Input!E90) ->  | E67: =IF(Input!C90="","",IF(Input!B90="Not Applicable",Input!C90,IF(Input!B90="Multiplicative",'Construction - do not delete'!B158,IF(Input!B90="Additive",'Construction - do not delete'!D158,IF(Input!B90="Dominant Effect",'Construction - do not delete'!E158,IF(Input!B90="Dominant Common Residuals",'Construction - do not delete'!G158,"Error")))))) -> 1 | F67: =IF(B67="","",B67*E67) ->  | G67: =IF(B67="","",B67-F67) -> 
A68: MV, PDO | B68: =IF('Input Summary'!$B$11>=2,Output!$F$31,"") ->  | F68: =IF(B68="","",F66-F67) ->  | G68: =IF(B68="","",B68-F68) ->  | H68: =IF(F68<0,"Check CMF Input Values","") -> 
A69: SV, ALL | B69: =IF('Input Summary'!$B$11>=2,F32+F33,"") ->  | C69: =Input!C91 -> 1 | D69: =IF(Input!B91="Not Applicable","",Input!E91) ->  | E69: =IF(Input!C91="","",IF(Input!B91="Not Applicable",Input!C91,IF(Input!B91="Multiplicative",'Construction - do not delete'!B159,IF(Input!B91="Additive",'Construction - do not delete'!D159,IF(Input!B91="Dominant Effect",'Construction - do not delete'!E159,IF(Input!B91="Dominant Common Residuals",'Construction - do not delete'!G159,"Error")))))) -> 1 | F69: =IF(B69="","",B69*E69) ->  | G69: =IF(B69="","",B69-F69) -> 
A70: SV, FI | B70: =IF('Input Summary'!$B$11>=2,Output!$F$32,"") ->  | C70: =Input!C92 -> 1 | D70: =IF(Input!B92="Not Applicable","",Input!E92) ->  | E70: =IF(Input!C92="","",IF(Input!B92="Not Applicable",Input!C92,IF(Input!B92="Multiplicative",'Construction - do not delete'!B160,IF(Input!B92="Additive",'Construction - do not delete'!D160,IF(Input!B92="Dominant Effect",'Construction - do not delete'!E160,IF(Input!B92="Dominant Common Residuals",'Construction - do not delete'!G160,"Error")))))) -> 1 | F70: =IF(B70="","",B70*E70) -> 
A71: SV, PDO | B71: =IF('Input Summary'!$B$11>=2,Output!$F$33,"") ->  | C71: =Input!C92 -> 1 | D71: =IF(Input!B92="Not Applicable","",Input!E92) ->  | E71: =IF(Input!C92="","",IF(Input!B92="Not Applicable",Input!C92,IF(Input!B92="Multiplicative",'Construction - do not delete'!B160,IF(Input!B92="Additive",'Construction - do not delete'!D160,IF(Input!B92="Dominant Effect",'Construction - do not delete'!E160,IF(Input!B92="Dominant Common Residuals",'Construction - do not delete'!G160,"Error")))))) -> 1 | F71: =IF(B71="","",F69-F70) ->  | H71: =IF(F71<0,"Check CMF Input Values","") -> 
A72: Ped, ALL | B72: =IF('Input Summary'!$B$11>=2,F34+F35,"") ->  | C72: =Input!C93 -> 1 | D72: =IF(Input!B93="Not Applicable","",Input!E93) ->  | E72: =IF(Input!C93="","",IF(Input!B93="Not Applicable",Input!C93,IF(Input!B93="Multiplicative",'Construction - do not delete'!B161,IF(Input!B93="Additive",'Construction - do not delete'!D161,IF(Input!B93="Dominant Effect",'Construction - do not delete'!E161,IF(Input!B93="Dominant Common Residuals",'Construction - do not delete'!G161,"Error")))))) -> 1 | F72: =IF(B72="","",B72*E72) ->  | G72: =IF(B72="","",B72-F72) -> 
A73: Ped, FI | B73: =IF('Input Summary'!$B$11>=2,Output!$F$34,"") ->  | C73: =Input!C94 -> 1 | D73: =IF(Input!B94="Not Applicable","",Input!E94) ->  | E73: =IF(Input!C94="","",IF(Input!B94="Not Applicable",Input!C94,IF(Input!B94="Multiplicative",'Construction - do not delete'!B162,IF(Input!B94="Additive",'Construction - do not delete'!D162,IF(Input!B94="Dominant Effect",'Construction - do not delete'!E162,IF(Input!B94="Dominant Common Residuals",'Construction - do not delete'!G162,"Error")))))) -> 1 | F73: =IF(B73="","",F72) -> 
A74: Ped, PDO | B74: =IF('Input Summary'!$B$11>=2,Output!$F$35,"") ->  | C74: =Input!C94 -> 1 | D74: =IF(Input!B94="Not Applicable","",Input!E94) ->  | E74: =IF(Input!C94="","",IF(Input!B94="Not Applicable",Input!C94,IF(Input!B94="Multiplicative",'Construction - do not delete'!B162,IF(Input!B94="Additive",'Construction - do not delete'!D162,IF(Input!B94="Dominant Effect",'Construction - do not delete'!E162,IF(Input!B94="Dominant Common Residuals",'Construction - do not delete'!G162,"Error")))))) -> 1 | F74: =IF(B74="","",F72-F73) ->  | H74: =IF(F74<0,"Check CMF Input Values","") -> 
A75: Bike, ALL | B75: =IF('Input Summary'!$B$11>=2,F36+F37,"") ->  | C75: =Input!C95 -> 1 | D75: =IF(Input!B95="Not Applicable","",Input!E95) ->  | E75: =IF(Input!C95="","",IF(Input!B95="Not Applicable",Input!C95,IF(Input!B95="Multiplicative",'Construction - do not delete'!B163,IF(Input!B95="Additive",'Construction - do not delete'!D163,IF(Input!B95="Dominant Effect",'Construction - do not delete'!E163,IF(Input!B95="Dominant Common Residuals",'Construction - do not delete'!G163,"Error")))))) -> 1 | F75: =IF(B75="","",B75*E75) ->  | G75: =IF(B75="","",B75-F75) -> 
A76: Bike, FI | B76: =IF('Input Summary'!$B$11>=2,Output!$F$36,"") ->  | C76: =Input!C96 -> 1 | D76: =IF(Input!B96="Not Applicable","",Input!E96) ->  | E76: =IF(Input!C96="","",IF(Input!B96="Not Applicable",Input!C96,IF(Input!B96="Multiplicative",'Construction - do not delete'!B164,IF(Input!B96="Additive",'Construction - do not delete'!D164,IF(Input!B96="Dominant Effect",'Construction - do not delete'!E164,IF(Input!B96="Dominant Common Residuals",'Construction - do not delete'!G164,"Error")))))) -> 1 | F76: =IF(B76="","",F75) -> 
A77: Bike, PDO | B77: =IF('Input Summary'!$B$11>=2,Output!$F$37,"") ->  | C77: =Input!C96 -> 1 | D77: =IF(Input!B96="Not Applicable","",Input!E96) ->  | E77: =IF(Input!C96="","",IF(Input!B96="Not Applicable",Input!C96,IF(Input!B96="Multiplicative",'Construction - do not delete'!B164,IF(Input!B96="Additive",'Construction - do not delete'!D164,IF(Input!B96="Dominant Effect",'Construction - do not delete'!E164,IF(Input!B96="Dominant Common Residuals",'Construction - do not delete'!G164,"Error")))))) -> 1 | F77: =IF(B77="","",F75-F76) ->  | H77: =IF(F77<0,"Check CMF Input Values","") -> 
A78: Total, FI | B78: =IFERROR(B67+B70+B73+B76,"") ->  | F78: =IFERROR(F67+F70+F73+F76,"") ->  | G78: =IFERROR(G67+G70+G73+G76,"") -> 
A79: Total, PDO | B79: =IFERROR(B68+B71+B74+B77,"") ->  | F79: =IFERROR(F68+F71,"") ->  | G79: =IFERROR(G68+G71+G74+G77,"") -> 
A81: Alternative 3 | F81: Estimated Lifetime of Alternative 3: | G81: =IF(Input!D69="","",Input!D69) -> 
A82: Countermeasure 1: | B82: =IF(Input!D67="","",Input!D67) ->  | D82: Countermeasure 2: | E82: =IF(Input!D68="","",Input!D68) -> 
A83: Crash Type, Severity | B83: Estimated Crashes during the Design Year | C83: CMF1 | D83: CMF2 (If Applicable) | E83: Resultant CMF | F83: Estimated Crashes during the Design Year for Alternative 3 | G83: Reduced Crashes for Alternative 3
A84: MV, ALL | B84: =IF('Input Summary'!$B$11>=3,F30+F31,"") ->  | C84: =Input!C101 -> 1 | D84: =IF(Input!B101="Not Applicable","",Input!E101) ->  | E84: =IF(Input!C101="","",IF(Input!B101="Not Applicable",Input!C101,IF(Input!B101="Multiplicative",'Construction - do not delete'!B169,IF(Input!B101="Additive",'Construction - do not delete'!D169,IF(Input!B101="Dominant Effect",'Construction - do not delete'!E169,IF(Input!B101="Dominant Common Residuals",'Construction - do not delete'!G169,"Error")))))) -> 1 | F84: =IF(B84="","",B84*E84) ->  | G84: =IF(B84="","",B84-F84) -> 
A85: MV, FI | B85: =IF('Input Summary'!$B$11>=3,Output!$F$30,"") ->  | C85: =Input!C102 -> 1 | D85: =IF(Input!B102="Not Applicable","",Input!E102) ->  | E85: =IF(Input!C102="","",IF(Input!B102="Not Applicable",Input!C102,IF(Input!B102="Multiplicative",'Construction - do not delete'!B170,IF(Input!B102="Additive",'Construction - do not delete'!D170,IF(Input!B102="Dominant Effect",'Construction - do not delete'!E170,IF(Input!B102="Dominant Common Residuals",'Construction - do not delete'!G170,"Error")))))) -> 1 | F85: =IF(B85="","",B85*E85) ->  | G85: =IF(B85="","",B85-F85) -> 
A86: MV, PDO | B86: =IF('Input Summary'!$B$11>=3,Output!$F$31,"") ->  | F86: =IF(B86="","",F84-F85) ->  | G86: =IF(B86="","",B86-F86) ->  | H86: =IF(F86<0,"Check CMF Input Values","") -> 
A87: SV, ALL | B87: =IF('Input Summary'!$B$11>=3,F32+F33,"") ->  | C87: =Input!C103 -> 1 | D87: =IF(Input!B103="Not Applicable","",Input!E103) ->  | E87: =IF(Input!C103="","",IF(Input!B103="Not Applicable",Input!C103,IF(Input!B103="Multiplicative",'Construction - do not delete'!B171,IF(Input!B103="Additive",'Construction - do not delete'!D171,IF(Input!B103="Dominant Effect",'Construction - do not delete'!E171,IF(Input!B103="Dominant Common Residuals",'Construction - do not delete'!G171,"Error")))))) -> 1 | F87: =IF(B87="","",B87*E87) ->  | G87: =IF(B87="","",B87-F87) -> 
A88: SV, FI | B88: =IF('Input Summary'!$B$11>=3,Output!$F$32,"") ->  | C88: =Input!C104 -> 1 | D88: =IF(Input!B104="Not Applicable","",Input!E104) ->  | E88: =IF(Input!C104="","",IF(Input!B104="Not Applicable",Input!C104,IF(Input!B104="Multiplicative",'Construction - do not delete'!B172,IF(Input!B104="Additive",'Construction - do not delete'!D172,IF(Input!B104="Dominant Effect",'Construction - do not delete'!E172,IF(Input!B104="Dominant Common Residuals",'Construction - do not delete'!G172,"Error")))))) -> 1 | F88: =IF(B88="","",B88*E88) ->  | G88: =IF(B88="","",B88-F88) -> 
A89: SV, PDO | B89: =IF('Input Summary'!$B$11>=3,Output!$F$33,"") ->  | C89: =Input!C104 -> 1 | D89: =IF(Input!B104="Not Applicable","",Input!E104) ->  | E89: =IF(Input!C104="","",IF(Input!B104="Not Applicable",Input!C104,IF(Input!B104="Multiplicative",'Construction - do not delete'!B172,IF(Input!B104="Additive",'Construction - do not delete'!D172,IF(Input!B104="Dominant Effect",'Construction - do not delete'!E172,IF(Input!B104="Dominant Common Residuals",'Construction - do not delete'!G172,"Error")))))) -> 1 | F89: =IF(B89="","",F87-F88) ->  | H89: =IF(F89<0,"Check CMF Input Values","") -> 
A90: Ped, ALL | B90: =IF('Input Summary'!$B$11>=3,F34+F35,"") ->  | C90: =Input!C105 -> 1 | D90: =IF(Input!B105="Not Applicable","",Input!E105) ->  | E90: =IF(Input!C105="","",IF(Input!B105="Not Applicable",Input!C105,IF(Input!B105="Multiplicative",'Construction - do not delete'!B173,IF(Input!B105="Additive",'Construction - do not delete'!D173,IF(Input!B105="Dominant Effect",'Construction - do not delete'!E173,IF(Input!B105="Dominant Common Residuals",'Construction - do not delete'!G173,"Error")))))) -> 1 | F90: =IF(B90="","",B90*E90) ->  | G90: =IF(B90="","",B90-F90) -> 
A91: Ped, FI | B91: =IF('Input Summary'!$B$11>=3,Output!$F$34,"") ->  | C91: =Input!C106 -> 1 | D91: =IF(Input!B106="Not Applicable","",Input!E106) ->  | E91: =IF(Input!C106="","",IF(Input!B106="Not Applicable",Input!C106,IF(Input!B106="Multiplicative",'Construction - do not delete'!B174,IF(Input!B106="Additive",'Construction - do not delete'!D174,IF(Input!B106="Dominant Effect",'Construction - do not delete'!E174,IF(Input!B106="Dominant Common Residuals",'Construction - do not delete'!G174,"Error")))))) -> 1 | F91: =IF(B91="","",F90) -> 
A92: Ped, PDO | B92: =IF('Input Summary'!$B$11>=3,Output!$F$35,"") ->  | C92: =Input!C106 -> 1 | D92: =IF(Input!B106="Not Applicable","",Input!E106) ->  | E92: =IF(Input!C106="","",IF(Input!B106="Not Applicable",Input!C106,IF(Input!B106="Multiplicative",'Construction - do not delete'!B174,IF(Input!B106="Additive",'Construction - do not delete'!D174,IF(Input!B106="Dominant Effect",'Construction - do not delete'!E174,IF(Input!B106="Dominant Common Residuals",'Construction - do not delete'!G174,"Error")))))) -> 1 | F92: =IF(B92="","",F90-F91) ->  | H92: =IF(F92<0,"Check CMF Input Values","") -> 
A93: Bike, ALL | B93: =IF('Input Summary'!$B$11>=3,F36+F37,"") ->  | C93: =Input!C107 -> 1 | D93: =IF(Input!B107="Not Applicable","",Input!E107) ->  | E93: =IF(Input!C107="","",IF(Input!B107="Not Applicable",Input!C107,IF(Input!B107="Multiplicative",'Construction - do not delete'!B175,IF(Input!B107="Additive",'Construction - do not delete'!D175,IF(Input!B107="Dominant Effect",'Construction - do not delete'!E175,IF(Input!B107="Dominant Common Residuals",'Construction - do not delete'!G175,"Error")))))) -> 1 | F93: =IF(B93="","",B93*E93) ->  | G93: =IF(B93="","",B93-F93) -> 
A94: Bike, FI | B94: =IF('Input Summary'!$B$11>=3,Output!$F$36,"") ->  | C94: =Input!C108 -> 1 | D94: =IF(Input!B108="Not Applicable","",Input!E108) ->  | E94: =IF(Input!C108="","",IF(Input!B108="Not Applicable",Input!C108,IF(Input!B108="Multiplicative",'Construction - do not delete'!B176,IF(Input!B108="Additive",'Construction - do not delete'!D176,IF(Input!B108="Dominant Effect",'Construction - do not delete'!E176,IF(Input!B108="Dominant Common Residuals",'Construction - do not delete'!G176,"Error")))))) -> 1 | F94: =IF(B94="","",F93) -> 
A95: Bike, PDO | B95: =IF('Input Summary'!$B$11>=3,Output!$F$37,"") ->  | C95: =Input!C108 -> 1 | D95: =IF(Input!B108="Not Applicable","",Input!E108) ->  | E95: =IF(Input!C108="","",IF(Input!B108="Not Applicable",Input!C108,IF(Input!B108="Multiplicative",'Construction - do not delete'!B176,IF(Input!B108="Additive",'Construction - do not delete'!D176,IF(Input!B108="Dominant Effect",'Construction - do not delete'!E176,IF(Input!B108="Dominant Common Residuals",'Construction - do not delete'!G176,"Error")))))) -> 1 | F95: =IF(B95="","",F93-F94) ->  | H95: =IF(F95<0,"Check CMF Input Values","") -> 
A96: Total, FI | B96: =IFERROR(B85+B88+B91+B94,"") ->  | F96: =IFERROR(F85+F88+F91+F94,"") ->  | G96: =IFERROR(G85+G88+G91+G94,"") -> 
A97: Total, PDO | B97: =IFERROR(B86+B89+B92+B95,"") ->  | F97: =IFERROR(F86+F89,"") ->  | G97: =IFERROR(G86+G89+G92+G95,"") -> 
A99: Alternative 4 | F99: Estimated Lifetime of Alternative 4: | G99: =IF(Input!E69="","",Input!E69) -> 
A100: Countermeasure 1: | B100: =IF(Input!E67="","",Input!E67) ->  | D100: Countermeasure 2: | E100: =IF(Input!E68="","",Input!E68) -> 
A101: Crash Type, Severity | B101: Estimated Crashes during the Design Year | C101: CMF1 | D101: CMF2 (If Applicable) | E101: Resultant CMF | F101: Estimated Crashes during the Design Year for Alternative 4 | G101: Reduced Crashes for Alternative 4
A102: MV, All | B102: =IF('Input Summary'!$B$11=4,F30+F31,"") ->  | C102: =Input!C113 -> 1 | D102: =IF(Input!B113="Not Applicable","",Input!E113) ->  | E102: =IF(Input!C113="","",IF(Input!B113="Not Applicable",Input!C113,IF(Input!B113="Multiplicative",'Construction - do not delete'!B181,IF(Input!B113="Additive",'Construction - do not delete'!D181,IF(Input!B113="Dominant Effect",'Construction - do not delete'!E181,IF(Input!B113="Dominant Common Residuals",'Construction - do not delete'!G181,"Error")))))) -> 1 | F102: =IF(B102="","",B102*E102) ->  | G102: =IF(B102="","",B102-F102) -> 
A103: MV, FI | B103: =IF('Input Summary'!$B$11=4,Output!$F$30,"") ->  | C103: =Input!C114 -> 1 | D103: =IF(Input!B114="Not Applicable","",Input!E114) ->  | E103: =IF(Input!C114="","",IF(Input!B114="Not Applicable",Input!C114,IF(Input!B114="Multiplicative",'Construction - do not delete'!B182,IF(Input!B114="Additive",'Construction - do not delete'!D182,IF(Input!B114="Dominant Effect",'Construction - do not delete'!E182,IF(Input!B114="Dominant Common Residuals",'Construction - do not delete'!G182,"Error")))))) -> 1 | F103: =IF(B103="","",B103*E103) ->  | G103: =IF(B103="","",B103-F103) -> 
A104: MV, PDO | B104: =IF('Input Summary'!$B$11=4,Output!$F$31,"") ->  | C104: =Input!C114 -> 1 | D104: =IF(Input!B114="Not Applicable","",Input!E114) ->  | E104: =IF(Input!C114="","",IF(Input!B114="Not Applicable",Input!C114,IF(Input!B114="Multiplicative",'Construction - do not delete'!B182,IF(Input!B114="Additive",'Construction - do not delete'!D182,IF(Input!B114="Dominant Effect",'Construction - do not delete'!E182,IF(Input!B114="Dominant Common Residuals",'Construction - do not delete'!G182,"Error")))))) -> 1 | F104: =IF(B104="","",F102-F103) ->  | G104: =IF(B104="","",B104-F104) ->  | H104: =IF(F104<0,"Check CMF Input Values","") -> 
A105: SV, ALL | B105: =IF('Input Summary'!$B$11>=4,F32+F33,"") ->  | C105: =Input!C115 -> 1 | D105: =IF(Input!B115="Not Applicable","",Input!E115) ->  | E105: =IF(Input!C115="","",IF(Input!B115="Not Applicable",Input!C115,IF(Input!B115="Multiplicative",'Construction - do not delete'!B183,IF(Input!B115="Additive",'Construction - do not delete'!D183,IF(Input!B115="Dominant Effect",'Construction - do not delete'!E183,IF(Input!B115="Dominant Common Residuals",'Construction - do not delete'!G183,"Error")))))) -> 1 | F105: =IF(B105="","",B105*E105) ->  | G105: =IF(B105="","",B105-F105) -> 
A106: SV, FI | B106: =IF('Input Summary'!$B$11=4,Output!$F$32,"") ->  | C106: =Input!C116 -> 1 | D106: =IF(Input!B116="Not Applicable","",Input!E116) ->  | E106: =IF(Input!C116="","",IF(Input!B116="Not Applicable",Input!C116,IF(Input!B116="Multiplicative",'Construction - do not delete'!B184,IF(Input!B116="Additive",'Construction - do not delete'!D184,IF(Input!B116="Dominant Effect",'Construction - do not delete'!E184,IF(Input!B116="Dominant Common Residuals",'Construction - do not delete'!G184,"Error")))))) -> 1 | F106: =IF(B106="","",B106*E106) -> 
A107: SV, PDO | B107: =IF('Input Summary'!$B$11=4,Output!$F$33,"") ->  | C107: =Input!C116 -> 1 | D107: =IF(Input!B116="Not Applicable","",Input!E116) ->  | E107: =IF(Input!C116="","",IF(Input!B116="Not Applicable",Input!C116,IF(Input!B116="Multiplicative",'Construction - do not delete'!B184,IF(Input!B116="Additive",'Construction - do not delete'!D184,IF(Input!B116="Dominant Effect",'Construction - do not delete'!E184,IF(Input!B116="Dominant Common Residuals",'Construction - do not delete'!G184,"Error")))))) -> 1 | F107: =IF(B107="","",F105-F106) ->  | H107: =IF(F107<0,"Check CMF Input Values","") -> 
A108: Ped, ALL | B108: =IF('Input Summary'!$B$11>=4,F34+F35,"") ->  | C108: =Input!C117 -> 1 | D108: =IF(Input!B117="Not Applicable","",Input!E117) ->  | E108: =IF(Input!C117="","",IF(Input!B117="Not Applicable",Input!C117,IF(Input!B117="Multiplicative",'Construction - do not delete'!B185,IF(Input!B117="Additive",'Construction - do not delete'!D185,IF(Input!B117="Dominant Effect",'Construction - do not delete'!E185,IF(Input!B117="Dominant Common Residuals",'Construction - do not delete'!G185,"Error")))))) -> 1 | F108: =IF(B108="","",B108*E108) ->  | G108: =IF(B108="","",B108-F108) -> 
A109: Ped, FI | B109: =IF('Input Summary'!$B$11=4,Output!$F$34,"") ->  | C109: =Input!C118 -> 1 | D109: =IF(Input!B118="Not Applicable","",Input!E118) ->  | E109: =IF(Input!C118="","",IF(Input!B118="Not Applicable",Input!C118,IF(Input!B118="Multiplicative",'Construction - do not delete'!B186,IF(Input!B118="Additive",'Construction - do not delete'!D186,IF(Input!B118="Dominant Effect",'Construction - do not delete'!E186,IF(Input!B118="Dominant Common Residuals",'Construction - do not delete'!G186,"Error")))))) -> 1 | F109: =IF(B109="","",F108) -> 
A110: Ped, PDO | B110: =IF('Input Summary'!$B$11=4,Output!$F$35,"") ->  | C110: =Input!C118 -> 1 | D110: =IF(Input!B118="Not Applicable","",Input!E118) ->  | E110: =IF(Input!C118="","",IF(Input!B118="Not Applicable",Input!C118,IF(Input!B118="Multiplicative",'Construction - do not delete'!B186,IF(Input!B118="Additive",'Construction - do not delete'!D186,IF(Input!B118="Dominant Effect",'Construction - do not delete'!E186,IF(Input!B118="Dominant Common Residuals",'Construction - do not delete'!G186,"Error")))))) -> 1 | F110: =IF(B110="","",F108-F109) ->  | H110: =IF(F110<0,"Check CMF Input Values","") -> 
A111: Bike, ALL | B111: =IF('Input Summary'!$B$11>=4,F36+F37,"") ->  | C111: =Input!C119 -> 1 | D111: =IF(Input!B119="Not Applicable","",Input!E119) ->  | E111: =IF(Input!C119="","",IF(Input!B119="Not Applicable",Input!C119,IF(Input!B119="Multiplicative",'Construction - do not delete'!B187,IF(Input!B119="Additive",'Construction - do not delete'!D187,IF(Input!B119="Dominant Effect",'Construction - do not delete'!E187,IF(Input!B119="Dominant Common Residuals",'Construction - do not delete'!G187,"Error")))))) -> 1 | F111: =IF(B111="","",B111*E111) ->  | G111: =IF(B111="","",B111-F111) -> 
A112: Bike, FI | B112: =IF('Input Summary'!$B$11=4,Output!$F$36,"") ->  | C112: =Input!C120 -> 1 | D112: =IF(Input!B120="Not Applicable","",Input!E120) ->  | E112: =IF(Input!C120="","",IF(Input!B120="Not Applicable",Input!C120,IF(Input!B120="Multiplicative",'Construction - do not delete'!B188,IF(Input!B120="Additive",'Construction - do not delete'!D188,IF(Input!B120="Dominant Effect",'Construction - do not delete'!E188,IF(Input!B120="Dominant Common Residuals",'Construction - do not delete'!G188,"Error")))))) -> 1 | F112: =IF(B112="","",F111) -> 
A113: Bike, PDO | B113: =IF('Input Summary'!$B$11=4,Output!$F$37,"") ->  | C113: =Input!C120 -> 1 | D113: =IF(Input!B120="Not Applicable","",Input!E120) ->  | E113: =IF(Input!C120="","",IF(Input!B120="Not Applicable",Input!C120,IF(Input!B120="Multiplicative",'Construction - do not delete'!B188,IF(Input!B120="Additive",'Construction - do not delete'!D188,IF(Input!B120="Dominant Effect",'Construction - do not delete'!E188,IF(Input!B120="Dominant Common Residuals",'Construction - do not delete'!G188,"Error")))))) -> 1 | F113: =IF(B113="","",F111-F112) ->  | H113: =IF(F113<0,"Check CMF Input Values","") -> 
A114: Total, FI | B114: =IFERROR(B103+B106+B109+B112,"") ->  | F114: =IFERROR(F103+F106+F109+F112,"") ->  | G114: =IFERROR(G103+G106+G109+G112,"") -> 
A115: Total, PDO | B115: =IFERROR(B104+B107+B110+B113,"") ->  | F115: =IFERROR(F104+F107,"") ->  | G115: =IFERROR(G104+G107+G110+G113,"") -> 
A119: Step 3 – Economic Analysis
B120: =IF(Input!B67="","",Input!B67) ->  | D120: =IF(Input!C67="","",Input!C67) ->  | F120: =IF(Input!D67="","",Input!D67) ->  | H120: =IF(Input!E67="","",Input!E67) -> 
B122: =IF(B120="","","Reduction") ->  | C122: =IF(B120="","","Benefits") ->  | D122: =IF(D120="","","Reduction") ->  | E122: =IF(D120="","","Benefits") ->  | F122: =IF(F120="","","Reduction") ->  | G122: =IF(F120="","","Benefits") ->  | H122: =IF(H120="","","Reduction") ->  | I122: =IF(H120="","","Benefits") -> 
A123: Total, FI | B123: =IF(G60="","",G60) ->  | C123: =IF(B123="","",INDEX(Table5[Average FI Crash Cost],MATCH('Input Summary'!$B$9,'Construction - do not delete'!$H$83:$H$96,0))*B123) ->  | D123: =IF(G78="","",G78) ->  | E123: =IF(D123="","",INDEX(Table5[Average FI Crash Cost],MATCH('Input Summary'!$B$9,'Construction - do not delete'!$H$83:$H$96,0))*D123) ->  | F123: =IF(G96="","",G96) ->  | G123: =IF(F123="","",INDEX(Table5[Average FI Crash Cost],MATCH('Input Summary'!$B$9,'Construction - do not delete'!$H$83:$H$96,0))*F123) ->  | H123: =IF(G114="","",G114) ->  | I123: =IF(H123="","",INDEX(Table5[Average FI Crash Cost],MATCH('Input Summary'!$B$9,'Construction - do not delete'!$H$83:$H$95,0))*H123) -> 
A124: Total, PDO | B124: =IF(G61="","",G61) ->  | C124: =IF(B124="","",INDEX(Table5[Average PDO Crash Cost],MATCH('Input Summary'!$B$9,'Construction - do not delete'!$H$83:$H$95,0))*B124) ->  | D124: =IF(G79="","",G79) ->  | E124: =IF(D124="","",INDEX(Table5[Average PDO Crash Cost],MATCH('Input Summary'!$B$9,'Construction - do not delete'!$H$83:$H$95,0))*D124) ->  | F124: =IF(G97="","",G97) ->  | G124: =IF(F124="","",INDEX(Table5[Average PDO Crash Cost],MATCH('Input Summary'!$B$9,'Construction - do not delete'!$H$83:$H$95,0))*F124) ->  | H124: =IF(G115="","",G115) ->  | I124: =IF(H124="","",INDEX(Table5[Average PDO Crash Cost],MATCH('Input Summary'!$B$9,'Construction - do not delete'!$H$83:$H$95,0))*H124) -> 
A125: Total, All | B125: =IF(SUM(B123:B124)=0,"",SUM(B123:B124)) ->  | C125: =IFERROR(C123+C124,"") ->  | D125: =IF(SUM(D123:D124)=0,"",SUM(D123:D124)) ->  | E125: =IFERROR(E123+E124,"") ->  | F125: =IF(SUM(F123:F124)=0,"",SUM(F123:F124)) ->  | G125: =IFERROR(G123+G124,"") ->  | H125: =IF(SUM(H123:H124)=0,"",SUM(H123:H124)) ->  | I125: =IFERROR(I123+I124,"") -> 
B127: =IF(Input!B67="","",Input!B67) ->  | C127: =IF(Input!C67="","",Input!C67) ->  | D127: =IF(Input!D67="","",Input!D67) ->  | E127: =IF(Input!E67="","",Input!E67) -> 
A128: Design Year Benefit | B128: =C125 ->  | C128: =E125 ->  | D128: =G125 ->  | E128: =I125 -> 
A129: Present Value Conversion Factor (from Equation 13) | B129: =IF('Input Summary'!B11>=1,(((1+'Input Summary'!E9)^Input!B69)-1)/('Input Summary'!E9*((1+'Input Summary'!E9)^Input!B69)),"") ->  | C129: =IF('Input Summary'!B11>=2,(((1+'Input Summary'!E9)^Input!C69)-1)/('Input Summary'!E9*((1+'Input Summary'!E9)^Input!C69)),"") ->  | D129: =IF('Input Summary'!B11>=3,(((1+'Input Summary'!E9)^Input!D69)-1)/('Input Summary'!E9*((1+'Input Summary'!E9)^Input!D69)),"") ->  | E129: =IF('Input Summary'!B11>=4,(((1+'Input Summary'!E9)^Input!E69)-1)/('Input Summary'!E9*((1+'Input Summary'!E9)^Input!E69)),"") -> 
A130: Lifetime Present Value | B130: =IF(B129="","",B128*B129) ->  | C130: =IF(C129="","",C128*C129) ->  | D130: =IF(D129="","",D128*D129) ->  | E130: =IF(E129="","",E128*E129) -> 
A131: Cost | B131: =Input!B70 -> 0 | C131: =IF(Input!D62<2,"",Input!C70) ->  | D131: =IF(Input!D62<3,"",Input!D70) ->  | E131: =IF(Input!D62<4,"",Input!E70) -> 
A132: Benefit-Cost Ratio | B132: =IF(B129="","",B130/B131) ->  | C132: =IF(C129="","",C130/C131) ->  | D132: =IF(D129="","",D130/D131) ->  | E132: =IF(E129="","",E130/E131) -> 

Sheet Year 1
A1: Legend
A4: Worksheet 2A -- General Information and Input Data for Urban and Suburban Arterial Intersections
A5: General Information | H5: Location Information
A6: Analyst | E6: 0 | H6: City | K6: 0
A7: Agency or Company | E7: 0 | H7: Intersection | K7: 0
A8: Date Performed | E8: 00:00:00 | H8: Jurisdiction | K8: 0
H9: Analysis Year | K9: 0
A10: Input Data | H10: Base Conditions | J10: Site Conditions
A11: Intersection type (3ST, 3SG, 4ST, 4SG) | H11: -- | J11: 3SG
A12: AADT major (veh/day) | E12: AADTMAX = | F12: 58100 | G12: (veh/day) | H12: -- | J12: 0 | O12: AADT OK
A13: AADT minor (veh/day) | E13: AADTMAX = | F13: 16400 | G13: (veh/day) | H13: -- | J13: 0 | O13: AADT OK
A14: Intersection lighting (present/not present) | H14: Not Present | J14: Not Present
A15: Calibration factor, Ci | H15: 1 | J15: 0.98
A16: Data for signalized intersections only: | H16: -- | J16: --
A17: Number of approaches with left-turn lanes (0,1,2,3,4) [for 3SG, use maximum value of 3] | H17: 0 | J17: 2
A18: Number of approaches with right-turn lanes (0,1,2,3,4) [for 3SG, use maximum value of 3] | H18: 0 | J18: 0
A19: Number of approaches with left-turn signal phasing [for 3SG, use maximum value of 3] | H19: -- | J19: 0
A20: Type of left-turn signal phasing for Leg #1 | H20: Permissive | J20: Permissive
A21: Type of left-turn signal phasing for Leg #2 | H21: -- | J21: Permissive
A22: Type of left-turn signal phasing for Leg #3 | H22: -- | J22: Permissive
A23: Type of left-turn signal phasing for Leg #4 (if applicable) | H23: -- | J23: Permissive
A24: Number of approaches with right-turn-on-red prohibited [for 3SG, use maximum value of 3] | H24: 0 | J24: 0
A25: Intersection red light cameras (present/not present) | H25: Not Present | J25: Not Present
A26: Sum of all pedestrian crossing volumes (PedVol) -- Signalized intersections only | J26: 1
A27: Maximum number of lanes crossed by a pedestrian (nlanesx) | H27: -- | J27: 0
A28: Number of bus stops within 300 m (1,000 ft) of the intersection | H28: 0 | J28: 0
A29: Schools within 300 m (1,000 ft) of the intersection (present/not present) | H29: Not Present | J29: Not Present
A30: Number of alcohol sales establishments within 300 m (1,000 ft) of the intersection | H30: 0 | J30: 0
B32: SUMMARY OF INTERSECTION & CRASHES
B34: CMF1i | C34: CMF2i | D34: CMF3i | E34: CMF 4i | F34: CMF 5i | G34: CMF 1p | H34: CMF 2p | I34: CMF 3p | J34: Nbi_total | K34: Npedi_total | L34: Nbikei_total | M34: Npredictedint
B35: 0.86 | C35: 1 | D35: 1 | E35: 1 | F35: 1 | G35: 1 | H35: 1 | I35: 1
A54: Worksheet 2B -- Crash Modification Factors for Urban and Suburban Arterial Intersections
A55: (1) | C55: (2) | E55: (3) | G55: (4) | I55: (5) | K55: (6) | M55: (7)
A56: CMF for Left-Turn Lanes | C56: CMF for Left-Turn Signal Phasing | E56: CMF for Right-Turn Lanes | G56: CMF for Right Turn on Red | I56: CMF for Lighting | K56: CMF for Red Light Cameras | M56: Combined CMF
A58: CMF 1i | C58: CMF 2i | E58: CMF 3i | G58: CMF 4i | I58: CMF 5i | K58: CMF 6i | M58: CMF COMB
A59: from Table 12-24 | C59: from Table 12-25 | E59: from Table 12-26 | G59: from Equation 12-35 | I59: from Equation 12-36 | K59: from Equation 12-37 | M59: (1)*(2)*(3)*(4)*(5)*(6)
A60: 0.86 | C60: 1 | E60: 1 | G60: 1 | I60: 1 | K60: 1 | M60: 0.86
A64: Worksheet 2C -- Multiple-Vehicle Collisions by Severity Level for Urban and Suburban Arterial Intersections
A65: (1) | C65: (2) | F65: (3) | H65: (4) | I65: (5) | K65: (6) | L65: (7) | M65: (8) | N65: (9)
A66: Crash Severity Level | C66: SPF Coefficients | F66: Overdispersion Parameter, k | H66: Initial Nbimv | I66: Proportion of Total Crashes | K66: Adjusted Nbimv | L66: Combined CMFs | M66: Calibration Factor, Ci | N66: Predicted Nbimv
C68: from Table 12-10 | F68: from Table 12-10 | H68: from Equation 12-21 | K68: (4)TOTAL*(5) | L68: (7) from Worksheet 2B | N68: (6)*(7)*(8)
C69: a | D69: b | E69: c
A70: Total | C70: -2.511 | D70: 0.352 | E70: 0.057 | F70: 0.58 | I70: 1 | L70: 0.86 | M70: 0.98
A71: Fatal and Injury (FI) | C71: -2.761 | D71: 0.267 | E71: 0.018 | F71: 0.77 | I71: (4)FI/((4)FI+(4)PDO) | L71: 0.86 | M71: 0.98
A73: Property Damage Only (PDO) | C73: -4.325 | D73: 0.429 | E73: 0.151 | F73: 0.59 | I73: (5)TOTAL-(5)FI | L73: 0.86 | M73: 0.98
A92: Worksheet 2D -- Multiple-Vehicle Collisions by Collision Type for Urban and Suburban Arterial Intersections
A93: (1) | D93: (2) | F93: (3) | H93: (4) | J93: (5) | L93: (6)
A94: Collision Type | D94: Proportion of Collision Type(FI) | F94: Predicted N bimv (FI) (crashes/year) | H94: Proportion of Collision Type (PDO) | J94: Predicted N bimv (PDO) (crashes/year) | L94: Predicted N bimv (TOTAL) (crashes/year)
D97: from Table 12-11 | F97: (9)FI from Worksheet 2C | H97: from Table 12-11 | J97: (9)PDO from Worksheet 2C | L97: (9)PDO from Worksheet 2C
A99: Total | D99: 1 | H99: 1
F100: (2)*(3)FI | J100: (4)*(5)PDO | L100: (3)+(5)
A101: Rear-end collision | D101: 0.363 | H101: 0.496
A102: Head-on collision | D102: 0.104 | H102: 0.04
A103: Angle collision | D103: 0.39 | H103: 0.285
A104: Sideswipe | D104: 0.065 | H104: 0.157
A105: Other multiple-vehicle collision | D105: 0.078 | H105: 0.022
A109: Worksheet 2E -- Single-Vehicle Collisions by Severity Level for Urban and Suburban Arterial Intersections
A110: (1) | C110: (2) | F110: (3) | H110: (4) | I110: (5) | K110: (6) | L110: (7) | M110: (8) | N110: (9)
A111: Crash Severity Level | C111: SPF Coefficients | F111: Overdispersion Parameter, k | H111: Initial Nbisv | I111: Proportion of Total Crashes | K111: Adjusted Nbimv | L111: Combined CMFs | M111: Calibration Factor, Ci | N111: Predicted Nbisv
C113: from Table 12-12 | F113: from Table 12-12 | H113: from Eqn. 12-24; (FI) from Eqn. 12-24 or 12-27 | K113: (4)TOTAL*(5) | L113: (7) from Worksheet 2B | N113: (6)*(7)*(8)
C114: a | D114: b | E114: c
A116: Total | C116: -6.309 | D116: 0.306 | E116: 0.223 | F116: 0.2 | I116: 1 | L116: 0.86 | M116: 0.98
A117: Fatal and Injury (FI) | C117: -7.212 | D117: 0.351 | E117: 0.147 | F117: 0.16 | I117: (4)FI/((4)FI+(4)PDO) | L117: 0.86 | M117: 0.98
A119: Property Damage Only (PDO) | C119: -7.522 | D119: 0.265 | E119: 0.361 | F119: 0.55 | I119: (5)TOTAL-(5)FI | L119: 0.86 | M119: 0.98
A124: Worksheet 2F -- Single-Vehicle Collisions by Collision Type for Urban and Suburban Arterial Intersections
A125: (1) | D125: (2) | F125: (3) | H125: (4) | J125: (5) | L125: (6)
A126: Collision Type | D126: Proportion of Collision Type(FI) | F126: Predicted N bisv (FI) (crashes/year) | H126: Proportion of Collision Type (PDO) | J126: Predicted N bisv (PDO) (crashes/year) | L126: Predicted N bisv (TOTAL) (crashes/year)
D129: from Table 12-13 | F129: (9)FI from Worksheet 2E | H129: from Table 12-13 | J129: (9)PDO from Worksheet 2E | L129: (9)PDO from Worksheet 2E
A131: Total | D131: 1 | H131: 1
F132: (2)*(3)FI | J132: (4)*(5)PDO | L132: (3)+(5)
A133: Collision with parked vehicle | D133: 0.154 | H133: 0.042
A134: Collision with animal | D134: 0 | H134: 0
A135: Collision with fixed object | D135: 0.615 | H135: 0.875
A136: Collision with other object | D136: 0 | H136: 0
A137: Other single-vehicle collision | D137: 0.154 | H137: 0.083
A138: Single-vehicle noncollision | D138: 0.077 | H138: 0
B142: Worksheet 2G-1 -- Crash Modification Factors for Vehicle-Pedestrian Collisions for Urban and Suburban Arterial Signalized Intersections
B143: (1) | E143: (2) | H143: (3) | K143: (4)
B144: CMF for Bus Stops | E144: CMF for Schools | H144: CMF for Alcohol Sales Establishments | K144: Combined CMF
B145: CMF1p | E145: CMF2p | H145: CMF3p
B146: from Table 12-28 | E146: from Table 12-29 | H146: from Table 12-30 | K146: (1)*(2)*(3)
B147: 1 | E147: 1 | H147: 1 | K147: 1
A151: Worksheet 2G -- Vehicle-Pedestrian Collisions for Urban and Suburban Arterial Signalized Intersections
A152: (1) | C152: (2) | H152: (3) | I152: (4) | K152: (5) | M152: (7)
A153: Crash Severity Level | C153: SPF Coefficients | H153: Overdispersion Parameter, k | I153: Npedbase | K153: Combined CMF | M153: Predicted Npedi
C155: from Table 12-14 | I155: from Equation 12-29 | K155: (4) from Worksheet 2G-1 | M155: (4)*(5)
C156: a | D156: b | E156: c | F156: d | G156: e
A157: Total | C157: -7.782 | D157: 0.212 | E157: 0.178 | F157: 0.289 | G157: 0.144 | H157: 0.22 | K157: 1
A158: Fatal and Injury (FI) | C158: -- | D158: -- | E158: -- | F158: -- | G158: -- | H158: -- | I158: -- | K158: --
A162: Worksheet 2J -- Vehicle-Bicycle Collisions for Urban and Suburban Arterial Intersections
A163: (1) | D163: (2) | F163: (3) | H163: (4) | I163: (5) | K163: (7)
A164: Crash Severity Level | D164: Predicted Nbimv | F164: Predicted Nbisv | H164: Predicted Nbi | I164: fbikei | K164: Predicted Nbikei
D166: (9) from Worksheet 2C | F166: (9) from Worksheet 2E | H166: (2) + (3) | I166: from Table 12-17 | K166: (4)*(5)
A168: Total | I168: 0.0248447205
A169: Fatal and injury (FI) | D169: -- | F169: -- | H169: -- | I169: --
A173: Worksheet 2K -- Crash Severity Distribution for Urban and Suburban Arterial Intersections
A174: (1) | F174: (2) | I174: (3) | L174: (4)
A175: Collision type | F175: Fatal and injury (FI) | I175: Property damage only (PDO) | L175: Total
F176: (3) from Worksheet 2D and 2F; | I176: (5) from Worksheet 2D and 2F | L176: (6) from Worksheet 2D and 2F;
F177: (7) from Worksheet 2G and 2J | L177: (7) from Worksheet 2G and 2J
A178: MULTIPLE-VEHICLE
A179: Rear-end collisions (from Worksheet 2D)
A180: Head-on collisions (from Worksheet 2D)
A181: Angle collisions (from Worksheet 2D)
A182: Sideswipe (from Worksheet 2D)
A183: Other multiple-vehicle collision (from Worksheet 2D)
A184: Subtotal
A185: SINGLE-VEHICLE
A186: Collision with parked vehicle (from Worksheet 2F)
A187: Collision with animal (from Worksheet 2F)
A188: Collision with fixed object (from Worksheet 2F)
A189: Collision with other object (from Worksheet 2F)
A190: Other single-vehicle collision (from Worksheet 2F)
A191: Single-vehicle noncollision (from Worksheet 2F)
A192: Collision with pedestrian (from Worksheet 2G or 2I) | I192: 0
A193: Collision with bicycle (from Worksheet 2J) | I193: 0
A194: Subtotal
A195: Total
E199: Worksheet 2L -- Summary Results for Urban and Suburban Arterial Intersections
E200: (1) | H200: (2)
E201: Crash severity level | H201: Predicted average crash frequency, Npredicted int (crashes/year)
H204: (Total) from Worksheet 2K
E205: Total
E206: Fatal and injury (FI)
E207: Property damage only (PDO)

Sheet Year 2 (hidden)

Sheet Year 3 (hidden)

Sheet Year 4 (hidden)

Sheet Year 5 (hidden)

Sheet Year 6 (hidden)

Sheet Year 7 (hidden)

Sheet Year 8 (hidden)

Sheet Year 9 (hidden)

Sheet Year 10 (hidden)

Sheet Design Year
A1: Legend
A4: Worksheet 2A -- General Information and Input Data for Urban and Suburban Arterial Intersections
A5: General Information | H5: Location Information
A6: Analyst | E6: 0 | H6: City | K6: 0
A7: Agency or Company | E7: 0 | H7: Intersection | K7: 0
A8: Date Performed | E8: 00:00:00 | H8: Jurisdiction | K8: 0
H9: Analysis Year | K9: 0
A10: Input Data | H10: Base Conditions | J10: Site Conditions
A11: Intersection type (3ST, 3SG, 4ST, 4SG) | H11: -- | J11: 3SG
A12: AADT major (veh/day) | E12: AADTMAX = | F12: 58100 | G12: (veh/day) | H12: -- | J12: 0 | O12: AADT OK
A13: AADT minor (veh/day) | E13: AADTMAX = | F13: 16400 | G13: (veh/day) | H13: -- | J13: 0 | O13: AADT OK
A14: Intersection lighting (present/not present) | H14: Not Present | J14: Not Present
A15: Calibration factor, Ci | H15: 1 | J15: 0.98
A16: Data for signalized intersections only: | H16: -- | J16: --
A17: Number of approaches with left-turn lanes (0,1,2,3,4) [for 3SG, use maximum value of 3] | H17: 0 | J17: 2
A18: Number of approaches with right-turn lanes (0,1,2,3,4) [for 3SG, use maximum value of 3] | H18: 0 | J18: 0
A19: Number of approaches with left-turn signal phasing [for 3SG, use maximum value of 3] | H19: -- | J19: 0
A20: Type of left-turn signal phasing for Leg #1 | H20: Permissive | J20: Permissive
A21: Type of left-turn signal phasing for Leg #2 | H21: -- | J21: Permissive
A22: Type of left-turn signal phasing for Leg #3 | H22: -- | J22: Permissive
A23: Type of left-turn signal phasing for Leg #4 (if applicable) | H23: -- | J23: Permissive
A24: Number of approaches with right-turn-on-red prohibited [for 3SG, use maximum value of 3] | H24: 0 | J24: 0
A25: Intersection red light cameras (present/not present) | H25: Not Present | J25: Not Present
A26: Sum of all pedestrian crossing volumes (PedVol) -- Signalized intersections only | J26: 1
A27: Maximum number of lanes crossed by a pedestrian (nlanesx) | H27: -- | J27: 0
A28: Number of bus stops within 300 m (1,000 ft) of the intersection | H28: 0 | J28: 0
A29: Schools within 300 m (1,000 ft) of the intersection (present/not present) | H29: Not Present | J29: Not Present
A30: Number of alcohol sales establishments within 300 m (1,000 ft) of the intersection | H30: 0 | J30: 0
B32: SUMMARY OF INTERSECTION & CRASHES
B34: CMF1i | C34: CMF2i | D34: CMF3i | E34: CMF 4i | F34: CMF 5i | G34: CMF 1p | H34: CMF 2p | I34: CMF 3p | J34: Nbi_total | K34: Npedi_total | L34: Nbikei_total | M34: Npredictedint
B35: 0.86 | C35: 1 | D35: 1 | E35: 1 | F35: 1 | G35: 1 | H35: 1 | I35: 1
A54: Worksheet 2B -- Crash Modification Factors for Urban and Suburban Arterial Intersections
A55: (1) | C55: (2) | E55: (3) | G55: (4) | I55: (5) | K55: (6) | M55: (7)
A56: CMF for Left-Turn Lanes | C56: CMF for Left-Turn Signal Phasing | E56: CMF for Right-Turn Lanes | G56: CMF for Right Turn on Red | I56: CMF for Lighting | K56: CMF for Red Light Cameras | M56: Combined CMF
A58: CMF 1i | C58: CMF 2i | E58: CMF 3i | G58: CMF 4i | I58: CMF 5i | K58: CMF 6i | M58: CMF COMB
A59: from Table 12-24 | C59: from Table 12-25 | E59: from Table 12-26 | G59: from Equation 12-35 | I59: from Equation 12-36 | K59: from Equation 12-37 | M59: (1)*(2)*(3)*(4)*(5)*(6)
A60: 0.86 | C60: 1 | E60: 1 | G60: 1 | I60: 1 | K60: 1 | M60: 0.86
A64: Worksheet 2C -- Multiple-Vehicle Collisions by Severity Level for Urban and Suburban Arterial Intersections
A65: (1) | C65: (2) | F65: (3) | H65: (4) | I65: (5) | K65: (6) | L65: (7) | M65: (8) | N65: (9)
A66: Crash Severity Level | C66: SPF Coefficients | F66: Overdispersion Parameter, k | H66: Initial Nbimv | I66: Proportion of Total Crashes | K66: Adjusted Nbimv | L66: Combined CMFs | M66: Calibration Factor, Ci | N66: Predicted Nbimv
C68: from Table 12-10 | F68: from Table 12-10 | H68: from Equation 12-21 | K68: (4)TOTAL*(5) | L68: (7) from Worksheet 2B | N68: (6)*(7)*(8)
C69: a | D69: b | E69: c
A70: Total | C70: -2.511 | D70: 0.352 | E70: 0.057 | F70: 0.58 | I70: 1 | L70: 0.86 | M70: 0.98
A71: Fatal and Injury (FI) | C71: -2.761 | D71: 0.267 | E71: 0.018 | F71: 0.77 | I71: (4)FI/((4)FI+(4)PDO) | L71: 0.86 | M71: 0.98
A73: Property Damage Only (PDO) | C73: -4.325 | D73: 0.429 | E73: 0.151 | F73: 0.59 | I73: (5)TOTAL-(5)FI | L73: 0.86 | M73: 0.98
A92: Worksheet 2D -- Multiple-Vehicle Collisions by Collision Type for Urban and Suburban Arterial Intersections
A93: (1) | D93: (2) | F93: (3) | H93: (4) | J93: (5) | L93: (6)
A94: Collision Type | D94: Proportion of Collision Type(FI) | F94: Predicted N bimv (FI) (crashes/year) | H94: Proportion of Collision Type (PDO) | J94: Predicted N bimv (PDO) (crashes/year) | L94: Predicted N bimv (TOTAL) (crashes/year)
D97: from Table 12-11 | F97: (9)FI from Worksheet 2C | H97: from Table 12-11 | J97: (9)PDO from Worksheet 2C | L97: (9)PDO from Worksheet 2C
A99: Total | D99: 1 | H99: 1
F100: (2)*(3)FI | J100: (4)*(5)PDO | L100: (3)+(5)
A101: Rear-end collision | D101: 0.363 | H101: 0.496
A102: Head-on collision | D102: 0.104 | H102: 0.04
A103: Angle collision | D103: 0.39 | H103: 0.285
A104: Sideswipe | D104: 0.065 | H104: 0.157
A105: Other multiple-vehicle collision | D105: 0.078 | H105: 0.022
A109: Worksheet 2E -- Single-Vehicle Collisions by Severity Level for Urban and Suburban Arterial Intersections
A110: (1) | C110: (2) | F110: (3) | H110: (4) | I110: (5) | K110: (6) | L110: (7) | M110: (8) | N110: (9)
A111: Crash Severity Level | C111: SPF Coefficients | F111: Overdispersion Parameter, k | H111: Initial Nbisv | I111: Proportion of Total Crashes | K111: Adjusted Nbimv | L111: Combined CMFs | M111: Calibration Factor, Ci | N111: Predicted Nbisv
C113: from Table 12-12 | F113: from Table 12-12 | H113: from Eqn. 12-24; (FI) from Eqn. 12-24 or 12-27 | K113: (4)TOTAL*(5) | L113: (7) from Worksheet 2B | N113: (6)*(7)*(8)
C114: a | D114: b | E114: c
A116: Total | C116: -6.309 | D116: 0.306 | E116: 0.223 | F116: 0.2 | I116: 1 | L116: 0.86 | M116: 0.98
A117: Fatal and Injury (FI) | C117: -7.212 | D117: 0.351 | E117: 0.147 | F117: 0.16 | I117: (4)FI/((4)FI+(4)PDO) | L117: 0.86 | M117: 0.98
A119: Property Damage Only (PDO) | C119: -7.522 | D119: 0.265 | E119: 0.361 | F119: 0.55 | I119: (5)TOTAL-(5)FI | L119: 0.86 | M119: 0.98
A124: Worksheet 2F -- Single-Vehicle Collisions by Collision Type for Urban and Suburban Arterial Intersections
A125: (1) | D125: (2) | F125: (3) | H125: (4) | J125: (5) | L125: (6)
A126: Collision Type | D126: Proportion of Collision Type(FI) | F126: Predicted N bisv (FI) (crashes/year) | H126: Proportion of Collision Type (PDO) | J126: Predicted N bisv (PDO) (crashes/year) | L126: Predicted N bisv (TOTAL) (crashes/year)
D129: from Table 12-13 | F129: (9)FI from Worksheet 2E | H129: from Table 12-13 | J129: (9)PDO from Worksheet 2E | L129: (9)PDO from Worksheet 2E
A131: Total | D131: 1 | H131: 1
F132: (2)*(3)FI | J132: (4)*(5)PDO | L132: (3)+(5)
A133: Collision with parked vehicle | D133: 0.154 | H133: 0.042
A134: Collision with animal | D134: 0 | H134: 0
A135: Collision with fixed object | D135: 0.615 | H135: 0.875
A136: Collision with other object | D136: 0 | H136: 0
A137: Other single-vehicle collision | D137: 0.154 | H137: 0.083
A138: Single-vehicle noncollision | D138: 0.077 | H138: 0
B142: Worksheet 2G-1 -- Crash Modification Factors for Vehicle-Pedestrian Collisions for Urban and Suburban Arterial Signalized Intersections
B143: (1) | E143: (2) | H143: (3) | K143: (4)
B144: CMF for Bus Stops | E144: CMF for Schools | H144: CMF for Alcohol Sales Establishments | K144: Combined CMF
B145: CMF1p | E145: CMF2p | H145: CMF3p
B146: from Table 12-28 | E146: from Table 12-29 | H146: from Table 12-30 | K146: (1)*(2)*(3)
B147: 1 | E147: 1 | H147: 1 | K147: 1
A151: Worksheet 2G -- Vehicle-Pedestrian Collisions for Urban and Suburban Arterial Signalized Intersections
A152: (1) | C152: (2) | H152: (3) | I152: (4) | K152: (5) | M152: (7)
A153: Crash Severity Level | C153: SPF Coefficients | H153: Overdispersion Parameter, k | I153: Npedbase | K153: Combined CMF | M153: Predicted Npedi
C155: from Table 12-14 | I155: from Equation 12-29 | K155: (4) from Worksheet 2G-1 | M155: (4)*(5)
C156: a | D156: b | E156: c | F156: d | G156: e
A157: Total | C157: -7.782 | D157: 0.212 | E157: 0.178 | F157: 0.289 | G157: 0.144 | H157: 0.22 | K157: 1
A158: Fatal and Injury (FI) | C158: -- | D158: -- | E158: -- | F158: -- | G158: -- | H158: -- | I158: -- | K158: --
A162: Worksheet 2J -- Vehicle-Bicycle Collisions for Urban and Suburban Arterial Intersections
A163: (1) | D163: (2) | F163: (3) | H163: (4) | I163: (5) | K163: (7)
A164: Crash Severity Level | D164: Predicted Nbimv | F164: Predicted Nbisv | H164: Predicted Nbi | I164: fbikei | K164: Predicted Nbikei
D166: (9) from Worksheet 2C | F166: (9) from Worksheet 2E | H166: (2) + (3) | I166: from Table 12-17 | K166: (4)*(5)
A168: Total | I168: 0.0248447205
A169: Fatal and injury (FI) | D169: -- | F169: -- | H169: -- | I169: --
A173: Worksheet 2K -- Crash Severity Distribution for Urban and Suburban Arterial Intersections
A174: (1) | F174: (2) | I174: (3) | L174: (4)
A175: Collision type | F175: Fatal and injury (FI) | I175: Property damage only (PDO) | L175: Total
F176: (3) from Worksheet 2D and 2F; | I176: (5) from Worksheet 2D and 2F | L176: (6) from Worksheet 2D and 2F;
F177: (7) from Worksheet 2G and 2J | L177: (7) from Worksheet 2G and 2J
A178: MULTIPLE-VEHICLE
A179: Rear-end collisions (from Worksheet 2D)
A180: Head-on collisions (from Worksheet 2D)
A181: Angle collisions (from Worksheet 2D)
A182: Sideswipe (from Worksheet 2D)
A183: Other multiple-vehicle collision (from Worksheet 2D)
A184: Subtotal
A185: SINGLE-VEHICLE
A186: Collision with parked vehicle (from Worksheet 2F)
A187: Collision with animal (from Worksheet 2F)
A188: Collision with fixed object (from Worksheet 2F)
A189: Collision with other object (from Worksheet 2F)
A190: Other single-vehicle collision (from Worksheet 2F)
A191: Single-vehicle noncollision (from Worksheet 2F)
A192: Collision with pedestrian (from Worksheet 2G or 2I) | I192: 0
A193: Collision with bicycle (from Worksheet 2J) | I193: 0
A194: Subtotal
A195: Total
E199: Worksheet 2L -- Summary Results for Urban and Suburban Arterial Intersections
E200: (1) | H200: (2)
E201: Crash severity level | H201: Predicted average crash frequency, Npredicted int (crashes/year)
H204: (Total) from Worksheet 2K
E205: Total
E206: Fatal and injury (FI)
E207: Property damage only (PDO)

Sheet 3ST MassDOT (hidden)
A1: Legend
A4: Worksheet 2A -- General Information and Input Data for Urban and Suburban Arterial Intersections
A5: General Information | H5: Location Information
A6: Analyst | E6: ='Input Summary'!B5 -> 0 | H6: City | K6: ='Input Summary'!D5 -> 0
A7: Agency or Company | E7: ='Input Summary'!B6 -> 0 | H7: Intersection | K7: ='Input Summary'!D6 -> 0
A8: Date Performed | E8: ='Input Summary'!B7 -> 00:00:00 | H8: Jurisdiction | K8: ='Input Summary'!D7 -> 0
H9: Analysis Year | K9: ='Input Summary'!D8 -> 0
A10: Input Data | H10: Base Conditions | J10: Site Conditions
A11: Intersection type (3ST, 3SG, 4ST, 4SG) | H11: -- | J11: 3ST | P11: =IF($J$11="3ST","Unsignalized three-leg intersection (stop control on minor-road approaches)",IF($J$11="3SG","Signalized three-leg intersections",IF($J$11="4ST","Unsignalized four-leg intersection (stop control on minor-road approaches)","Signalized four-leg intersections"))) -> Unsignalized three-leg intersection (stop control on minor-road approaches)
A12: AADT major (veh/day) | E12: AADTMAX = | F12: 45700 | G12: (veh/day) | H12: -- | J12: ='Input Summary'!E13 -> 0 | O12: =IF(J12>F12,"AADT out of range","AADT OK") -> AADT OK
A13: AADT minor (veh/day) | E13: AADTMAX = | F13: 9300 | G13: (veh/day) | H13: -- | J13: ='Input Summary'!E14 -> 0 | O13: =IF(J13>F13,"AADT out of range","AADT OK") -> AADT OK
A14: Intersection lighting (present/not present) | H14: Not Present | J14: ='Input Summary'!E15 -> Not Present
A15: Calibration factor, Ci | H15: 1 | J15: ='Calibration Factors'!E7 -> 0.98
A16: Data for unsignalized intersections only: | H16: -- | J16: --
A17: Number of major-road approaches with left-turn lanes (0,1,2) | H17: 0 | J17: ='Input Summary'!E19 -> 0
A18: Number of major-road approaches with right-turn lanes (0,1,2) | H18: 0 | J18: ='Input Summary'!E20 -> 0
C20: SUMMARY OF INTERSECTION & CRASHES
C22: CMF1i | D22: CMF2i | E22: CMF3i | F22: CMF 4i | G22: CMF 5i | H22: Nbi_total | I22: Npedi_total | J22: Nbikei_total | K22: Npredictedint
C23: =A60 -> 1 | D23: =C60 -> 1 | E23: =E60 -> 1 | F23: =G60 -> 1 | G23: =I60 -> 1 | H23: =$H$157 ->  | I23: =$M$157 ->  | J23: =$K$168 ->  | K23: =$H$205 -> 
A54: Worksheet 2B -- Crash Modification Factors for Urban and Suburban Arterial Intersections
A55: (1) | C55: (2) | E55: (3) | G55: (4) | I55: (5) | K55: (6) | M55: (7)
A56: CMF for Left-Turn Lanes | C56: CMF for Left-Turn Signal Phasing | E56: CMF for Right-Turn Lanes | G56: CMF for Right Turn on Red | I56: CMF for Lighting | K56: CMF for Red Light Cameras | M56: Combined CMF
A58: CMF 1i | C58: CMF 2i | E58: CMF 3i | G58: CMF 4i | I58: CMF 5i | K58: CMF 6i | M58: CMF COMB
A59: from Table 12-24 | C59: from Table 12-25 | E59: from Table 12-26 | G59: from Equation 12-35 | I59: from Equation 12-36 | K59: from Equation 12-37 | M59: (1)*(2)*(3)*(4)*(5)*(6)
A60: =IF(J17=0,1,IF(J17=1,'Intersection Tables'!AB13,'Intersection Tables'!AC13)) -> 1 | C60: 1 | E60: =IF(J18=0,1,IF(J18=1,'Intersection Tables'!AB28,'Intersection Tables'!AC28)) -> 1 | G60: 1 | I60: =IF($J$14="Not Present",1,(1-'Intersection Tables'!F87*0.38)) -> 1 | K60: 1 | M60: =+A60*C60*E60*G60*I60*K60 -> 1
A64: Worksheet 2C -- Multiple-Vehicle Collisions by Severity Level for Urban and Suburban Arterial Intersections
A65: (1) | C65: (2) | F65: (3) | H65: (4) | I65: (5) | K65: (6) | L65: (7) | M65: (8) | N65: (9)
A66: Crash Severity Level | C66: SPF Coefficients | F66: Overdispersion Parameter, k | H66: Initial Nbimv | I66: Proportion of Total Crashes | K66: Adjusted Nbimv | L66: Combined CMFs | M66: Calibration Factor, Ci | N66: Predicted Nbimv
C68: from Table 12-10 | F68: from Table 12-10 | H68: from Equation 12-21 | K68: (4)TOTAL*(5) | L68: (7) from Worksheet 2B | N68: (6)*(7)*(8)
C69: a | D69: b | E69: c
A70: Total | C70: ='Intersection Tables'!C13 -> -8.86 | D70: ='Intersection Tables'!D13 -> 0.475 | E70: ='Intersection Tables'!E13 -> 0.587 | F70: ='Intersection Tables'!F13 -> 0.97 | H70: =EXP(C70+(D70*LN($J$12))+(E70*LN($J$13))) ->  | I70: 1 | K70: =H70*I70 ->  | L70: =+M60 -> 1 | M70: =+$J$15 -> 0.98 | N70: =+K70*L70*M70 -> 
A71: Fatal and Injury (FI) | C71: ='Intersection Tables'!C18 -> -8.968 | D71: ='Intersection Tables'!D18 -> 0.443 | E71: ='Intersection Tables'!E18 -> 0.444 | F71: ='Intersection Tables'!F18 -> 0.76 | H71: =EXP(C71+(D71*LN($J$12))+(E71*LN($J$13))) ->  | I71: (4)FI/((4)FI+(4)PDO) | K71: =H70*I72 ->  | L71: =+M60 -> 1 | M71: =+$J$15 -> 0.98 | N71: =+K71*L71*M71 -> 
I72: =+H71/(H71+H73) -> 
A73: Property Damage Only (PDO) | C73: ='Intersection Tables'!C23 -> -9.53 | D73: ='Intersection Tables'!D23 -> 0.476 | E73: ='Intersection Tables'!E23 -> 0.638 | F73: ='Intersection Tables'!F23 -> 0.92 | H73: =EXP(C73+(D73*LN($J$12))+(E73*LN($J$13))) ->  | I73: (5)TOTAL-(5)FI | K73: =H70*I74 ->  | L73: =+M60 -> 1 | M73: =+$J$15 -> 0.98 | N73: =+K73*L73*M73 -> 
I74: =I70-I72 -> 
A92: Worksheet 2D -- Multiple-Vehicle Collisions by Collision Type for Urban and Suburban Arterial Intersections
A93: (1) | D93: (2) | F93: (3) | H93: (4) | J93: (5) | L93: (6)
A94: Collision Type | D94: Proportion of Collision Type(FI) | F94: Predicted N bimv (FI) (crashes/year) | H94: Proportion of Collision Type (PDO) | J94: Predicted N bimv (PDO) (crashes/year) | L94: Predicted N bimv (TOTAL) (crashes/year)
D97: from Table 12-11 | F97: (9)FI from Worksheet 2C | H97: from Table 12-11 | J97: (9)PDO from Worksheet 2C | L97: (9)PDO from Worksheet 2C
A99: Total | D99: =SUM(D101:E105) -> 1 | F99: =+N71 ->  | H99: =SUM(H101:I105) -> 1 | J99: =+N73 ->  | L99: =+N70 -> 
F100: (2)*(3)FI | J100: (4)*(5)PDO | L100: (3)+(5)
A101: Rear-end collision | D101: ='Intersection Tables'!D50 -> 0.28 | F101: =+D101*$F$99 ->  | H101: ='Intersection Tables'!E50 -> 0.316 | J101: =+H101*$J$99 ->  | L101: =+F101+J101 -> 
A102: Head-on collision | D102: ='Intersection Tables'!D51 -> 0.061 | F102: =+D102*$F$99 ->  | H102: ='Intersection Tables'!E51 -> 0.033 | J102: =+H102*$J$99 ->  | L102: =+F102+J102 -> 
A103: Angle collision | D103: ='Intersection Tables'!D52 -> 0.598 | F103: =+D103*$F$99 ->  | H103: ='Intersection Tables'!E52 -> 0.57 | J103: =+H103*$J$99 ->  | L103: =+F103+J103 -> 
A104: Sideswipe | D104: ='Intersection Tables'!D53 -> 0.037 | F104: =+D104*$F$99 ->  | H104: ='Intersection Tables'!E53 -> 0.07 | J104: =+H104*$J$99 ->  | L104: =+F104+J104 -> 
A105: Other multiple-vehicle collision | D105: ='Intersection Tables'!D54 -> 0.024 | F105: =+D105*$F$99 ->  | H105: ='Intersection Tables'!E54 -> 0.011 | J105: =+H105*$J$99 ->  | L105: =+F105+J105 -> 
A109: Worksheet 2E -- Single-Vehicle Collisions by Severity Level for Urban and Suburban Arterial Intersections
A110: (1) | C110: (2) | F110: (3) | H110: (4) | I110: (5) | K110: (6) | L110: (7) | M110: (8) | N110: (9)
A111: Crash Severity Level | C111: SPF Coefficients | F111: Overdispersion Parameter, k | H111: Initial Nbisv | I111: Proportion of Total Crashes | K111: Adjusted Nbimv | L111: Combined CMFs | M111: Calibration Factor, Ci | N111: Predicted Nbisv
C113: from Table 12-12 | F113: from Table 12-12 | H113: from Eqn. 12-24; (FI) from Eqn. 12-24 or 12-27 | K113: (4)TOTAL*(5) | L113: (7) from Worksheet 2B | N113: (6)*(7)*(8)
C114: a | D114: b | E114: c
A116: Total | C116: ='Intersection Tables'!J13 -> -6.95 | D116: ='Intersection Tables'!K13 -> 0.112 | E116: ='Intersection Tables'!L13 -> 0.495 | F116: ='Intersection Tables'!M13 -> 0.51 | H116: =EXP(C116+(D116*LN($J$12))+(E116*LN($J$13))) ->  | I116: 1 | K116: =H116*I116 ->  | L116: =+M60 -> 1 | M116: =+$J$15 -> 0.98 | N116: =H116*L116*M116 -> 
A117: Fatal and Injury (FI) | C117: =VLOOKUP($J$11,'Intersection Tables'!$I$18:$M$21,2,FALSE) -> -- | D117: =VLOOKUP($J$11,'Intersection Tables'!$I$18:$M$21,3,FALSE) -> -- | E117: =VLOOKUP($J$11,'Intersection Tables'!$I$18:$M$21,4,FALSE) -> -- | F117: =VLOOKUP($J$11,'Intersection Tables'!$I$18:$M$21,5,FALSE) -> 0 | H117: =H116*'Intersection Tables'!Q78 ->  | I117: (4)FI/((4)FI+(4)PDO) | K117: =H116*I118 ->  | L117: =+M60 -> 1 | M117: =+$J$15 -> 0.98 | N117: =+K117*L117*M117 -> 
I118: =+H117/(H117+H119) -> 
A119: Property Damage Only (PDO) | C119: ='Intersection Tables'!J23 -> -7.218 | D119: ='Intersection Tables'!K23 -> 0.105 | E119: ='Intersection Tables'!L23 -> 0.5 | F119: ='Intersection Tables'!M23 -> 0.47 | H119: =EXP(C119+(D119*LN($J$12))+(E119*LN($J$13))) ->  | I119: (5)TOTAL-(5)FI | K119: =H116*I120 ->  | L119: =+M60 -> 1 | M119: =+$J$15 -> 0.98 | N119: =+K119*L119*M119 -> 
I120: =I116-I118 -> 
A124: Worksheet 2F -- Single-Vehicle Collisions by Collision Type for Urban and Suburban Arterial Intersections
A125: (1) | D125: (2) | F125: (3) | H125: (4) | J125: (5) | L125: (6)
A126: Collision Type | D126: Proportion of Collision Type(FI) | F126: Predicted N bisv (FI) (crashes/year) | H126: Proportion of Collision Type (PDO) | J126: Predicted N bisv (PDO) (crashes/year) | L126: Predicted N bisv (TOTAL) (crashes/year)
D129: from Table 12-13 | F129: (9)FI from Worksheet 2E | H129: from Table 12-13 | J129: (9)PDO from Worksheet 2E | L129: (9)PDO from Worksheet 2E
A131: Total | D131: =SUM(D133:E138) -> 1 | F131: =+N117 ->  | H131: =SUM(H133:I138) -> 1 | J131: =+N119 ->  | L131: =+N116 -> 
F132: (2)*(3)FI | J132: (4)*(5)PDO | L132: (3)+(5)
A133: Collision with parked vehicle | D133: ='Intersection Tables'!D74 -> 0.091 | F133: =+D133*$F$131 ->  | H133: ='Intersection Tables'!E74 -> 0.029 | J133: =+H133*$J$131 ->  | L133: =+F133+J133 -> 
A134: Collision with animal | D134: ='Intersection Tables'!D75 -> 0 | H134: ='Intersection Tables'!E75 -> 0
A135: Collision with fixed object | D135: ='Intersection Tables'!D76 -> 0.818 | H135: ='Intersection Tables'!E76 -> 0.743
A136: Collision with other object | D136: ='Intersection Tables'!D77 -> 0 | H136: ='Intersection Tables'!E77 -> 0.057
A137: Other single-vehicle collision | D137: ='Intersection Tables'!D78 -> 0.091 | H137: ='Intersection Tables'!E78 -> 0.142
A138: Single-vehicle noncollision | D138: ='Intersection Tables'!D79 -> 0 | H138: ='Intersection Tables'!E79 -> 0.029
A151: Worksheet 2G -- Vehicle-Pedestrian Collisions for Urban and Suburban Arterial Stop-Controlled Intersections
A152: (1) | D152: (2) | F152: (3) | H152: (4) | I152: (5) | M152: (7)
A153: Crash Severity Level | D153: Predicted Nbimv | F153: Predicted Nbisv | H153: Predicted Nbi | I153: fpedi | M153: Predicted Npedi
D155: (9) from Worksheet 2C | F155: (9) from Worksheet 2E | H155: (2) + (3) | I155: from Table 12-16 | M155: (4)*(5)*(6)
A157: Total | D157: =IF($J$11="3SG","--",IF($J$11="4SG","--",N70)) ->  | F157: =IF($J$11="3SG","--",IF($J$11="4SG","--",N116)) ->  | H157: =IF($J$11="3SG","--",IF($J$11="4SG","--",(D157+F157))) ->  | I157: ='Intersection Tables'!M100 -> 0.015 | M157: =IF(J11="3SG","--",IF(J11="4SG","--",$H$157*$I$157)) -> 
A158: Fatal and injury (FI) | D158: -- | F158: -- | H158: -- | I158: -- | M158: =+M157 -> 
A162: Worksheet 2J -- Vehicle-Bicycle Collisions for Urban and Suburban Arterial Intersections
A163: (1) | D163: (2) | F163: (3) | H163: (4) | I163: (5) | K163: (7)
A164: Crash Severity Level | D164: Predicted Nbimv | F164: Predicted Nbisv | H164: Predicted Nbi | I164: fbikei | K164: Predicted Nbikei
D166: (9) from Worksheet 2C | F166: (9) from Worksheet 2E | H166: (2) + (3) | I166: from Table 12-17 | K166: (4)*(5)*(6)
A168: Total | D168: =+$N$70 ->  | F168: =+$N$116 ->  | H168: =+D168+F168 ->  | I168: ='Intersection Tables'!N100 -> 0.005 | K168: =+$H$168*$I$168 -> 
A169: Fatal and injury (FI) | D169: -- | F169: -- | H169: -- | I169: -- | K169: =+K168 -> 
A173: Worksheet 2K -- Crash Severity Distribution for Urban and Suburban Arterial Intersections
A174: (1) | F174: (2) | I174: (3) | L174: (4)
A175: Collision type | F175: Fatal and injury (FI) | I175: Property damage only (PDO) | L175: Total
F176: (3) from Worksheet 2D and 2F; | I176: (5) from Worksheet 2D and 2F | L176: (6) from Worksheet 2D and 2F;
F177: (7) from Worksheet 2G and 2J | L177: (7) from Worksheet 2G and 2J
A178: MULTIPLE-VEHICLE
A179: Rear-end collisions (from Worksheet 2D) | F179: =+F101 ->  | I179: =+J101 ->  | L179: =+L101 -> 
A180: Head-on collisions (from Worksheet 2D) | F180: =+F102 ->  | I180: =+J102 ->  | L180: =+L102 -> 
A181: Angle collisions (from Worksheet 2D) | F181: =+F103 ->  | I181: =+J103 ->  | L181: =+L103 -> 
A182: Sideswipe (from Worksheet 2D) | F182: =+F104 ->  | I182: =+J104 ->  | L182: =+L104 -> 
A183: Other multiple-vehicle collision (from Worksheet 2D) | F183: =+F105 ->  | I183: =+J105 ->  | L183: =+L105 -> 
A184: Subtotal | F184: =SUM(F179:H183) ->  | I184: =SUM(I179:K183) ->  | L184: =SUM(L179:N183) -> 
A185: SINGLE-VEHICLE
A186: Collision with parked vehicle (from Worksheet 2F) | F186: =+F133 ->  | I186: =+J133 ->  | L186: =+L133 -> 
A187: Collision with animal (from Worksheet 2F)
A188: Collision with fixed object (from Worksheet 2F)
A189: Collision with other object (from Worksheet 2F)
A190: Other single-vehicle collision (from Worksheet 2F)
A191: Single-vehicle noncollision (from Worksheet 2F)
A192: Collision with pedestrian (from Worksheet 2G or 2I) | F192: =IF(J11="3ST",M158,IF(J11="4ST",M158,#REF!)) ->  | I192: 0 | L192: =+F192+I192 -> 
A193: Collision with bicycle (from Worksheet 2J) | F193: =+K169 ->  | I193: 0 | L193: =+F193+I193 -> 
A194: Subtotal | F194: =SUM(F186:H193) ->  | I194: =SUM(I186:K193) ->  | L194: =SUM(L186:N193) -> 
A195: Total | F195: =+F184+F194 ->  | I195: =+I184+I194 ->  | L195: =+L184+L194 -> 
E199: Worksheet 2L -- Summary Results for Urban and Suburban Arterial Intersections
E200: (1) | H200: (2)
E201: Crash severity level | H201: Predicted average crash frequency, Npredicted int (crashes/year)
H204: (Total) from Worksheet 2K
E205: Total | H205: =H168+K168+M157 -> 
E206: Fatal and injury (FI) | H206: =+F195 -> 
E207: Property damage only (PDO) | H207: =+I195 -> 

Sheet 4ST MassDOT (hidden)
A1: Legend
A4: Worksheet 2A -- General Information and Input Data for Urban and Suburban Arterial Intersections
A5: General Information | H5: Location Information
A6: Analyst | E6: ='Input Summary'!B5 -> 0 | H6: City | K6: ='Input Summary'!D5 -> 0
A7: Agency or Company | E7: ='Input Summary'!B6 -> 0 | H7: Intersection | K7: ='Input Summary'!D6 -> 0
A8: Date Performed | E8: ='Input Summary'!B7 -> 00:00:00 | H8: Jurisdiction | K8: ='Input Summary'!D7 -> 0
H9: Analysis Year | K9: ='Input Summary'!D8 -> 0
A10: Input Data | H10: Base Conditions | J10: Site Conditions
A11: Intersection type (3ST, 3SG, 4ST, 4SG) | H11: -- | J11: 4ST | P11: =IF($J$11="3ST","Unsignalized three-leg intersection (stop control on minor-road approaches)",IF($J$11="3SG","Signalized three-leg intersections",IF($J$11="4ST","Unsignalized four-leg intersection (stop control on minor-road approaches)","Signalized four-leg intersections"))) -> Unsignalized four-leg intersection (stop control on minor-road approaches)
A12: AADT major (veh/day) | E12: AADTMAX = | F12: 46800 | G12: (veh/day) | H12: -- | J12: ='Input Summary'!E13 -> 0 | O12: =IF(J12>F12,"AADT out of range","AADT OK") -> AADT OK
A13: AADT minor (veh/day) | E13: AADTMAX = | F13: 5900 | G13: (veh/day) | H13: -- | J13: ='Input Summary'!E14 -> 0 | O13: =IF(J13>F13,"AADT out of range","AADT OK") -> AADT OK
A14: Intersection lighting (present/not present) | H14: Not Present | J14: ='Input Summary'!E15 -> Not Present
A15: Calibration factor, Ci | H15: 1 | J15: ='Calibration Factors'!G7 -> 1.01
A16: Data for unsignalized intersections only: | H16: -- | J16: --
A17: Number of major-road approaches with left-turn lanes (0,1,2) | H17: 0 | J17: ='Input Summary'!E19 -> 0
A18: Number of major-road approaches with right-turn lanes (0,1,2) | H18: 0 | J18: ='Input Summary'!E20 -> 0
D20: SUMMARY OF INTERSECTION & CRASHES
D22: CMF1i | E22: CMF2i | F22: CMF3i | G22: CMF 4i | H22: CMF 5i | I22: Nbi_total | J22: Npedi_total | K22: Nbikei_total | L22: Npredictedint
D23: =A60 -> 1 | E23: =C60 -> 1 | F23: =E60 -> 1 | G23: =G60 -> 1 | H23: =I60 -> 1 | I23: =H157 ->  | J23: =M157 ->  | K23: =K168 ->  | L23: =H205 -> 
A54: Worksheet 2B -- Crash Modification Factors for Urban and Suburban Arterial Intersections
A55: (1) | C55: (2) | E55: (3) | G55: (4) | I55: (5) | K55: (6) | M55: (7)
A56: CMF for Left-Turn Lanes | C56: CMF for Left-Turn Signal Phasing | E56: CMF for Right-Turn Lanes | G56: CMF for Right Turn on Red | I56: CMF for Lighting | K56: CMF for Red Light Cameras | M56: Combined CMF
A58: CMF 1i | C58: CMF 2i | E58: CMF 3i | G58: CMF 4i | I58: CMF 5i | K58: CMF 6i | M58: CMF COMB
A59: from Table 12-24 | C59: from Table 12-25 | E59: from Table 12-26 | G59: from Equation 12-35 | I59: from Equation 12-36 | K59: from Equation 12-37 | M59: (1)*(2)*(3)*(4)*(5)*(6)
A60: =IF(J17=0,1,IF(J17=1,'Intersection Tables'!AB15,'Intersection Tables'!AC15)) -> 1 | C60: 1 | E60: =IF(J18=0,1,IF(J18=1,'Intersection Tables'!AB30,'Intersection Tables'!AC30)) -> 1 | G60: 1 | I60: =IF($J$14="Not Present",1,1-'Intersection Tables'!F88*0.38) -> 1 | K60: 1 | M60: =+A60*C60*E60*G60*I60*K60 -> 1
A64: Worksheet 2C -- Multiple-Vehicle Collisions by Severity Level for Urban and Suburban Arterial Intersections
A65: (1) | C65: (2) | F65: (3) | H65: (4) | I65: (5) | K65: (6) | L65: (7) | M65: (8) | N65: (9)
A66: Crash Severity Level | C66: SPF Coefficients | F66: Overdispersion Parameter, k | H66: Initial Nbimv | I66: Proportion of Total Crashes | K66: Adjusted Nbimv | L66: Combined CMFs | M66: Calibration Factor, Ci | N66: Predicted Nbimv
C68: from Table 12-10 | F68: from Table 12-10 | H68: from Equation 12-21 | K68: (4)TOTAL*(5) | L68: (7) from Worksheet 2B | N68: (6)*(7)*(8)
C69: a | D69: b | E69: c
A70: Total | C70: ='Intersection Tables'!C15 -> -9.331 | D70: ='Intersection Tables'!D15 -> 0.573 | E70: ='Intersection Tables'!E15 -> 0.649 | F70: ='Intersection Tables'!F15 -> 1.21 | H70: =EXP(C70+(D70*LN($J$12))+(E70*LN($J$13))) ->  | I70: 1 | K70: =H70*I70 ->  | L70: =+$M$60 -> 1 | M70: =+$J$15 -> 1.01 | N70: =+K70*L70*M70 -> 
A71: Fatal and Injury (FI) | C71: ='Intersection Tables'!C20 -> -7.309 | D71: ='Intersection Tables'!D20 -> 0.424 | E71: ='Intersection Tables'!E20 -> 0.413 | F71: ='Intersection Tables'!F20 -> 1.75 | H71: =EXP(C71+(D71*LN($J$12))+(E71*LN($J$13))) ->  | I71: (4)FI/((4)FI+(4)PDO) | K71: =H70*I72 ->  | L71: =+$M$60 -> 1 | M71: =+$J$15 -> 1.01 | N71: =+K71*L71*M71 -> 
I72: =+H71/(H71+H73) -> 
A73: Property Damage Only (PDO) | C73: ='Intersection Tables'!C25 -> -11.569 | D73: ='Intersection Tables'!D25 -> 0.675 | E73: ='Intersection Tables'!E25 -> 0.769 | F73: ='Intersection Tables'!F25 -> 1.03 | H73: =EXP(C73+(D73*LN($J$12))+(E73*LN($J$13))) ->  | I73: (5)TOTAL-(5)FI | K73: =H70*I74 ->  | L73: =+$M$60 -> 1 | M73: =+$J$15 -> 1.01 | N73: =+K73*L73*M73 -> 
I74: =I70-I72 -> 
A92: Worksheet 2D -- Multiple-Vehicle Collisions by Collision Type for Urban and Suburban Arterial Intersections
A93: (1) | D93: (2) | F93: (3) | H93: (4) | J93: (5) | L93: (6)
A94: Collision Type | D94: Proportion of Collision Type(FI) | F94: Predicted N bimv (FI) (crashes/year) | H94: Proportion of Collision Type (PDO) | J94: Predicted N bimv (PDO) (crashes/year) | L94: Predicted N bimv (TOTAL) (crashes/year)
D97: from Table 12-11 | F97: (9)FI from Worksheet 2C | H97: from Table 12-11 | J97: (9)PDO from Worksheet 2C | L97: (9)PDO from Worksheet 2C
A99: Total | D99: =SUM(D101:E105) -> 1 | F99: =+N71 ->  | H99: =SUM(H101:I105) -> 1 | J99: =+N73 ->  | L99: =+N70 -> 
F100: (2)*(3)FI | J100: (4)*(5)PDO | L100: (3)+(5)
A101: Rear-end collision | D101: ='Intersection Tables'!H50 -> 0.077 | F101: =+D101*$F$99 ->  | H101: ='Intersection Tables'!I50 -> 0.157 | J101: =+H101*$J$99 ->  | L101: =+F101+J101 -> 
A102: Head-on collision | D102: ='Intersection Tables'!H51 -> 0.015 | F102: =+D102*$F$99 ->  | H102: ='Intersection Tables'!I51 -> 0.034 | J102: =+H102*$J$99 ->  | L102: =+F102+J102 -> 
A103: Angle collision | D103: ='Intersection Tables'!H52 -> 0.823 | F103: =+D103*$F$99 ->  | H103: ='Intersection Tables'!I52 -> 0.719 | J103: =+H103*$J$99 ->  | L103: =+F103+J103 -> 
A104: Sideswipe | D104: ='Intersection Tables'!H53 -> 0.031 | F104: =+D104*$F$99 ->  | H104: ='Intersection Tables'!I53 -> 0.068 | J104: =+H104*$J$99 ->  | L104: =+F104+J104 -> 
A105: Other multiple-vehicle collision | D105: ='Intersection Tables'!H54 -> 0.054 | F105: =+D105*$F$99 ->  | H105: ='Intersection Tables'!I54 -> 0.022 | J105: =+H105*$J$99 ->  | L105: =+F105+J105 -> 
A109: Worksheet 2E -- Single-Vehicle Collisions by Severity Level for Urban and Suburban Arterial Intersections
A110: (1) | C110: (2) | F110: (3) | H110: (4) | I110: (5) | K110: (6) | L110: (7) | M110: (8) | N110: (9)
A111: Crash Severity Level | C111: SPF Coefficients | F111: Overdispersion Parameter, k | H111: Initial Nbisv | I111: Proportion of Total Crashes | K111: Adjusted Nbimv | L111: Combined CMFs | M111: Calibration Factor, Ci | N111: Predicted Nbisv
C113: from Table 12-12 | F113: from Table 12-12 | H113: from Eqn. 12-24; (FI) from Eqn. 12-24 or 12-27 | K113: (4)TOTAL*(5) | L113: (7) from Worksheet 2B | N113: (6)*(7)*(8)
C114: a | D114: b | E114: c
A116: Total | C116: ='Intersection Tables'!J15 -> -6.117 | D116: ='Intersection Tables'!K15 -> 0.353 | E116: ='Intersection Tables'!L15 -> 0.111 | F116: ='Intersection Tables'!M15 -> 2.45 | H116: =EXP(C116+(D116*LN($J$12))+(E116*LN($J$13))) ->  | I116: 1 | K116: =H116*I116 ->  | L116: =+M60 -> 1 | M116: =+$J$15 -> 1.01 | N116: =+K116*L116*M116 -> 
A117: Fatal and Injury (FI) | C117: =VLOOKUP($J$11,'Intersection Tables'!$I$18:$M$21,2,FALSE) -> -- | D117: =VLOOKUP($J$11,'Intersection Tables'!$I$18:$M$21,3,FALSE) -> -- | E117: =VLOOKUP($J$11,'Intersection Tables'!$I$18:$M$21,4,FALSE) -> -- | F117: =VLOOKUP($J$11,'Intersection Tables'!$I$18:$M$21,5,FALSE) -> 0 | H117: =H116*'Intersection Tables'!Q79 ->  | I117: (4)FI/((4)FI+(4)PDO) | K117: =H116*I118 ->  | L117: =+M60 -> 1 | M117: =+$J$15 -> 1.01 | N117: =+K117*L117*M117 -> 
I118: =+H117/(H117+H119) -> 
A119: Property Damage Only (PDO) | C119: ='Intersection Tables'!J25 -> -5.902 | D119: ='Intersection Tables'!K25 -> 0.266 | E119: ='Intersection Tables'!L25 -> 0.15 | F119: ='Intersection Tables'!M25 -> 1.27 | H119: =EXP(C119+(D119*LN($J$12))+(E119*LN($J$13))) ->  | I119: (5)TOTAL-(5)FI | K119: =H116*I120 ->  | L119: =+M60 -> 1 | M119: =+$J$15 -> 1.01 | N119: =+K119*L119*M119 -> 
I120: =I116-I118 -> 
A124: Worksheet 2F -- Single-Vehicle Collisions by Collision Type for Urban and Suburban Arterial Intersections
A125: (1) | D125: (2) | F125: (3) | H125: (4) | J125: (5) | L125: (6)
A126: Collision Type | D126: Proportion of Collision Type(FI) | F126: Predicted N bisv (FI) (crashes/year) | H126: Proportion of Collision Type (PDO) | J126: Predicted N bisv (PDO) (crashes/year) | L126: Predicted N bisv (TOTAL) (crashes/year)
D129: from Table 12-13 | F129: (9)FI from Worksheet 2E | H129: from Table 12-13 | J129: (9)PDO from Worksheet 2E | L129: (9)PDO from Worksheet 2E
A131: Total | D131: 1 | F131: =+N117 ->  | H131: 1 | J131: =+N119 ->  | L131: =+N116 -> 
F132: (2)*(3)FI | J132: (4)*(5)PDO | L132: (3)+(5)
A133: Collision with parked vehicle | D133: ='Intersection Tables'!H74 -> 0 | F133: =+D133*$F$131 ->  | H133: ='Intersection Tables'!I74 -> 0.095 | J133: =+H133*$J$131 ->  | L133: =+F133+J133 -> 
A134: Collision with animal | D134: ='Intersection Tables'!H75 -> 0 | H134: ='Intersection Tables'!I75 -> 0.095
A135: Collision with fixed object | D135: ='Intersection Tables'!H76 -> 0.5 | H135: ='Intersection Tables'!I76 -> 0.571
A136: Collision with other object | D136: ='Intersection Tables'!H77 -> 0 | H136: ='Intersection Tables'!I77 -> 0.048
A137: Other single-vehicle collision | D137: ='Intersection Tables'!H78 -> 0.5 | H137: ='Intersection Tables'!I78 -> 0.191
A138: Single-vehicle noncollision | D138: ='Intersection Tables'!H79 -> 0 | H138: ='Intersection Tables'!I79 -> 0
A151: Worksheet 2G -- Vehicle-Pedestrian Collisions for Urban and Suburban Arterial Stop-Controlled Intersections
A152: (1) | D152: (2) | F152: (3) | H152: (4) | I152: (5) | M152: (7)
A153: Crash Severity Level | D153: Predicted Nbimv | F153: Predicted Nbisv | H153: Predicted Nbi | I153: fpedi | M153: Predicted Npedi
D155: (9) from Worksheet 2C | F155: (9) from Worksheet 2E | H155: (2) + (3) | I155: from Table 12-16 | M155: (4)*(5)
A157: Total | D157: =N70 ->  | F157: =N116 ->  | H157: =D157+F157 ->  | I157: ='Intersection Tables'!M102 -> 0.01275510204 | M157: =H157*I157 -> 
A158: Fatal and injury (FI) | D158: -- | F158: -- | H158: -- | I158: -- | M158: =H157*I157 -> 
A162: Worksheet 2J -- Vehicle-Bicycle Collisions for Urban and Suburban Arterial Intersections
A163: (1) | D163: (2) | F163: (3) | H163: (4) | I163: (5) | K163: (7)
A164: Crash Severity Level | D164: Predicted Nbimv | F164: Predicted Nbisv | H164: Predicted Nbi | I164: fbikei | K164: Predicted Nbikei
D166: (9) from Worksheet 2C | F166: (9) from Worksheet 2E | H166: (2) + (3) | I166: from Table 12-17 | K166: (4)*(5)
A168: Total | D168: =+$N$70 ->  | F168: =+$N$116 ->  | H168: =+D168+F168 ->  | I168: ='Intersection Tables'!N102 -> 0.01275510204 | K168: =+$H$168*$I$168 -> 
A169: Fatal and injury (FI) | D169: -- | F169: -- | H169: -- | I169: -- | K169: =+$H$168*$I$168 -> 
A173: Worksheet 2K -- Crash Severity Distribution for Urban and Suburban Arterial Intersections
A174: (1) | F174: (2) | I174: (3) | L174: (4)
A175: Collision type | F175: Fatal and injury (FI) | I175: Property damage only (PDO) | L175: Total
F176: (3) from Worksheet 2D and 2F; | I176: (5) from Worksheet 2D and 2F | L176: (6) from Worksheet 2D and 2F;
F177: (7) from Worksheet 2G and 2J | L177: (7) from Worksheet 2G and 2J
A178: MULTIPLE-VEHICLE
A179: Rear-end collisions (from Worksheet 2D) | F179: =+F101 ->  | I179: =+J101 ->  | L179: =+L101 -> 
A180: Head-on collisions (from Worksheet 2D) | F180: =+F102 ->  | I180: =+J102 ->  | L180: =+L102 -> 
A181: Angle collisions (from Worksheet 2D) | F181: =+F103 ->  | I181: =+J103 ->  | L181: =+L103 -> 
A182: Sideswipe (from Worksheet 2D) | F182: =+F104 ->  | I182: =+J104 ->  | L182: =+L104 -> 
A183: Other multiple-vehicle collision (from Worksheet 2D) | F183: =+F105 ->  | I183: =+J105 ->  | L183: =+L105 -> 
A184: Subtotal | F184: =SUM(F179:H183) ->  | I184: =SUM(I179:K183) ->  | L184: =SUM(L179:N183) -> 
A185: SINGLE-VEHICLE
A186: Collision with parked vehicle (from Worksheet 2F) | F186: =+F133 ->  | I186: =+J133 ->  | L186: =+L133 -> 
A187: Collision with animal (from Worksheet 2F)
A188: Collision with fixed object (from Worksheet 2F)
A189: Collision with other object (from Worksheet 2F)
A190: Other single-vehicle collision (from Worksheet 2F)
A191: Single-vehicle noncollision (from Worksheet 2F)
A192: Collision with pedestrian (from Worksheet 2G or 2I) | F192: =IF(J11="3ST",M158,IF(J11="4ST",M158,#REF!)) ->  | I192: 0 | L192: =+F192+I192 -> 
A193: Collision with bicycle (from Worksheet 2J) | F193: =+K169 ->  | I193: 0 | L193: =+F193+I193 -> 
A194: Subtotal | F194: =SUM(F186:H193) ->  | I194: =SUM(I186:K193) ->  | L194: =SUM(L186:N193) -> 
A195: Total | F195: =+F184+F194 ->  | I195: =+I184+I194 ->  | L195: =+L184+L194 -> 
E199: Worksheet 2L -- Summary Results for Urban and Suburban Arterial Intersections
E200: (1) | H200: (2)
E201: Crash severity level | H201: Predicted average crash frequency, Npredicted int (crashes/year)
H204: (Total) from Worksheet 2K
E205: Total | H205: =H168+M157+K168 -> 
E206: Fatal and injury (FI) | H206: =+F195 -> 
E207: Property damage only (PDO) | H207: =+I195 -> 

Sheet 3SG MassDOT (hidden)
A1: Legend
A4: Worksheet 2A -- General Information and Input Data for Urban and Suburban Arterial Intersections
A5: General Information | H5: Location Information
A6: Analyst | E6: ='Input Summary'!B5 -> 0 | H6: City | K6: ='Input Summary'!D5 -> 0
A7: Agency or Company | E7: ='Input Summary'!B6 -> 0 | H7: Intersection | K7: ='Input Summary'!D6 -> 0
A8: Date Performed | E8: ='Input Summary'!B7 -> 00:00:00 | H8: Jurisdiction | K8: ='Input Summary'!D7 -> 0
H9: Analysis Year | K9: ='Input Summary'!D8 -> 0
A10: Input Data | H10: Base Conditions | J10: Site Conditions
A11: Intersection type (3ST, 3SG, 4ST, 4SG) | H11: -- | J11: 3SG
A12: AADT major (veh/day) | E12: AADTMAX = | F12: 58100 | G12: (veh/day) | H12: -- | J12: ='Input Summary'!E13 -> 0 | O12: =IF(J12>F12,"AADT out of range","AADT OK") -> AADT OK
A13: AADT minor (veh/day) | E13: AADTMAX = | F13: 16400 | G13: (veh/day) | H13: -- | J13: ='Input Summary'!E14 -> 0 | O13: =IF(J13>F13,"AADT out of range","AADT OK") -> AADT OK
A14: Intersection lighting (present/not present) | H14: Not Present | J14: ='Input Summary'!E15 -> Not Present
A15: Calibration factor, Ci | H15: 1 | J15: ='Calibration Factors'!D7 -> 0.98
A16: Data for signalized intersections only: | H16: -- | J16: --
A17: Number of approaches with left-turn lanes (0,1,2,3,4) [for 3SG, use maximum value of 3] | H17: 0 | J17: ='Input Summary'!E24 -> 2
A18: Number of approaches with right-turn lanes (0,1,2,3,4) [for 3SG, use maximum value of 3] | H18: 0 | J18: ='Input Summary'!E25 -> 0
A19: Number of approaches with left-turn signal phasing [for 3SG, use maximum value of 3] | H19: -- | J19: ='Input Summary'!E26 -> 0
A20: Type of left-turn signal phasing for Leg #1 | H20: Permissive | J20: ='Input Summary'!E27 -> Permissive
A21: Type of left-turn signal phasing for Leg #2 | H21: -- | J21: ='Input Summary'!E28 -> Permissive
A22: Type of left-turn signal phasing for Leg #3 | H22: -- | J22: ='Input Summary'!E29 -> Permissive
A23: Type of left-turn signal phasing for Leg #4 (if applicable) | H23: -- | J23: ='Input Summary'!E30 -> Permissive
A24: Number of approaches with right-turn-on-red prohibited [for 3SG, use maximum value of 3] | H24: 0 | J24: ='Input Summary'!E31 -> 0
A25: Intersection red light cameras (present/not present) | H25: Not Present | J25: ='Input Summary'!E32 -> Not Present
A26: Sum of all pedestrian crossing volumes (PedVol) -- Signalized intersections only | J26: ='Input Summary'!E33 -> 1
A27: Maximum number of lanes crossed by a pedestrian (nlanesx) | H27: -- | J27: ='Input Summary'!E34 -> 0
A28: Number of bus stops within 300 m (1,000 ft) of the intersection | H28: 0 | J28: ='Input Summary'!E35 -> 0
A29: Schools within 300 m (1,000 ft) of the intersection (present/not present) | H29: Not Present | J29: ='Input Summary'!E36 -> Not Present
A30: Number of alcohol sales establishments within 300 m (1,000 ft) of the intersection | H30: 0 | J30: ='Input Summary'!E37 -> 0
B32: SUMMARY OF INTERSECTION & CRASHES
B34: CMF1i | C34: CMF2i | D34: CMF3i | E34: CMF 4i | F34: CMF 5i | G34: CMF 1p | H34: CMF 2p | I34: CMF 3p | J34: Nbi_total | K34: Npedi_total | L34: Nbikei_total | M34: Npredictedint
B35: =A60 -> 0.86 | C35: =C60 -> 1 | D35: =E60 -> 1 | E35: =G60 -> 1 | F35: =I60 -> 1 | G35: =B147 -> 1 | H35: =E147 -> 1 | I35: =H147 -> 1 | J35: =H168 ->  | K35: =M157 ->  | L35: =K168 ->  | M35: =H205 -> 
A54: Worksheet 2B -- Crash Modification Factors for Urban and Suburban Arterial Intersections
A55: (1) | C55: (2) | E55: (3) | G55: (4) | I55: (5) | K55: (6) | M55: (7)
A56: CMF for Left-Turn Lanes | C56: CMF for Left-Turn Signal Phasing | E56: CMF for Right-Turn Lanes | G56: CMF for Right Turn on Red | I56: CMF for Lighting | K56: CMF for Red Light Cameras | M56: Combined CMF
A58: CMF 1i | C58: CMF 2i | E58: CMF 3i | G58: CMF 4i | I58: CMF 5i | K58: CMF 6i | M58: CMF COMB
A59: from Table 12-24 | C59: from Table 12-25 | E59: from Table 12-26 | G59: from Equation 12-35 | I59: from Equation 12-36 | K59: from Equation 12-37 | M59: (1)*(2)*(3)*(4)*(5)*(6)
A60: =IF(J17=0,1,IF(J17=1,'Intersection Tables'!AB14,IF(J17=2,'Intersection Tables'!AC14,'Intersection Tables'!AD14))) -> 0.86 | C60: =IF(J20="Not Applicable",1,IF(J20="Protected",'Intersection Tables'!AC43,IF(J20="Permissive",'Intersection Tables'!AC41,'Intersection Tables'!AC42)))*IF(J21="Not Applicable",1,IF(J21="Protected",'Intersection Tables'!AC43,IF(J21="Permissive",'Intersection Tables'!AC41,'Intersection Tables'!AC42)))*IF(J22="Not Applicable",1,IF(J22="Protected",'Intersection Tables'!AC43,IF(J22="Permissive",'Intersection Tables'!AC41,'Intersection Tables'!AC42)))*IF(J23="Not Applicable",1,IF(J23="Protected",'Intersection Tables'!AC43,IF(J23="Permissive",'Intersection Tables'!AC41,'Intersection Tables'!AC42))) -> 1 | E60: =IF(J18=0,1,IF(J18=1,'Intersection Tables'!AB29,'Intersection Tables'!AC29)) -> 1 | G60: =POWER(0.98,$J$24) -> 1 | I60: =IF($J$14="Not Present",1,(1-'Intersection Tables'!F89*0.38)) -> 1 | K60: 1 | M60: =+A60*C60*E60*G60*I60*K60 -> 0.86
A64: Worksheet 2C -- Multiple-Vehicle Collisions by Severity Level for Urban and Suburban Arterial Intersections
A65: (1) | C65: (2) | F65: (3) | H65: (4) | I65: (5) | K65: (6) | L65: (7) | M65: (8) | N65: (9)
A66: Crash Severity Level | C66: SPF Coefficients | F66: Overdispersion Parameter, k | H66: Initial Nbimv | I66: Proportion of Total Crashes | K66: Adjusted Nbimv | L66: Combined CMFs | M66: Calibration Factor, Ci | N66: Predicted Nbimv
C68: from Table 12-10 | F68: from Table 12-10 | H68: from Equation 12-21 | K68: (4)TOTAL*(5) | L68: (7) from Worksheet 2B | N68: (6)*(7)*(8)
C69: a | D69: b | E69: c
A70: Total | C70: ='Intersection Tables'!C14 -> -2.511 | D70: ='Intersection Tables'!D14 -> 0.352 | E70: ='Intersection Tables'!E14 -> 0.057 | F70: ='Intersection Tables'!F14 -> 0.58 | H70: =EXP(C70+(D70*LN($J$12))+(E70*LN($J$13))) ->  | I70: 1 | K70: =H70*I70 ->  | L70: =+M60 -> 0.86 | M70: =+$J$15 -> 0.98 | N70: =+K70*L70*M70 -> 
A71: Fatal and Injury (FI) | C71: ='Intersection Tables'!C19 -> -2.761 | D71: ='Intersection Tables'!D19 -> 0.267 | E71: ='Intersection Tables'!E19 -> 0.018 | F71: ='Intersection Tables'!F19 -> 0.77 | H71: =EXP(C71+(D71*LN($J$12))+(E71*LN($J$13))) ->  | I71: (4)FI/((4)FI+(4)PDO) | K71: =H70*I72 ->  | L71: =+M60 -> 0.86 | M71: =+$J$15 -> 0.98 | N71: =+K71*L71*M71 -> 
I72: =+H71/(H71+H73) -> 
A73: Property Damage Only (PDO) | C73: ='Intersection Tables'!C24 -> -4.325 | D73: ='Intersection Tables'!D24 -> 0.429 | E73: ='Intersection Tables'!E24 -> 0.151 | F73: ='Intersection Tables'!F24 -> 0.59 | H73: =EXP(C73+(D73*LN($J$12))+(E73*LN($J$13))) ->  | I73: (5)TOTAL-(5)FI | K73: =H70*I74 ->  | L73: =+M60 -> 0.86 | M73: =+$J$15 -> 0.98 | N73: =+K73*L73*M73 -> 
I74: =I70-I72 -> 
A92: Worksheet 2D -- Multiple-Vehicle Collisions by Collision Type for Urban and Suburban Arterial Intersections
A93: (1) | D93: (2) | F93: (3) | H93: (4) | J93: (5) | L93: (6)
A94: Collision Type | D94: Proportion of Collision Type(FI) | F94: Predicted N bimv (FI) (crashes/year) | H94: Proportion of Collision Type (PDO) | J94: Predicted N bimv (PDO) (crashes/year) | L94: Predicted N bimv (TOTAL) (crashes/year)
D97: from Table 12-11 | F97: (9)FI from Worksheet 2C | H97: from Table 12-11 | J97: (9)PDO from Worksheet 2C | L97: (9)PDO from Worksheet 2C
A99: Total | D99: =SUM(D101:E105) -> 1 | F99: =+N71 ->  | H99: =SUM(H101:I105) -> 1 | J99: =+N73 ->  | L99: =+N70 -> 
F100: (2)*(3)FI | J100: (4)*(5)PDO | L100: (3)+(5)
A101: Rear-end collision | D101: ='Intersection Tables'!F50 -> 0.363 | F101: =+D101*$F$99 ->  | H101: ='Intersection Tables'!G50 -> 0.496 | J101: =+H101*$J$99 ->  | L101: =+F101+J101 -> 
A102: Head-on collision | D102: ='Intersection Tables'!F51 -> 0.104 | F102: =+D102*$F$99 ->  | H102: ='Intersection Tables'!G51 -> 0.04 | J102: =+H102*$J$99 ->  | L102: =+F102+J102 -> 
A103: Angle collision | D103: ='Intersection Tables'!F52 -> 0.39 | F103: =+D103*$F$99 ->  | H103: ='Intersection Tables'!G52 -> 0.285 | J103: =+H103*$J$99 ->  | L103: =+F103+J103 -> 
A104: Sideswipe | D104: ='Intersection Tables'!F53 -> 0.065 | F104: =+D104*$F$99 ->  | H104: ='Intersection Tables'!G53 -> 0.157 | J104: =+H104*$J$99 ->  | L104: =+F104+J104 -> 
A105: Other multiple-vehicle collision | D105: ='Intersection Tables'!F54 -> 0.078 | F105: =+D105*$F$99 ->  | H105: ='Intersection Tables'!G54 -> 0.022 | J105: =+H105*$J$99 ->  | L105: =+F105+J105 -> 
A109: Worksheet 2E -- Single-Vehicle Collisions by Severity Level for Urban and Suburban Arterial Intersections
A110: (1) | C110: (2) | F110: (3) | H110: (4) | I110: (5) | K110: (6) | L110: (7) | M110: (8) | N110: (9)
A111: Crash Severity Level | C111: SPF Coefficients | F111: Overdispersion Parameter, k | H111: Initial Nbisv | I111: Proportion of Total Crashes | K111: Adjusted Nbimv | L111: Combined CMFs | M111: Calibration Factor, Ci | N111: Predicted Nbisv
C113: from Table 12-12 | F113: from Table 12-12 | H113: from Eqn. 12-24; (FI) from Eqn. 12-24 or 12-27 | K113: (4)TOTAL*(5) | L113: (7) from Worksheet 2B | N113: (6)*(7)*(8)
C114: a | D114: b | E114: c
A116: Total | C116: ='Intersection Tables'!J14 -> -6.309 | D116: ='Intersection Tables'!K14 -> 0.306 | E116: ='Intersection Tables'!L14 -> 0.223 | F116: ='Intersection Tables'!M14 -> 0.2 | H116: =EXP(C116+(D116*LN($J$12))+(E116*LN($J$13))) ->  | I116: 1 | K116: =H116*I116 ->  | L116: =+M60 -> 0.86 | M116: =+$J$15 -> 0.98 | N116: =+K116*L116*M116 -> 
A117: Fatal and Injury (FI) | C117: ='Intersection Tables'!J19 -> -7.212 | D117: ='Intersection Tables'!K19 -> 0.351 | E117: ='Intersection Tables'!L19 -> 0.147 | F117: ='Intersection Tables'!M19 -> 0.16 | H117: =EXP(C117+(D117*LN($J$12))+(E117*LN($J$13))) ->  | I117: (4)FI/((4)FI+(4)PDO) | K117: =H116*I118 ->  | L117: =+M60 -> 0.86 | M117: =+$J$15 -> 0.98 | N117: =+K117*L117*M117 -> 
I118: =+H117/(H117+H119) -> 
A119: Property Damage Only (PDO) | C119: ='Intersection Tables'!J24 -> -7.522 | D119: ='Intersection Tables'!K24 -> 0.265 | E119: ='Intersection Tables'!L24 -> 0.361 | F119: ='Intersection Tables'!M24 -> 0.55 | H119: =EXP(C119+(D119*LN($J$12))+(E119*LN($J$13))) ->  | I119: (5)TOTAL-(5)FI | K119: =H116*I120 ->  | L119: =+M60 -> 0.86 | M119: =+$J$15 -> 0.98 | N119: =+K119*L119*M119 -> 
I120: =I116-I118 -> 
A124: Worksheet 2F -- Single-Vehicle Collisions by Collision Type for Urban and Suburban Arterial Intersections
A125: (1) | D125: (2) | F125: (3) | H125: (4) | J125: (5) | L125: (6)
A126: Collision Type | D126: Proportion of Collision Type(FI) | F126: Predicted N bisv (FI) (crashes/year) | H126: Proportion of Collision Type (PDO) | J126: Predicted N bisv (PDO) (crashes/year) | L126: Predicted N bisv (TOTAL) (crashes/year)
D129: from Table 12-13 | F129: (9)FI from Worksheet 2E | H129: from Table 12-13 | J129: (9)PDO from Worksheet 2E | L129: (9)PDO from Worksheet 2E
A131: Total | D131: =SUM(D133:E138) -> 1 | F131: =+N117 ->  | H131: =SUM(H133:I138) -> 1 | J131: =+N119 ->  | L131: =+N116 -> 
F132: (2)*(3)FI | J132: (4)*(5)PDO | L132: (3)+(5)
A133: Collision with parked vehicle | D133: ='Intersection Tables'!F74 -> 0.154 | F133: =+D133*$F$131 ->  | H133: ='Intersection Tables'!G74 -> 0.042 | J133: =+H133*$J$131 ->  | L133: =+F133+J133 -> 
A134: Collision with animal | D134: ='Intersection Tables'!F75 -> 0 | H134: ='Intersection Tables'!G75 -> 0
A135: Collision with fixed object | D135: ='Intersection Tables'!F76 -> 0.615 | H135: ='Intersection Tables'!G76 -> 0.875
A136: Collision with other object | D136: ='Intersection Tables'!F77 -> 0 | H136: ='Intersection Tables'!G77 -> 0
A137: Other single-vehicle collision | D137: ='Intersection Tables'!F78 -> 0.154 | H137: ='Intersection Tables'!G78 -> 0.083
A138: Single-vehicle noncollision | D138: ='Intersection Tables'!F79 -> 0.077 | H138: ='Intersection Tables'!G79 -> 0
B142: Worksheet 2G-1 -- Crash Modification Factors for Vehicle-Pedestrian Collisions for Urban and Suburban Arterial Signalized Intersections
B143: (1) | E143: (2) | H143: (3) | K143: (4)
B144: CMF for Bus Stops | E144: CMF for Schools | H144: CMF for Alcohol Sales Establishments | K144: Combined CMF
B145: CMF1p | E145: CMF2p | H145: CMF3p
B146: from Table 12-28 | E146: from Table 12-29 | H146: from Table 12-30 | K146: (1)*(2)*(3)
B147: =IF($J$28=0,'Intersection Tables'!AC51,IF($J$28<=2,'Intersection Tables'!AC52,'Intersection Tables'!AC53)) -> 1 | E147: =IF($J$29="Present",'Intersection Tables'!AC62,'Intersection Tables'!AC61) -> 1 | H147: =IF(J30=0,'Intersection Tables'!AC70,IF(J30<=8,'Intersection Tables'!AC71,'Intersection Tables'!AC72)) -> 1 | K147: =IF(J11="3ST","--",IF(J11="4ST","--",B147*E147*H147)) -> 1
A151: Worksheet 2G -- Vehicle-Pedestrian Collisions for Urban and Suburban Arterial Signalized Intersections
A152: (1) | C152: (2) | H152: (3) | I152: (4) | K152: (5) | M152: (7)
A153: Crash Severity Level | C153: SPF Coefficients | H153: Overdispersion Parameter, k | I153: Npedbase | K153: Combined CMF | M153: Predicted Npedi
C155: from Table 12-14 | I155: from Equation 12-29 | K155: (4) from Worksheet 2G-1 | M155: (4)*(5)
C156: a | D156: b | E156: c | F156: d | G156: e
A157: Total | C157: ='Intersection Tables'!Q13 -> -7.782 | D157: ='Intersection Tables'!R13 -> 0.212 | E157: ='Intersection Tables'!S13 -> 0.178 | F157: ='Intersection Tables'!T13 -> 0.289 | G157: ='Intersection Tables'!U13 -> 0.144 | H157: ='Intersection Tables'!V13 -> 0.22 | I157: =EXP(+$C157+($D157*LN($J$12+J$13))+(E$157*LN($J$13/$J$12))+(F$157*LN($J$26))+(G$157*$J$27)) ->  | K157: =+$K$147 -> 1 | M157: =$I$157*$K$157 -> 
A158: Fatal and Injury (FI) | C158: -- | D158: -- | E158: -- | F158: -- | G158: -- | H158: -- | I158: -- | K158: -- | M158: =M157 -> 
A162: Worksheet 2J -- Vehicle-Bicycle Collisions for Urban and Suburban Arterial Intersections
A163: (1) | D163: (2) | F163: (3) | H163: (4) | I163: (5) | K163: (7)
A164: Crash Severity Level | D164: Predicted Nbimv | F164: Predicted Nbisv | H164: Predicted Nbi | I164: fbikei | K164: Predicted Nbikei
D166: (9) from Worksheet 2C | F166: (9) from Worksheet 2E | H166: (2) + (3) | I166: from Table 12-17 | K166: (4)*(5)
A168: Total | D168: =+$N$70 ->  | F168: =+$N$116 ->  | H168: =+D168+F168 ->  | I168: ='Intersection Tables'!N101 -> 0.0248447205 | K168: =+$H$168*$I$168 -> 
A169: Fatal and injury (FI) | D169: -- | F169: -- | H169: -- | I169: -- | K169: =K168 -> 
A173: Worksheet 2K -- Crash Severity Distribution for Urban and Suburban Arterial Intersections
A174: (1) | F174: (2) | I174: (3) | L174: (4)
A175: Collision type | F175: Fatal and injury (FI) | I175: Property damage only (PDO) | L175: Total
F176: (3) from Worksheet 2D and 2F; | I176: (5) from Worksheet 2D and 2F | L176: (6) from Worksheet 2D and 2F;
F177: (7) from Worksheet 2G and 2J | L177: (7) from Worksheet 2G and 2J
A178: MULTIPLE-VEHICLE
A179: Rear-end collisions (from Worksheet 2D) | F179: =+F101 ->  | I179: =+J101 ->  | L179: =+L101 -> 
A180: Head-on collisions (from Worksheet 2D) | F180: =+F102 ->  | I180: =+J102 ->  | L180: =+L102 -> 
A181: Angle collisions (from Worksheet 2D) | F181: =+F103 ->  | I181: =+J103 ->  | L181: =+L103 -> 
A182: Sideswipe (from Worksheet 2D) | F182: =+F104 ->  | I182: =+J104 ->  | L182: =+L104 -> 
A183: Other multiple-vehicle collision (from Worksheet 2D) | F183: =+F105 ->  | I183: =+J105 ->  | L183: =+L105 -> 
A184: Subtotal | F184: =SUM(F179:H183) ->  | I184: =SUM(I179:K183) ->  | L184: =SUM(L179:N183) -> 
A185: SINGLE-VEHICLE
A186: Collision with parked vehicle (from Worksheet 2F) | F186: =+F133 ->  | I186: =+J133 ->  | L186: =+L133 -> 
A187: Collision with animal (from Worksheet 2F)
A188: Collision with fixed object (from Worksheet 2F)
A189: Collision with other object (from Worksheet 2F)
A190: Other single-vehicle collision (from Worksheet 2F)
A191: Single-vehicle noncollision (from Worksheet 2F)
A192: Collision with pedestrian (from Worksheet 2G or 2I) | F192: =IF(J11="3ST",#REF!,IF(J11="4ST",#REF!,M158)) ->  | I192: 0 | L192: =+F192+I192 -> 
A193: Collision with bicycle (from Worksheet 2J) | F193: =+K169 ->  | I193: 0 | L193: =+F193+I193 -> 
A194: Subtotal | F194: =SUM(F186:H193) ->  | I194: =SUM(I186:K193) ->  | L194: =SUM(L186:N193) -> 
A195: Total | F195: =+F184+F194 ->  | I195: =+I184+I194 ->  | L195: =+L184+L194 -> 
E199: Worksheet 2L -- Summary Results for Urban and Suburban Arterial Intersections
E200: (1) | H200: (2)
E201: Crash severity level | H201: Predicted average crash frequency, Npredicted int (crashes/year)
H204: (Total) from Worksheet 2K
E205: Total | H205: =H168+M157+K168 -> 
E206: Fatal and injury (FI) | H206: =+F195 -> 
E207: Property damage only (PDO) | H207: =+I195 -> 

Sheet 4SG MassDOT (hidden)
A1: Legend
A4: Worksheet 2A -- General Information and Input Data for Urban and Suburban Arterial Intersections
A5: General Information | H5: Location Information
A6: Analyst | E6: ='Input Summary'!B5 -> 0 | H6: City | K6: ='Input Summary'!D5 -> 0
A7: Agency or Company | E7: ='Input Summary'!B6 -> 0 | H7: Intersection | K7: ='Input Summary'!D6 -> 0
A8: Date Performed | E8: ='Input Summary'!B7 -> 00:00:00 | H8: Jurisdiction | K8: ='Input Summary'!D7 -> 0
H9: Analysis Year | K9: ='Input Summary'!D8 -> 0
A10: Input Data | H10: Base Conditions | J10: Site Conditions
A11: Intersection type (3ST, 3SG, 4ST, 4SG) | H11: -- | J11: 4SG
A12: AADT major (veh/day) | E12: AADTMAX = | F12: 67700 | G12: (veh/day) | H12: -- | J12: ='Input Summary'!E13 -> 0 | O12: =IF(J12>F12,"AADT out of range","AADT OK") -> AADT OK
A13: AADT minor (veh/day) | E13: AADTMAX = | F13: 33400 | G13: (veh/day) | H13: -- | J13: ='Input Summary'!E14 -> 0 | O13: =IF(J13>F13,"AADT out of range","AADT OK") -> AADT OK
A14: Intersection lighting (present/not present) | H14: Not Present | J14: ='Input Summary'!E15 -> Not Present
A15: Calibration factor, Ci | H15: 1 | J15: ='Calibration Factors'!F7 -> 0.98
A16: Data for signalized intersections only: | H16: -- | J16: --
A17: Number of approaches with left-turn lanes (0,1,2,3,4) [for 3SG, use maximum value of 3] | H17: 0 | J17: ='Input Summary'!E24 -> 2
A18: Number of approaches with right-turn lanes (0,1,2,3,4) [for 3SG, use maximum value of 3] | H18: 0 | J18: ='Input Summary'!E25 -> 0
A19: Number of approaches with left-turn signal phasing [for 3SG, use maximum value of 3] | H19: -- | J19: ='Input Summary'!E26 -> 0
A20: Type of left-turn signal phasing for Leg #1 | H20: Permissive | J20: ='Input Summary'!E27 -> Permissive
A21: Type of left-turn signal phasing for Leg #2 | H21: -- | J21: ='Input Summary'!E28 -> Permissive
A22: Type of left-turn signal phasing for Leg #3 | H22: -- | J22: ='Input Summary'!E29 -> Permissive
A23: Type of left-turn signal phasing for Leg #4 (if applicable) | H23: -- | J23: ='Input Summary'!E30 -> Permissive
A24: Number of approaches with right-turn-on-red prohibited [for 3SG, use maximum value of 3] | H24: 0 | J24: ='Input Summary'!E31 -> 0
A25: Intersection red light cameras (present/not present) | H25: Not Present | J25: ='Input Summary'!E32 -> Not Present
A26: Sum of all pedestrian crossing volumes (PedVol) -- Signalized intersections only | J26: ='Input Summary'!E33 -> 1
A27: Maximum number of lanes crossed by a pedestrian (nlanesx) | H27: -- | J27: ='Input Summary'!E34 -> 0
A28: Number of bus stops within 300 m (1,000 ft) of the intersection | H28: 0 | J28: ='Input Summary'!E35 -> 0
A29: Schools within 300 m (1,000 ft) of the intersection (present/not present) | H29: Not Present | J29: ='Input Summary'!E36 -> Not Present
A30: Number of alcohol sales establishments within 300 m (1,000 ft) of the intersection | H30: 0 | J30: ='Input Summary'!E37 -> 0
B32: SUMMARY OF INTERSECTION & CRASHES
B34: CMF1i | C34: CMF2i | D34: CMF3i | E34: CMF 4i | F34: CMF 5i | G34: CMF 1p | H34: CMF 2p | I34: CMF 3p | J34: Nbi_total | K34: Npedi_total | L34: Nbikei_total | M34: Npredictedint
B35: =A60 -> 0.81 | C35: =C60 -> 1 | D35: =E60 -> 1 | E35: =G60 -> 1 | F35: =I60 -> 1 | G35: =B147 -> 1 | H35: =E147 -> 1 | I35: =H147 -> 1 | J35: =H168 ->  | K35: =M157 ->  | L35: =K168 ->  | M35: =H205 -> 
A54: Worksheet 2B -- Crash Modification Factors for Urban and Suburban Arterial Intersections
A55: (1) | C55: (2) | E55: (3) | G55: (4) | I55: (5) | K55: (6) | M55: (7)
A56: CMF for Left-Turn Lanes | C56: CMF for Left-Turn Signal Phasing | E56: CMF for Right-Turn Lanes | G56: CMF for Right Turn on Red | I56: CMF for Lighting | K56: CMF for Red Light Cameras | M56: Combined CMF
A58: CMF 1i | C58: CMF 2i | E58: CMF 3i | G58: CMF 4i | I58: CMF 5i | K58: CMF 6i | M58: CMF COMB
A59: from Table 12-24 | C59: from Table 12-25 | E59: from Table 12-26 | G59: from Equation 12-35 | I59: from Equation 12-36 | K59: from Equation 12-37 | M59: (1)*(2)*(3)*(4)*(5)*(6)
A60: =IF(J17=0,1,IF(J17=1,'Intersection Tables'!AB16,IF(J17=2,'Intersection Tables'!AC16,IF(J17=3,'Intersection Tables'!AD16,'Intersection Tables'!AE16)))) -> 0.81 | C60: =IF(J20="Not Applicable",1,IF(J20="Protected",'Intersection Tables'!AC43,IF(J20="Permissive",'Intersection Tables'!AC41,'Intersection Tables'!AC42)))*IF(J21="Not Applicable",1,IF(J21="Protected",'Intersection Tables'!AC43,IF(J21="Permissive",'Intersection Tables'!AC41,'Intersection Tables'!AC42)))*IF(J22="Not Applicable",1,IF(J22="Protected",'Intersection Tables'!AC43,IF(J22="Permissive",'Intersection Tables'!AC41,'Intersection Tables'!AC42)))*IF(J23="Not Applicable",1,IF(J23="Protected",'Intersection Tables'!AC43,IF(J23="Permissive",'Intersection Tables'!AC41,'Intersection Tables'!AC42))) -> 1 | E60: =IF(J18=0,1,IF(J18=1,'Intersection Tables'!AB31,IF(J18=2,'Intersection Tables'!AC31,IF(J18=3,'Intersection Tables'!AD31,'Intersection Tables'!AE31)))) -> 1 | G60: =POWER(0.98,$J$24) -> 1 | I60: =IF($J$14="Not Present",1,(1-'Intersection Tables'!F90*0.38)) -> 1 | K60: =IF($J$25="Not Present",1,$T$24) -> 1 | M60: =+A60*C60*E60*G60*I60*K60 -> 0.81
A64: Worksheet 2C -- Multiple-Vehicle Collisions by Severity Level for Urban and Suburban Arterial Intersections
A65: (1) | C65: (2) | F65: (3) | H65: (4) | I65: (5) | K65: (6) | L65: (7) | M65: (8) | N65: (9)
A66: Crash Severity Level | C66: SPF Coefficients | F66: Overdispersion Parameter, k | H66: Initial Nbimv | I66: Proportion of Total Crashes | K66: Adjusted Nbimv | L66: Combined CMFs | M66: Calibration Factor, Ci | N66: Predicted Nbimv
C68: from Table 12-10 | F68: from Table 12-10 | H68: from Equation 12-21 | K68: (4)TOTAL*(5) | L68: (7) from Worksheet 2B | N68: (6)*(7)*(8)
C69: a | D69: b | E69: c
A70: Total | C70: ='Intersection Tables'!C16 -> -5.037 | D70: ='Intersection Tables'!D16 -> 0.634 | E70: ='Intersection Tables'!E16 -> 0.113 | F70: ='Intersection Tables'!F16 -> 0.33 | H70: =EXP(C70+(D70*LN($J$12))+(E70*LN($J$13))) ->  | I70: 1 | K70: =H70*I70 ->  | L70: =+M60 -> 0.81 | M70: =+$J$15 -> 0.98 | N70: =+K70*L70*M70 -> 
A71: Fatal and Injury (FI) | C71: ='Intersection Tables'!C21 -> -7.601 | D71: ='Intersection Tables'!D21 -> 0.79 | E71: ='Intersection Tables'!E21 -> 0.093 | F71: ='Intersection Tables'!F21 -> 0.44 | H71: =EXP(C71+(D71*LN($J$12))+(E71*LN($J$13))) ->  | I71: (4)FI/((4)FI+(4)PDO) | K71: =H70*I72 ->  | L71: =+M60 -> 0.81 | M71: =+$J$15 -> 0.98 | N71: =+K71*L71*M71 -> 
I72: =+H71/(H71+H73) -> 
A73: Property Damage Only (PDO) | C73: ='Intersection Tables'!C26 -> -5.247 | D73: ='Intersection Tables'!D26 -> 0.611 | E73: ='Intersection Tables'!E26 -> 0.122 | F73: ='Intersection Tables'!F26 -> 0.27 | H73: =EXP(C73+(D73*LN($J$12))+(E73*LN($J$13))) ->  | I73: (5)TOTAL-(5)FI | K73: =H70*I74 ->  | L73: =+M60 -> 0.81 | M73: =+$J$15 -> 0.98 | N73: =+K73*L73*M73 -> 
I74: =I70-I72 -> 
A92: Worksheet 2D -- Multiple-Vehicle Collisions by Collision Type for Urban and Suburban Arterial Intersections
A93: (1) | D93: (2) | F93: (3) | H93: (4) | J93: (5) | L93: (6)
A94: Collision Type | D94: Proportion of Collision Type(FI) | F94: Predicted N bimv (FI) (crashes/year) | H94: Proportion of Collision Type (PDO) | J94: Predicted N bimv (PDO) (crashes/year) | L94: Predicted N bimv (TOTAL) (crashes/year)
D97: from Table 12-11 | F97: (9)FI from Worksheet 2C | H97: from Table 12-11 | J97: (9)PDO from Worksheet 2C | L97: (9)PDO from Worksheet 2C
A99: Total | D99: =SUM(D101:E105) -> 1 | F99: =+N71 ->  | H99: =SUM(H101:I105) -> 1 | J99: =+N73 ->  | L99: =+N70 -> 
F100: (2)*(3)FI | J100: (4)*(5)PDO | L100: (3)+(5)
A101: Rear-end collision | D101: ='Intersection Tables'!J50 -> 0.303 | F101: =+D101*$F$99 ->  | H101: ='Intersection Tables'!K50 -> 0.402 | J101: =+H101*$J$99 ->  | L101: =+F101+J101 -> 
A102: Head-on collision | D102: ='Intersection Tables'!J51 -> 0.066 | F102: =+D102*$F$99 ->  | H102: ='Intersection Tables'!K51 -> 0.038 | J102: =+H102*$J$99 ->  | L102: =+F102+J102 -> 
A103: Angle collision | D103: ='Intersection Tables'!J52 -> 0.574 | F103: =+D103*$F$99 ->  | H103: ='Intersection Tables'!K52 -> 0.443 | J103: =+H103*$J$99 ->  | L103: =+F103+J103 -> 
A104: Sideswipe | D104: ='Intersection Tables'!J53 -> 0.03 | F104: =+D104*$F$99 ->  | H104: ='Intersection Tables'!K53 -> 0.103 | J104: =+H104*$J$99 ->  | L104: =+F104+J104 -> 
A105: Other multiple-vehicle collision | D105: ='Intersection Tables'!J54 -> 0.027 | F105: =+D105*$F$99 ->  | H105: ='Intersection Tables'!K54 -> 0.014 | J105: =+H105*$J$99 ->  | L105: =+F105+J105 -> 
A109: Worksheet 2E -- Single-Vehicle Collisions by Severity Level for Urban and Suburban Arterial Intersections
A110: (1) | C110: (2) | F110: (3) | H110: (4) | I110: (5) | K110: (6) | L110: (7) | M110: (8) | N110: (9)
A111: Crash Severity Level | C111: SPF Coefficients | F111: Overdispersion Parameter, k | H111: Initial Nbisv | I111: Proportion of Total Crashes | K111: Adjusted Nbimv | L111: Combined CMFs | M111: Calibration Factor, Ci | N111: Predicted Nbisv
C113: from Table 12-12 | F113: from Table 12-12 | H113: from Eqn. 12-24; (FI) from Eqn. 12-24 or 12-27 | K113: (4)TOTAL*(5) | L113: (7) from Worksheet 2B | N113: (6)*(7)*(8)
C114: a | D114: b | E114: c
A116: Total | C116: ='Intersection Tables'!J16 -> -8.255 | D116: ='Intersection Tables'!K16 -> 0.193 | E116: ='Intersection Tables'!L16 -> 0.607 | F116: ='Intersection Tables'!M16 -> 0.8 | H116: =EXP(C116+(D116*LN($J$12))+(E116*LN($J$13))) ->  | I116: 1 | K116: =H116*I116 ->  | L116: =+M60 -> 0.81 | M116: =+$J$15 -> 0.98 | N116: =+K116*L116*M116 -> 
A117: Fatal and Injury (FI) | C117: ='Intersection Tables'!J21 -> -9.154 | D117: ='Intersection Tables'!K21 -> 0.255 | E117: ='Intersection Tables'!L21 -> 0.513 | F117: ='Intersection Tables'!M21 -> 0.79 | H117: =IF(J11="3ST",H116*0.31,IF(J11="4ST",H116*0.28,(EXP(C117+(D117*LN($J$12))+(E117*LN($J$13)))))) ->  | I117: (4)FI/((4)FI+(4)PDO) | K117: =H116*I118 ->  | L117: =+M60 -> 0.81 | M117: =+$J$15 -> 0.98 | N117: =+K117*L117*M117 -> 
I118: =+H117/(H117+H119) -> 
A119: Property Damage Only (PDO) | C119: ='Intersection Tables'!J26 -> -8.494 | D119: ='Intersection Tables'!K26 -> 0.208 | E119: ='Intersection Tables'!L26 -> 0.571 | F119: ='Intersection Tables'!M26 -> 0.2 | H119: =EXP(C119+(D119*LN($J$12))+(E119*LN($J$13))) ->  | I119: (5)TOTAL-(5)FI | K119: =H116*I120 ->  | L119: =+M60 -> 0.81 | M119: =+$J$15 -> 0.98 | N119: =+K119*L119*M119 -> 
I120: =I116-I118 -> 
A124: Worksheet 2F -- Single-Vehicle Collisions by Collision Type for Urban and Suburban Arterial Intersections
A125: (1) | D125: (2) | F125: (3) | H125: (4) | J125: (5) | L125: (6)
A126: Collision Type | D126: Proportion of Collision Type(FI) | F126: Predicted N bisv (FI) (crashes/year) | H126: Proportion of Collision Type (PDO) | J126: Predicted N bisv (PDO) (crashes/year) | L126: Predicted N bisv (TOTAL) (crashes/year)
D129: from Table 12-13 | F129: (9)FI from Worksheet 2E | H129: from Table 12-13 | J129: (9)PDO from Worksheet 2E | L129: (9)PDO from Worksheet 2E
A131: Total | D131: =SUM(D133:E138) -> 1 | F131: =+N117 ->  | H131: =SUM(H133:I138) -> 1 | J131: =+N119 ->  | L131: =+N116 -> 
F132: (2)*(3)FI | J132: (4)*(5)PDO | L132: (3)+(5)
A133: Collision with parked vehicle | D133: ='Intersection Tables'!J74 -> 0 | F133: =+D133*$F$131 ->  | H133: ='Intersection Tables'!K74 -> 0.103 | J133: =+H133*$J$131 ->  | L133: =+F133+J133 -> 
A134: Collision with animal | D134: ='Intersection Tables'!J75 -> 0.105 | H134: ='Intersection Tables'!K75 -> 0
A135: Collision with fixed object | D135: ='Intersection Tables'!J76 -> 0.421 | H135: ='Intersection Tables'!K76 -> 0.795
A136: Collision with other object | D136: ='Intersection Tables'!J77 -> 0 | H136: ='Intersection Tables'!K77 -> 0.051
A137: Other single-vehicle collision | D137: ='Intersection Tables'!J78 -> 0.474 | H137: ='Intersection Tables'!K78 -> 0.051
A138: Single-vehicle noncollision | D138: ='Intersection Tables'!J79 -> 0 | H138: ='Intersection Tables'!K79 -> 0
B142: Worksheet 2G-1 -- Crash Modification Factors for Vehicle-Pedestrian Collisions for Urban and Suburban Arterial Signalized Intersections
B143: (1) | E143: (2) | H143: (3) | K143: (4)
B144: CMF for Bus Stops | E144: CMF for Schools | H144: CMF for Alcohol Sales Establishments | K144: Combined CMF
B145: CMF1p | E145: CMF2p | H145: CMF3p
B146: from Table 12-28 | E146: from Table 12-29 | H146: from Table 12-30 | K146: (1)*(2)*(3)
B147: =IF($J$28=0,'Intersection Tables'!AC51,IF($J$28<=2,'Intersection Tables'!AC52,'Intersection Tables'!AC53)) -> 1 | E147: =IF($J$29="Present",'Intersection Tables'!AC62,'Intersection Tables'!AC61) -> 1 | H147: =IF(J30=0,'Intersection Tables'!AC70,IF(J30<=8,'Intersection Tables'!AC71,'Intersection Tables'!AC72)) -> 1 | K147: =IF(J11="3ST","--",IF(J11="4ST","--",B147*E147*H147)) -> 1
A151: Worksheet 2G -- Vehicle-Pedestrian Collisions for Urban and Suburban Arterial Signalized Intersections
A152: (1) | C152: (2) | H152: (3) | I152: (4) | K152: (5) | M152: (7)
A153: Crash Severity Level | C153: SPF Coefficients | H153: Overdispersion Parameter, k | I153: Npedbase | K153: Combined CMF | M153: Predicted Npedi
C155: from Table 12-14 | I155: from Equation 12-29 | K155: (4) from Worksheet 2H | M155: (4)*(5)
C156: a | D156: b | E156: c | F156: d | G156: e
A157: Total | C157: ='Intersection Tables'!Q14 -> -10.059 | D157: ='Intersection Tables'!R14 -> 0.199 | E157: ='Intersection Tables'!S14 -> 0.425 | F157: ='Intersection Tables'!T14 -> 0.59 | G157: ='Intersection Tables'!U14 -> 0.178 | H157: ='Intersection Tables'!V14 -> 0.13 | I157: =EXP(+$C157+($D157*LN($J$12+J$13))+(E$157*LN($J$13/$J$12))+(F$157*LN($J$26))+(G$157*$J$27)) ->  | K157: =+$K$147 -> 1 | M157: =$I$157*$K$157 -> 
A158: Fatal and Injury (FI) | C158: -- | D158: -- | E158: -- | F158: -- | G158: -- | H158: -- | I158: -- | K158: -- | M158: =M157 -> 
A162: Worksheet 2J -- Vehicle-Bicycle Collisions for Urban and Suburban Arterial Intersections
A163: (1) | D163: (2) | F163: (3) | H163: (4) | I163: (5) | K163: (7)
A164: Crash Severity Level | D164: Predicted Nbimv | F164: Predicted Nbisv | H164: Predicted Nbi | I164: fbikei | K164: Predicted Nbikei
D166: (9) from Worksheet 2C | F166: (9) from Worksheet 2E | H166: (2) + (3) | I166: from Table 12-17 | K166: (4)*(5)*(6)
A168: Total | D168: =+$N$70 ->  | F168: =+$N$116 ->  | H168: =+D168+F168 ->  | I168: ='Intersection Tables'!N103 -> 0.006069802731 | K168: =+$H$168*$I$168 -> 
A169: Fatal and injury (FI) | D169: -- | F169: -- | H169: -- | I169: -- | K169: =+$H$168*$I$168 -> 
A173: Worksheet 2K -- Crash Severity Distribution for Urban and Suburban Arterial Intersections
A174: (1) | F174: (2) | I174: (3) | L174: (4)
A175: Collision type | F175: Fatal and injury (FI) | I175: Property damage only (PDO) | L175: Total
F176: (3) from Worksheet 2D and 2F; | I176: (5) from Worksheet 2D and 2F | L176: (6) from Worksheet 2D and 2F;
F177: (7) from Worksheet 2G and 2J | L177: (7) from Worksheet 2G and 2J
A178: MULTIPLE-VEHICLE
A179: Rear-end collisions (from Worksheet 2D) | F179: =+F101 ->  | I179: =+J101 ->  | L179: =+L101 -> 
A180: Head-on collisions (from Worksheet 2D) | F180: =+F102 ->  | I180: =+J102 ->  | L180: =+L102 -> 
A181: Angle collisions (from Worksheet 2D) | F181: =+F103 ->  | I181: =+J103 ->  | L181: =+L103 -> 
A182: Sideswipe (from Worksheet 2D) | F182: =+F104 ->  | I182: =+J104 ->  | L182: =+L104 -> 
A183: Other multiple-vehicle collision (from Worksheet 2D) | F183: =+F105 ->  | I183: =+J105 ->  | L183: =+L105 -> 
A184: Subtotal | F184: =SUM(F179:H183) ->  | I184: =SUM(I179:K183) ->  | L184: =SUM(L179:N183) -> 
A185: SINGLE-VEHICLE
A186: Collision with parked vehicle (from Worksheet 2F) | F186: =+F133 ->  | I186: =+J133 ->  | L186: =+L133 -> 
A187: Collision with animal (from Worksheet 2F)
A188: Collision with fixed object (from Worksheet 2F)
A189: Collision with other object (from Worksheet 2F)
A190: Other single-vehicle collision (from Worksheet 2F)
A191: Single-vehicle noncollision (from Worksheet 2F)
A192: Collision with pedestrian (from Worksheet 2G or 2I) | F192: =M158 ->  | I192: 0 | L192: =+F192+I192 -> 
A193: Collision with bicycle (from Worksheet 2J) | F193: =K169 ->  | I193: 0 | L193: =+F193+I193 -> 
A194: Subtotal | F194: =SUM(F186:H193) ->  | I194: =SUM(I186:K193) ->  | L194: =SUM(L186:N193) -> 
A195: Total | F195: =+F184+F194 ->  | I195: =+I184+I194 ->  | L195: =+L184+L194 -> 
E199: Worksheet 2L -- Summary Results for Urban and Suburban Arterial Intersections
E200: (1) | H200: (2)
E201: Crash severity level | H201: Predicted average crash frequency, Npredicted int (crashes/year)
H204: Total
E205: Total | H205: =H168+M157+K168 -> 
E206: Fatal and injury (FI) | H206: =+F195 -> 
E207: Property damage only (PDO) | H207: =+I195 -> 

Sheet Intersection Tables (hidden)
A1: This sheet (Columns A~AE) contains all the relevant tables required for prediction of crashes at urban and suburban intersections. Please do not delete this worksheet.
B5: Tables Affiliated with SPF Computation: | Y5: Tables Affiliated with Crash Modification Factors:
B7: Table 12-10: SPF Coefficients for Multiple-Vehicle Collisions at Intersections | I7: Table 12-12: SPF Coefficients for Single-Vehicle Crashes at Intersections | P7: Table 12-14: SPF for Vehicle-Pedestrian Collisions at Signalized Intersections | Y7: Table 12-24: Crash Modification Factor (CMF1i) for Installation of Left-Turn Lanes on Intersection Approaches
B9: Intersection Type | C9: Coefficients use in Eqn. 12-21 | F9: Overdispersion parameter (k) | I9: Intersection Type | J9: Coefficients use in Eqn. 12-24 | M9: Overdispersion parameter (k) | P9: Intersection Type | Q9: Coefficients use in Eqn. 12-29 | V9: Overdispersion parameter (k) | Y9: Intersection Type | Z9: Intersection traffic control | AB9: Number of approaches with left-turn lanes a
C10: Intercept | D10: AADTmaj | E10: AADTmin | J10: Intercept | K10: AADTmaj | L10: AADTmin | Q10: Intercept | R10: AADTtot | S10: AADTmin/AADTmaj | T10: PedVol | U10: nlanesx
C11: (a) | D11: (b) | E11: (c) | J11: (a) | K11: (b) | L11: (c) | Q11: (a) | R11: (b) | S11: (c) | T11: (d) | U11: (e) | AB11: One approach | AC11: Two approaches | AD11: Three approaches | AE11: Four approaches
B12: Total crashes | I12: Total crashes | P12: Total crashes
B13: 3ST | C13: -8.86 | D13: 0.475 | E13: 0.587 | F13: 0.97 | I13: 3ST | J13: -6.95 | K13: 0.112 | L13: 0.495 | M13: 0.51 | P13: 3SG | Q13: -7.782 | R13: 0.212 | S13: 0.178 | T13: 0.289 | U13: 0.144 | V13: 0.22 | Y13: 3ST | Z13: Minor-road STOP controlb | AB13: 0.67 | AC13: 0.45 | AD13: -- | AE13: --
B14: 3SG | C14: -2.511 | D14: 0.352 | E14: 0.057 | F14: 0.58 | I14: 3SG | J14: -6.309 | K14: 0.306 | L14: 0.223 | M14: 0.2 | P14: 4SG | Q14: -10.059 | R14: 0.199 | S14: 0.425 | T14: 0.59 | U14: 0.178 | V14: 0.13 | Y14: 3SG | Z14: Traffic signal | AB14: 0.93 | AC14: 0.86 | AD14: 0.8
B15: 4ST | C15: -9.331 | D15: 0.573 | E15: 0.649 | F15: 1.21 | I15: 4ST | J15: -6.117 | K15: 0.353 | L15: 0.111 | M15: 2.45 | Y15: 4ST | Z15: Minor-road STOP controla | AB15: 0.73 | AC15: 0.53 | AD15: -- | AE15: --
B16: 4SG | C16: -5.037 | D16: 0.634 | E16: 0.113 | F16: 0.33 | I16: 4SG | J16: -8.255 | K16: 0.193 | L16: 0.607 | M16: 0.8 | Y16: 4SG | Z16: Traffic signal | AB16: 0.9 | AC16: 0.81 | AD16: 0.73 | AE16: 0.66
B17: Fatal-and-injury crashes | I17: Fatal-and-injury crashes | Y17: a STOP-controlled approaches are not considered in determining the number of approaches with left-turn lanes.
B18: 3ST | C18: -8.968 | D18: 0.443 | E18: 0.444 | F18: 0.76 | I18: 3ST | J18: -- | K18: -- | L18: -- | M18: 0 | Y18: b Stop signs present on minor-road approaches only.
B19: 3SG | C19: -2.761 | D19: 0.267 | E19: 0.018 | F19: 0.77 | I19: 3SG | J19: -7.212 | K19: 0.351 | L19: 0.147 | M19: 0.16
B20: 4ST | C20: -7.309 | D20: 0.424 | E20: 0.413 | F20: 1.75 | I20: 4ST | J20: -- | K20: -- | L20: -- | M20: 0
B21: 4SG | C21: -7.601 | D21: 0.79 | E21: 0.093 | F21: 0.44 | I21: 4SG | J21: -9.154 | K21: 0.255 | L21: 0.513 | M21: 0.79
B22: Property-damage-only crashes | I22: Property-damage-only crashes | Y22: Table 12-26: Crash Modification Factor (CMF3i) for Installation of Right-Turn Lanes on Intersection Approaches
B23: 3ST | C23: -9.53 | D23: 0.476 | E23: 0.638 | F23: 0.92 | I23: 3ST | J23: -7.218 | K23: 0.105 | L23: 0.5 | M23: 0.47
B24: 3SG | C24: -4.325 | D24: 0.429 | E24: 0.151 | F24: 0.59 | I24: 3SG | J24: -7.522 | K24: 0.265 | L24: 0.361 | M24: 0.55 | Y24: Intersection Type | Z24: Intersection traffic control | AB24: Number of approaches with right-turn lanes a
B25: 4ST | C25: -11.569 | D25: 0.675 | E25: 0.769 | F25: 1.03 | I25: 4ST | J25: -5.902 | K25: 0.266 | L25: 0.15 | M25: 1.27
B26: 4SG | C26: -5.247 | D26: 0.611 | E26: 0.122 | F26: 0.27 | I26: 4SG | J26: -8.494 | K26: 0.208 | L26: 0.571 | M26: 0.2 | AB26: One approach | AC26: Two approaches | AD26: Three approaches | AE26: Four approaches
I27: Note: Where no models are available, Equations 12-27 is used.
I28: Equation 12-27: | Y28: 3ST | Z28: Minor-road STOP controlb | AB28: 0.86 | AC28: 0.74 | AD28: -- | AE28: --
I29: Nbisv(FI) = Nbisv(TOTAL) x fbisv | Y29: 3SG | Z29: Traffic signal | AB29: 0.96 | AC29: 0.92 | AD29: -- | AE29: --
Y30: 4ST | Z30: Minor-road STOP controla | AB30: 0.86 | AC30: 0.74 | AD30: -- | AE30: --
Y31: 4SG | Z31: Traffic signal | AB31: 0.96 | AC31: 0.92 | AD31: 0.88 | AE31: 0.85
Y32: a STOP-controlled approaches are not considered in determining the number of approaches with right-turn lanes.
B33: Tables Affiliated with Crash Statistics: | Y33: b Stop signs present on minor-road approaches only.
B35: Table 12-11: Distribution of Multiple-Vehicle Collisions for Intersections by Collision Type
D37: Proportion of crashes by severity level for specific intersection types | Y37: Table 12-25: Crash Modification Factor (CMF2i) for Type of Left-Turn Signal Phasing
D38: HSM-Provided Values
B39: Collision Type | D39: 3ST | F39: 3SG | H39: 4ST | J39: 4SG | Y39: Type of Left-Turn Signal Phasing | AC39: CMF2i
D40: FI | E40: PDO | F40: FI | G40: PDO | H40: FI | I40: PDO | J40: FI | K40: PDO
B41: Rear-end collision | D41: 0.421 | E41: 0.44 | F41: 0.549 | G41: 0.546 | H41: 0.338 | I41: 0.374 | J41: 0.45 | K41: 0.483 | Y41: Permissive | AC41: 1
B42: Head-on collision | D42: 0.045 | E42: 0.023 | F42: 0.038 | G42: 0.02 | H42: 0.041 | I42: 0.03 | J42: 0.049 | K42: 0.03 | Y42: Protected/permissive or permissive/protected | AC42: 0.99
B43: Angle collision | D43: 0.343 | E43: 0.262 | F43: 0.28 | G43: 0.204 | H43: 0.44 | I43: 0.335 | J43: 0.347 | K43: 0.244 | Y43: Protected | AC43: 0.94
B44: Sideswipe | D44: 0.126 | E44: 0.04 | F44: 0.076 | G44: 0.032 | H44: 0.121 | I44: 0.044 | J44: 0.099 | K44: 0.032
B45: Other multiple-vehicle collision | D45: 0.065 | E45: 0.235 | F45: 0.057 | G45: 0.198 | H45: 0.06 | I45: 0.217 | J45: 0.055 | K45: 0.211
B46: Source: HSIS data for Washington (2002-2006)
B47: Collision Type | D47: Locally-Derived Values (Massachusetts) | Y47: Table 12-28. Crash Modification Factor (CMF1p) for the Presence of Bus Stops near the Intersection
D48: 3ST | F48: 3SG | H48: 4ST | J48: 4SG
D49: FI | E49: PDO | F49: FI | G49: PDO | H49: FI | I49: PDO | J49: FI | K49: PDO | Y49: Number of Bus Stops within 1,000 ft of the Intersection | AC49: CMF1p
B50: Rear-end collision | D50: 0.28 | E50: 0.316 | F50: 0.363 | G50: 0.496 | H50: 0.077 | I50: 0.157 | J50: 0.303 | K50: 0.402
B51: Head-on collision | D51: 0.061 | E51: 0.033 | F51: 0.104 | G51: 0.04 | H51: 0.015 | I51: 0.034 | J51: 0.066 | K51: 0.038 | Y51: 0 | AC51: 1
B52: Angle collision | D52: 0.598 | E52: 0.57 | F52: 0.39 | G52: 0.285 | H52: 0.823 | I52: 0.719 | J52: 0.574 | K52: 0.443 | Y52: 1 or 2 | AC52: 2.78
B53: Sideswipe | D53: 0.037 | E53: 0.07 | F53: 0.065 | G53: 0.157 | H53: 0.031 | I53: 0.068 | J53: 0.03 | K53: 0.103 | Y53: 3 or more | AC53: 4.15
B54: Other multiple-vehicle collision | D54: 0.024 | E54: 0.011 | F54: 0.078 | G54: 0.022 | H54: 0.054 | I54: 0.022 | J54: 0.027 | K54: 0.014
B55: Note: HSM-Provided values based on HSIS data for California (2002-2006)
Y57: Table 12-29. Crash Modification Factor (CMF2p) for the Presence of Schools near the Intersection
B58: Table 12-13: Distribution of Single-Vehicle Crashes for Intersections by Collision Type
Y59: Number of Schools within 1,000 ft of the Intersection | AC59: CMF2p
D60: Proportion of crashes by severity level for specific intersection types
D61: HSM-Provided Values | Y61: No school present | AC61: 1
B62: Collision Type | D62: 3ST | F62: 3SG | H62: 4ST | J62: 4SG | Y62: School present | AC62: 1.35
D63: FI | E63: PDO | F63: FI | G63: PDO | H63: FI | I63: PDO | J63: FI | K63: PDO
B64: Collision with parked vehicle | D64: 0.001 | E64: 0.003 | F64: 0.001 | G64: 0.001 | H64: 0.001 | I64: 0.001 | J64: 0.001 | K64: 0.001
B65: Collision with animal | D65: 0.003 | E65: 0.018 | F65: 0.001 | G65: 0.003 | H65: 0.001 | I65: 0.026 | J65: 0.002 | K65: 0.002
B66: Collision with fixed object | D66: 0.762 | E66: 0.8341 | F66: 0.653 | G66: 0.895 | H66: 0.679 | I66: 0.847 | J66: 0.744 | K66: 0.87 | Y66: Table 12-30. Crash Modification Factor (CMF3p) for the Presence of Alcohol Sales Establishments near the Intersection
B67: Collision with other object | D67: 0.09 | E67: 0.092 | F67: 0.091 | G67: 0.069 | H67: 0.089 | I67: 0.07 | J67: 0.072 | K67: 0.07
B68: Other single-vehicle collision | D68: 0.039 | E68: 0.023 | F68: 0.045 | G68: 0.018 | H68: 0.051 | I68: 0.007 | J68: 0.04 | K68: 0.023 | Y68: Number of Alcohol Sales Establishment within 1,000 ft of the Intersection | AC68: CMF3p
B69: Noncollision | D69: 0.105 | E69: 0.03 | F69: 0.209 | G69: 0.014 | H69: 0.179 | I69: 0.049 | J69: 0.141 | K69: 0.034
B70: Source: HSM-Provided values base on HSIS data for California (2002-2006) | Y70: 0 | AC70: 1
B71: Collision Type | D71: Locally-Derived Values | Y71: 1--8 | AC71: 1.12
D72: 3ST | F72: 3SG | H72: 4ST | J72: 4SG | Y72: 9 or more | AC72: 1.56
D73: FI | E73: PDO | F73: FI | G73: PDO | H73: FI | I73: PDO | J73: FI | K73: PDO
B74: Collision with parked vehicle | D74: 0.091 | E74: 0.029 | F74: 0.154 | G74: 0.042 | H74: 0 | I74: 0.095 | J74: 0 | K74: 0.103
B75: Collision with animal | D75: 0 | E75: 0 | F75: 0 | G75: 0 | H75: 0 | I75: 0.095 | J75: 0.105 | K75: 0 | M75: Equation 12-27 Ratio of Single-Vehicle FI Crashes
B76: Collision with fixed object | D76: 0.818 | E76: 0.743 | F76: 0.615 | G76: 0.875 | H76: 0.5 | I76: 0.571 | J76: 0.421 | K76: 0.795 | M76: Intersection Type | O76: Ratio of FI to Total Crashes (fbisv)
B77: Collision with other object | D77: 0 | E77: 0.057 | F77: 0 | G77: 0 | H77: 0 | I77: 0.048 | J77: 0 | K77: 0.051 | O77: HSM Value | Q77: Local Value
B78: Other single-vehicle collision | D78: 0.091 | E78: 0.142 | F78: 0.154 | G78: 0.083 | H78: 0.5 | I78: 0.191 | J78: 0.474 | K78: 0.051 | M78: 3ST | O78: 0.31 | Q78: 0.24
B79: Noncollision | D79: 0 | E79: 0.029 | F79: 0.077 | G79: 0 | H79: 0 | I79: 0 | J79: 0 | K79: 0 | M79: 4ST | O79: 0.28 | Q79: 0.22
B82: Table 12-27: Nighttime Crash Proportions for Unlighted Intersections
B84: Intersection Type | D84: Proportion of crashes that occur at night, pni
D85: HSM-Provided Values | F85: Locally-Derived Values
H86: Note: Although 4 out of 118 3ST intersections were unlighted, there were no nighttime crashes at those intersections during the data collection period (2015~2018). Therefore, HSM-provided proportion (pni) for 3ST intersections is used.
B87: 3ST | D87: 0.238 | F87: 0.238
B88: 4ST | D88: 0.229 | F88: 0.25
B89: 3SG | D89: 0.235 | F89: 0.061
B90: 4SG | D90: 0.235 | F90: 0.284
B93: Table 1B: Number of Vehicle-Pedestrian and Vehicle-Bike Crashes by Manner and Injury Severity
B95: Intersection Type | C95: Total Single-Vehicle Crashes | D95: Total Multiple-Vehicle Crashes | E95: Veh-Pedestrian | H95: Veh-Bike | K95: Sum of Veh-Pedestrian and Veh-Bike (FI and PDO) | M95: Locally-Derived Values | O95: HSM-Provided Values
M96: Veh-Ped FI ω Coefficient | N96: Veh-Bike ω Coefficient | O96: Veh-Ped FI ω Coefficient | P96: Veh-Bike ω Coefficient
E99: FI | F99: PDO | G99: Total | H99: FI | I99: PDO | J99: Total | K99: FI | L99: PDO
B100: 3ST | C100: 46 | D100: 354 | E100: 4 | F100: 2 | G100: =E100+F100 -> 6 | H100: 2 | I100: 0 | J100: =H100+I100 -> 2 | K100: =E100+H100 -> 6 | L100: =F100+I100 -> 2 | M100: =G100/(C100+D100) -> 0.015 | N100: =J100/(C100+D100) -> 0.005 | O100: 0.021 | P100: 0.016
B101: 3SG | C101: 37 | D101: 607 | E101: 16 | F101: 3 | G101: =E101+F101 -> 19 | H101: 14 | I101: 2 | J101: =H101+I101 -> 16 | K101: 30 | L101: 5 | N101: =J101/(C101+D101) -> 0.0248447205 | P101: 0.011
B102: 4ST | C102: 27 | D102: 365 | E102: 3 | F102: 2 | G102: =E102+F102 -> 5 | H102: 5 | I102: 0 | J102: =H102+I102 -> 5 | K102: 8 | L102: 2 | M102: =G102/(C102+D102) -> 0.01275510204 | N102: =J102/(C102+D102) -> 0.01275510204 | O102: 0.022 | P102: 0.018
B103: 4SG | C103: 58 | D103: 1260 | E103: 12 | F103: 3 | G103: =E103+F103 -> 15 | H103: 4 | I103: 4 | J103: =H103+I103 -> 8 | K103: 16 | L103: 7 | N103: =J103/(C103+D103) -> 0.006069802731 | P103: 0.015
B106: Table 1C: Coefficients of FI and PDO Derived From Historical Data for Multiple-Vehicle and Single-Vehicle Collisions at Intersections
B108: Intersection Type | C108: Total Single-Vehicle Crashes | D108: Total Multiple-Vehicle Crashes | E108: Single-Vehicle | I108: Multiple-Vehicle
E109: FI | F109: PDO | G109: FI Ratio | H109: PDO Ratio | I109: FI | J109: PDO | K109: FI Ratio | L109: PDO Ratio
B111: 3ST | C111: 46 | D111: 354 | E111: 11 | F111: 35 | G111: =E111/C111 -> 0.2391304348 | H111: =1-G111 -> 0.7608695652 | I111: 82 | J111: 272 | K111: =I111/D111 -> 0.2316384181 | L111: =1-K111 -> 0.7683615819
B112: 3SG | C112: 37 | D112: 607 | E112: 13 | F112: 24 | G112: =E112/C112 -> 0.3513513514 | H112: =1-G112 -> 0.6486486486 | I112: 154 | J112: 453 | K112: =I112/D112 -> 0.2537067545 | L112: =1-K112 -> 0.7462932455
B113: 4ST | C113: 27 | D113: 365 | E113: 6 | F113: 21 | G113: =E113/C113 -> 0.2222222222 | H113: =1-G113 -> 0.7777777778 | I113: 130 | J113: 235 | K113: =I113/D113 -> 0.3561643836 | L113: =1-K113 -> 0.6438356164
B114: 4SG | C114: 58 | D114: 1260 | E114: 19 | F114: 39 | G114: =E114/C114 -> 0.3275862069 | H114: =1-G114 -> 0.6724137931 | I114: 366 | J114: 894 | K114: =I114/D114 -> 0.2904761905 | L114: =1-K114 -> 0.7095238095

Sheet High-Risk (hidden)
A1: High-Risk intersection identification tool
A2: Crash Type, Severity | B2: Predicted Crashes during the Study Period (Npr,study) | C2: Observed Crashes during the Study Period (Nobs,study) | D2: Overdispersion Parameter ( K ) | E2: Weight ( w ) | F2: Expected Crashes during the Study Period (Nexp,study) | G2: Potential For Improvement (=Col_F - Col_B) | H2: The ratio between the EB estimate and the predicted accident frequency (=Col_F / Col_B) | I2: The probability that the location is accident-prone (Not applicable for one-year crash data)
A3: MV, FI | B3: =Output!B5 ->  | C3: =Input!B39 -> INVALID | D3: =IF('Input Summary'!$E$10="3ST",'Intersection Tables'!F18,IF('Input Summary'!$E$10="3SG",'Intersection Tables'!F19,IF('Input Summary'!$E$10="4ST",'Intersection Tables'!F20,IF('Input Summary'!$E$10="4SG",'Intersection Tables'!F21,"Please Select Intersection Type")))) -> 0.77 | E3: =1/(1+B3*D3) ->  | F3: =E3*B3+(1-E3)*C3 ->  | G3: =F3-B3 ->  | H3: =F3/B3 ->  | I3: =IF(G3<=0,"-",1-_xlfn.GAMMA.DIST(B3,1-E3,F3/(1-E3),TRUE)) -> 
A4: MV, PDO | B4: =Output!B6 ->  | C4: =Input!B40 -> INVALID | D4: =IF('Input Summary'!$E$10="3ST",'Intersection Tables'!F23,IF('Input Summary'!$E$10="3SG",'Intersection Tables'!F24,IF('Input Summary'!$E$10="4ST",'Intersection Tables'!F25,IF('Input Summary'!$E$10="4SG",'Intersection Tables'!F26,"Please Select Intersection Type")))) -> 0.59 | E4: =1/(1+B4*D4) ->  | F4: =E4*B4+(1-E4)*C4 ->  | G4: =F4-B4 ->  | H4: =F4/B4 ->  | I4: =IF(G4<=0,"-",1-_xlfn.GAMMA.DIST(B4,1-E4,F4/(1-E4),TRUE)) -> 
A5: SV, All | B5: =B6+B7 ->  | C5: =C6+C7 ->  | D5: =IF('Input Summary'!$E$10="3ST",'Intersection Tables'!M13,IF('Input Summary'!$E$10="3SG",'Intersection Tables'!M14,IF('Input Summary'!$E$10="4ST",'Intersection Tables'!M15,IF('Input Summary'!$E$10="4SG",'Intersection Tables'!M16,"Please Select Intersection Type")))) -> 0.2 | E5: =1/(1+B5*D5) ->  | F5: =E5*B5+(1-E5)*C5 -> 
A6: SV, FI | B6: =Output!B7 ->  | C6: =Input!B41 -> INVALID | D6: =IF('Input Summary'!$E$10="3ST",'Intersection Tables'!M18,IF('Input Summary'!$E$10="3SG",'Intersection Tables'!M19,IF('Input Summary'!$E$10="4ST",'Intersection Tables'!M20,IF('Input Summary'!$E$10="4SG",'Intersection Tables'!M21,"Please Select Intersection Type")))) -> 0.16 | F6: =IF(OR('Input Summary'!E10="3SG",'Input Summary'!E10="4SG"),(E6*B6+(1-E6)*C6),F5-F7) ->  | I6: =IF(OR('Input Summary'!E10="3SG",'Input Summary'!E10="4SG"),IF(G6<=0,"-",1-_xlfn.GAMMA.DIST(B6,1-E6,F6/(1-E6),TRUE)),"-") -> 
A7: SV, PDO | B7: =Output!B8 ->  | C7: =Input!B42 -> INVALID | D7: =IF('Input Summary'!$E$10="3ST",'Intersection Tables'!M23,IF('Input Summary'!$E$10="3SG",'Intersection Tables'!M24,IF('Input Summary'!$E$10="4ST",'Intersection Tables'!M25,IF('Input Summary'!$E$10="4SG",'Intersection Tables'!M26,"Please Select Intersection Type")))) -> 0.55 | F7: =E7*B7+(1-E7)*C7 -> 
A8: Ped, FI | B8: =Output!B9 ->  | C8: =Input!B43 -> INVALID | D8: =IF('Input Summary'!$E$10="3ST",0,IF('Input Summary'!$E$10="3SG",'Intersection Tables'!V13,IF('Input Summary'!$E$10="4ST",0,IF('Input Summary'!$E$10="4SG",'Intersection Tables'!V14,"Please Select Intersection Type")))) -> 0.22 | F8: =E8*B8+(1-E8)*C8 -> 
A9: Ped, PDO
A10: Bike, FI | B10: =Output!B11 ->  | C10: =Input!B45 -> INVALID | D10: =IF('Input Summary'!$E$10="3ST",0,IF('Input Summary'!$E$10="3SG",0.41,IF('Input Summary'!$E$10="4ST",0,IF('Input Summary'!$E$10="4SG",0.1,"Please Select Intersection Type")))) -> 0.41 | F10: =E10*B10+(1-E10)*C10 ->  | G10: - | H10: - | I10: -
A11: Bike, PDO
A12: Total (FI) | B12: =SUM(B3,B6,B8,B10) ->  | C12: =SUM(C3,C6,C8,C10) -> 0 | D12: - | E12: - | F12: =SUM(F3,F6,F8,F10) ->  | G12: =F12-B12 ->  | H12: =F12/B12 ->  | I12: -
A13: Total (PDO) | B13: =SUM(B4,B7) ->  | C13: =SUM(C4,C7) -> 0 | D13: - | E13: - | F13: =SUM(F4,F7) ->  | G13: =F13-B13 ->  | H13: =F13/B13 ->  | I13: -

Sheet Calibration Factors (hidden)
C4: Calibration Factors
D6: 3SG | E6: 3ST | F6: 4SG | G6: 4ST
C7: HSM Method | D7: 0.98 | E7: 0.98 | F7: 0.98 | G7: 1.01

Sheet Construction - do not delete (hidden)
A1: NOTICE!
A2: This sheet is present to ensure the proper functioning of the excel workbook. Please do not tamper with or delete this worksheet. Doing so, would result in improper functioning of the workbook.
B4: Lane Width | D4: Shoulder Width | F4: RHR
B5: 9 | D5: 0 | F5: 1
B6: 9.5 | D6: 1 | F6: 2
B7: 10 | D7: 2 | F7: 3
B8: 10.5 | D8: 3 | F8: 4
B9: 11 | D9: 4 | F9: 5
B10: 11.5 | D10: 5 | F10: 6
B11: 12 | D11: 6 | F11: 7
D12: 7
D13: 8
H16: Centerline | J16: Passing | L16: Local
D17: Shoulder Type | F17: Spiral | H17: Rumble Strips | J17: Lane | L17: Yes
D18: Paved | F18: Not Present | H18: Not Present | J18: Not Present | L18: No
D19: Gravel | F19: Present | H19: Present | J19: Present (1 lane)
D20: Composite | J20: Present (2 lanes)
D21: Turf
F23: TWLTL | H23: Lighting | J23: SpEnforce
F24: Not Present | H24: Not Present | J24: Not Present
F25: Present | H25: Present | J25: Present
D28: Intersection Type | F28: No. of Left Turn Approaches | H28: No. of Right Turn Approaches | J28: Intersection Lighting | L28: Use of Coefficients
D29: Itype | F29: Lapproach | H29: Rapproach | J29: Ilight | L29: Differ
D30: 3ST | F30: 0 | H30: 0 | J30: Not Present | L30: Yes
D31: 4ST | F31: 1 | H31: 1 | J31: Present | L31: No
D32: 4SG | F32: 2 | H32: 2
F33: 3 | H33: 3
F34: 4 | H34: 4
D36: Median Width
D37: Mwidth | F37: Division | H37: Sslope | J37: Shld2 | L37: Iapproach
D38: 10 | F38: Divided | H38: 1:2 or Steeper | J38: 0 | L38: 0
D39: 20 | F39: Undivided | H39: 1:4 | J39: 1 | L39: 1
D40: 30 | H40: 1:5 | J40: 2 | L40: 2
D41: 40 | H41: 1:6 | J41: 3
D42: 50 | H42: 1:7 or Flatter | J42: 4
D43: 60 | J43: 5
D44: 70 | J44: 6
D45: 80 | J45: 7
D46: 90 | J46: 8
D47: 100 | J47: 9
J48: 10
D52: Urban / Suburban Fields:
D55: Rtype | F55: UMedWidth | H55: PresOrNot | J55: OnStreetType | L55: OffsetFO | N55: Posted
D56: 2U | F56: Not Present | H56: Not Present | J56: None | L56: 2 | N56: Posted Speed 30 mph or Lower
D57: 3T | F57: 10 | J57: Parallel (Residential) | L57: 5 | N57: Posted Speed Greater than 30 mph
D58: 4U | F58: 15 | J58: Parallel (Comm/Ind) | L58: 10
D59: 4D | F59: 20 | J59: Angle (Residential) | L59: 15
D60: 5T | F60: 30 | J60: Angle (Comm/Ind) | L60: 20
F61: 40 | L61: 25
F62: 50 | L62: ≥ 30
F63: 60
F64: 70
F65: 80
F66: 90
F67: 100
D70: Turning Lanes | F70: Intersection Type2 | H70: Phasing | J70: Unsignalized Approaches | L70: Phasing 2
D71: Tlanes | F71: Itype2 | H71: Phasing | J71: UnsigApproach | L71: Phasing2
D72: 0 | F72: 3ST | H72: Permissive | J72: 0 | L72: Not Applicable
D73: 1 | F73: 3SG | H73: Protected | J73: 1 | L73: Permissive
D74: 2 | F74: 4ST | H74: Protected / Permissive | J74: 2 | L74: Protected
D75: 3 | F75: 4SG | H75: Permissive / Protected | L75: Protected / Permissive
D76: =IF((Input!C11="3SG MassDOT"),"",4) ->  | L76: Permissive / Protected
V79: =IF(Input!G50="","",IF(Input!G50>#REF!,"AADT Out of Range", "AADT OK")) -> 
A82: Intersection Type | C82: Number of Alternatives | E82: Spreadsheet Selection | H82: Facility Type | I82: Facility Type Code | J82: Average FI Crash Cost | K82: Average PDO Crash Cost | N82: Study Period (Years) | V82: DO NOT MODIFY | AB82: DO NOT MODIFY
A83: 3ST | C83: 0 | E83: 3ST MassDOT | H83: Urban Three-Leg Signalized Intersection | I83: U3SG | J83: 339500 | K83: 16700 | N83: 1 | V83: Major AADT Verification | AB83: Minor AADT Verification
A84: 3SG | C84: 1 | E84: 4ST MassDOT | H84: Urban Three-Leg Stop-Controlled Intersection | I84: U3ST | J84: 352800 | K84: 16700 | N84: 2 | V84: =V85&W85&X85&Y85&Z85 -> =if('Input'!D50>'3SG MassDOT'!F12,"AADT Out of Range","AADT OK") | AB84: =AB85&AC85&AD85&AE85&AF85 -> =if('Input'!D52>'3SG MassDOT'!F13,"AADT Out of Range","AADT OK")
A85: 4ST | C85: 2 | E85: 3SG MassDOT | H85: Urban Four-Leg Signalized Intersection | I85: U4SG | J85: 327200 | K85: 16700 | N85: 3 | V85: =if(' | W85: Input | X85: '!D50>' | Y85: ='Input Summary'!B10 -> 3SG MassDOT | Z85: '!F12,"AADT Out of Range","AADT OK") | AB85: =if(' | AC85: Input | AD85: '!D52>' | AE85: ='Input Summary'!B10 -> 3SG MassDOT | AF85: '!F13,"AADT Out of Range","AADT OK")
A86: 4SG | C86: 3 | E86: 4SG MassDOT | H86: Urban Four-Leg Stop-Controlled Intersection | I86: U4ST | J86: 319100 | K86: 16700 | N86: 4 | V86: =V87&W87&X87&Y87&Z87 -> =if('Input'!E50>'3SG MassDOT'!F12,"AADT Out of Range","AADT OK") | AB86: =AB87&AC87&AD87&AE87&AF87 -> =if('Input'!E52>'3SG MassDOT'!F13,"AADT Out of Range","AADT OK")
C87: 4 | H87: Urban Two-Lane Undivided Arterial – District 1 | I87: U2UAD1 | J87: 501300 | K87: 16700 | N87: 5 | V87: =if(' | W87: Input | X87: '!E50>' | Y87: ='Input Summary'!B10 -> 3SG MassDOT | Z87: '!F12,"AADT Out of Range","AADT OK") | AB87: =if(' | AC87: Input | AD87: '!E52>' | AE87: ='Input Summary'!B10 -> 3SG MassDOT | AF87: '!F13,"AADT Out of Range","AADT OK")
H88: Urban Two-Lane Undivided Arterial – District 2 | I88: U2UAD2 | J88: 490700 | K88: 16700 | N88: 6 | V88: =V89&W89&X89&Y89&Z89 -> =if('Input'!F50>'3SG MassDOT'!F12,"AADT Out of Range","AADT OK") | AB88: =AB89&AC89&AD89&AE89&AF89 -> =if('Input'!F52>'3SG MassDOT'!F13,"AADT Out of Range","AADT OK")
H89: Urban Two-Lane Undivided Arterial – District 3 | I89: U2UAD3 | J89: 532100 | K89: 16700 | N89: 7 | V89: =if(' | W89: Input | X89: '!F50>' | Y89: ='Input Summary'!B10 -> 3SG MassDOT | Z89: '!F12,"AADT Out of Range","AADT OK") | AB89: =if(' | AC89: Input | AD89: '!F52>' | AE89: ='Input Summary'!B10 -> 3SG MassDOT | AF89: '!F13,"AADT Out of Range","AADT OK")
H90: Urban Two-Lane Undivided Arterial – District 4 | I90: U2UAD4 | J90: 402400 | K90: 16700 | N90: 8 | V90: =V91&W91&X91&Y91&Z91 -> =if('Input'!G50>'3SG MassDOT'!F12,"AADT Out of Range","AADT OK") | AB90: =AB91&AC91&AD91&AE91&AF91 -> =if('Input'!G52>'3SG MassDOT'!F13,"AADT Out of Range","AADT OK")
H91: Urban Two-Lane Undivided Arterial – District 5 | I91: U2UAD5 | J91: 522500 | K91: 16700 | N91: 9 | V91: =if(' | W91: Input | X91: '!G50>' | Y91: ='Input Summary'!B10 -> 3SG MassDOT | Z91: '!F12,"AADT Out of Range","AADT OK") | AB91: =if(' | AC91: Input | AD91: '!G52>' | AE91: ='Input Summary'!B10 -> 3SG MassDOT | AF91: '!F13,"AADT Out of Range","AADT OK")
H92: Urban Two-Lane Undivided Arterial – District 6 | I92: U2UAD6 | J92: 462000 | K92: 16700 | N92: 10 | V92: =V93&W93&X93&Y93&Z93 -> =if('Input'!H50>'3SG MassDOT'!F12,"AADT Out of Range","AADT OK") | AB92: =AB93&AC93&AD93&AE93&AF93 -> =if('Input'!H52>'3SG MassDOT'!F13,"AADT Out of Range","AADT OK")
H93: Urban Four-Lane Undivided Arterial | I93: U4UA | J93: 481300 | K93: 16700 | V93: =if(' | W93: Input | X93: '!H50>' | Y93: ='Input Summary'!B10 -> 3SG MassDOT | Z93: '!F12,"AADT Out of Range","AADT OK") | AB93: =if(' | AC93: Input | AD93: '!H52>' | AE93: ='Input Summary'!B10 -> 3SG MassDOT | AF93: '!F13,"AADT Out of Range","AADT OK")
H94: Urban Four-Lane Divided Arterial | I94: U4DA | J94: 530800 | K94: 16700 | V94: =V95&W95&X95&Y95&Z95 -> =if('Input'!I50>'3SG MassDOT'!F12,"AADT Out of Range","AADT OK") | AB94: =AB95&AC95&AD95&AE95&AF95 -> =if('Input'!I52>'3SG MassDOT'!F13,"AADT Out of Range","AADT OK")
H95: Rural Two-Lane Undivided Highway | I95: R2UAC | J95: 878400 | K95: 16700 | V95: =if(' | W95: Input | X95: '!I50>' | Y95: ='Input Summary'!B10 -> 3SG MassDOT | Z95: '!F12,"AADT Out of Range","AADT OK") | AB95: =if(' | AC95: Input | AD95: '!I52>' | AE95: ='Input Summary'!B10 -> 3SG MassDOT | AF95: '!F13,"AADT Out of Range","AADT OK")
V96: =V97&W97&X97&Y97&Z97 -> =if('Input'!J50>'3SG MassDOT'!F12,"AADT Out of Range","AADT OK") | AB96: =AB97&AC97&AD97&AE97&AF97 -> =if('Input'!J52>'3SG MassDOT'!F13,"AADT Out of Range","AADT OK")
V97: =if(' | W97: Input | X97: '!J50>' | Y97: ='Input Summary'!B10 -> 3SG MassDOT | Z97: '!F12,"AADT Out of Range","AADT OK") | AB97: =if(' | AC97: Input | AD97: '!J52>' | AE97: ='Input Summary'!B10 -> 3SG MassDOT | AF97: '!F13,"AADT Out of Range","AADT OK")
V98: =V99&W99&X99&Y99&Z99 -> =if('Input'!K50>'3SG MassDOT'!F12,"AADT Out of Range","AADT OK") | AB98: =AB99&AC99&AD99&AE99&AF99 -> =if('Input'!K52>'3SG MassDOT'!F13,"AADT Out of Range","AADT OK")
V99: =if(' | W99: Input | X99: '!K50>' | Y99: ='Input Summary'!B10 -> 3SG MassDOT | Z99: '!F12,"AADT Out of Range","AADT OK") | AB99: =if(' | AC99: Input | AD99: '!K52>' | AE99: ='Input Summary'!B10 -> 3SG MassDOT | AF99: '!F13,"AADT Out of Range","AADT OK")
V100: =V101&W101&X101&Y101&Z101 -> =if('Input'!L50>'3SG MassDOT'!F12,"AADT Out of Range","AADT OK") | AB100: =AB101&AC101&AD101&AE101&AF101 -> =if('Input'!L52>'3SG MassDOT'!F13,"AADT Out of Range","AADT OK")
V101: =if(' | W101: Input | X101: '!L50>' | Y101: ='Input Summary'!B10 -> 3SG MassDOT | Z101: '!F12,"AADT Out of Range","AADT OK") | AB101: =if(' | AC101: Input | AD101: '!L52>' | AE101: ='Input Summary'!B10 -> 3SG MassDOT | AF101: '!F13,"AADT Out of Range","AADT OK")
V102: =V103&W103&X103&Y103&Z103 -> =if('Input'!M50>'3SG MassDOT'!F12,"AADT Out of Range","AADT OK") | AB102: =AB103&AC103&AD103&AE103&AF103 -> =if('Input'!M52>'3SG MassDOT'!F13,"AADT Out of Range","AADT OK")
V103: =if(' | W103: Input | X103: '!M50>' | Y103: ='Input Summary'!B10 -> 3SG MassDOT | Z103: '!F12,"AADT Out of Range","AADT OK") | AB103: =if(' | AC103: Input | AD103: '!M52>' | AE103: ='Input Summary'!B10 -> 3SG MassDOT | AF103: '!F13,"AADT Out of Range","AADT OK")
V104: =V105&W105&X105&Y105&Z105 -> =if('Input'!D55>'3SG MassDOT'!F12,"AADT Out of Range","AADT OK") | AB104: =AB105&AC105&AD105&AE105&AF105 -> =if('Input'!D57>'3SG MassDOT'!F13,"AADT Out of Range","AADT OK")
V105: =if(' | W105: Input | X105: '!D55>' | Y105: ='Input Summary'!B10 -> 3SG MassDOT | Z105: '!F12,"AADT Out of Range","AADT OK") | AB105: =if(' | AC105: Input | AD105: '!D57>' | AE105: ='Input Summary'!B10 -> 3SG MassDOT | AF105: '!F13,"AADT Out of Range","AADT OK")
A107: DO NOT MODIFY
A108: Crash Type, Severity | B108: Predicted Crash Frequency per Year (From Prediction Spreadsheet [Predicted Nb]) | E108: Year:
E109: 1 | F109: 2 | G109: 3 | H109: 4 | I109: 5 | J109: 6 | K109: 7 | L109: 8 | M109: 9 | N109: 10 | O109: Design Year
A110: MV, FI | B110: =$A$118&$B$118&"'!N71" -> ='Year '!N71 | E110: =$A$118&E109&"'!N71" -> ='Year 1'!N71 | F110: =$A$118&F109&"'!N71" -> ='Year 2'!N71 | G110: ='Year 3'!N71 | H110: ='Year 4'!N71 | I110: ='Year 5'!N71 | J110: ='Year 6'!N71 | K110: ='Year 7'!N71 | L110: ='Year 8'!N71 | M110: ='Year 9'!N71 | N110: ='Year 10'!N71 | O110: ="'"&O109&"'!N71" -> 'Design Year'!N71
A111: MV, PDO | B111: =$A$118&$B$118&"'!N73" -> ='Year '!N73 | E111: =$A$118&E109&"'!N73" -> ='Year 1'!N73 | F111: =$A$118&F109&"'!N73" -> ='Year 2'!N73 | G111: ='Year 3'!N73 | H111: ='Year 4'!N73 | I111: ='Year 5'!N73 | J111: ='Year 6'!N73 | K111: ='Year 7'!N73 | L111: ='Year 8'!N73 | M111: ='Year 9'!N73 | N111: ='Year 10'!N73 | O111: ="'"&O109&"'!N73" -> 'Design Year'!N73
A112: SV, FI | B112: =$A$118&$B$118&"'!N117" -> ='Year '!N117 | E112: =$A$118&E109&"'!N117" -> ='Year 1'!N117 | F112: =$A$118&F109&"'!N117" -> ='Year 2'!N117 | G112: ='Year 3'!N117 | H112: ='Year 4'!N117 | I112: ='Year 5'!N117 | J112: ='Year 6'!N117 | K112: ='Year 7'!N117 | L112: ='Year 8'!N117 | M112: ='Year 9'!N117 | N112: ='Year 10'!N117 | O112: ="'"&O109&"'!N117" -> 'Design Year'!N117
A113: SV, PDO | B113: =$A$118&$B$118&"'!N119" -> ='Year '!N119 | E113: =$A$118&E109&"'!N119" -> ='Year 1'!N119 | F113: =$A$118&F109&"'!N119" -> ='Year 2'!N119 | G113: ='Year 3'!N119 | H113: ='Year 4'!N119 | I113: ='Year 5'!N119 | J113: ='Year 6'!N119 | K113: ='Year 7'!N119 | L113: ='Year 8'!N119 | M113: ='Year 9'!N119 | N113: ='Year 10'!N119 | O113: ="'"&O109&"'!N119" -> 'Design Year'!N119
A114: Ped, FI | B114: =$A$118&$B$118&"'!M158" -> ='Year '!M158 | E114: =$A$118&E109&"'!M158" -> ='Year 1'!M158 | F114: ='Year 2'!M158 | G114: ='Year 3'!M158 | H114: ='Year 4'!M158 | I114: ='Year 5'!M158 | J114: ='Year 6'!M158 | K114: ='Year 7'!M158 | L114: ='Year 8'!M158 | M114: ='Year 9'!M158 | N114: ='Year 10'!M158 | O114: ="'"&O109&"'!M158" -> 'Design Year'!M158
A115: Ped, PDO | B115: 0 | E115: 0 | F115: 0 | G115: 0 | H115: 0 | I115: 0 | J115: 0 | K115: 0 | L115: 0 | M115: 0 | N115: 0 | O115: 0
A116: Bike, FI | B116: =$A$118&$B$118&"'!K169" -> ='Year '!K169 | E116: =$A$118&E109&"'!K169" -> ='Year 1'!K169 | F116: ='Year 2'!K169 | G116: ='Year 3'!K169 | H116: ='Year 4'!K169 | I116: ='Year 5'!K169 | J116: ='Year 6'!K169 | K116: ='Year 7'!K169 | L116: ='Year 8'!K169 | M116: ='Year 9'!K169 | N116: ='Year 10'!K169 | O116: ="'"&O109&"'!K169" -> 'Design Year'!K169
A117: Bike, PDO | B117: 0 | E117: 0 | F117: 0 | G117: 0 | H117: 0 | I117: 0 | J117: 0 | K117: 0 | L117: 0 | M117: 0 | N117: 0 | O117: 0
A118: ='Year
A120: DO NOT MODIFY - For Design Year Calc
A121: Crash Type, Severity | B121: Future Predicted Crash Frequency per Year (From Prediction Spreadsheet [Predicted Nb])
A122: MV, FI | B122: =$A$130&$B$130&"'!N71" -> ='Design Year'!N71
A123: MV, PDO | B123: =$A$130&$B$130&"'!N73" -> ='Design Year'!N73
A124: SV, FI | B124: =$A$130&$B$130&"'!N117" -> ='Design Year'!N117
A125: SV, PDO | B125: =$A$130&$B$130&"'!N119" -> ='Design Year'!N119
A126: Ped, FI | B126: =$A$130&$B$130&"'!M158" -> ='Design Year'!M158
A127: Ped, PDO | B127: 0
A128: Bike, FI | B128: =$A$130&$B$130&"'!K169" -> ='Design Year'!K169
A129: Bike, PDO | B129: 0
A130: ='Design Year | C130: N71
A135: CMF Calculations:
A136: Not Applicable
A137: Multiplicative
A138: Additive
A139: Dominant Effect
A140: Dominant Common Residuals
A143: Alternative 1
A144: Crash Type, Severity | B144: Multiplicative | C144: Additive Calc | D144: Additive < 0 Round | E144: Dominant Effect | F144: Dominant Common Residuals Step 1 | G144: Dominant Common Residuals Result
A145: MV, ALL | B145: =IF(AND(Input!B77="Multiplicative",Input!C77<>"",Input!E77<>""),IF(AND(Input!C77<1,Input!E77<1),"ERROR Check Input",Input!C77*Input!E77),"") ->  | C145: =IF(AND(Input!B77="Additive",Input!C77<>"",Input!E77<>""),1-((1-Input!C77)+(1-Input!E77)),"") ->  | D145: =IF(C145="","",IF(C145<=0,0,C145)) ->  | E145: =IF(AND(Input!B77="Dominant Effect",Input!C77<>"",Input!E77<>""),MIN(Input!C77,Input!E77),"") ->  | F145: =IF(AND(Input!B77="Dominant Common Residuals",Input!C77<>"",Input!E77<>""),MIN(Input!C77,Input!E77),"") ->  | G145: =IF(F145<>"",MIN(Input!C77,Input!E77,(Input!C77*Input!E77)^F145),"") -> 
A146: MV, FI | B146: =IF(AND(Input!B78="Multiplicative",Input!C78<>"",Input!E78<>""),IF(AND(Input!C78<1,Input!E78<1),"ERROR Check Input",Input!C78*Input!E78),"") ->  | C146: =IF(AND(Input!B78="Additive",Input!C78<>"",Input!E78<>""),1-((1-Input!C78)+(1-Input!E78)),"") ->  | D146: =IF(AND(Input!B78="Additive",Input!C78<>"",Input!E78<>""),1-((1-Input!C78)+(1-Input!E78)),"") ->  | E146: =IF(AND(Input!B78="Dominant Effect",Input!C78<>"",Input!E78<>""),MIN(Input!C78,Input!E78),"") ->  | F146: =IF(AND(Input!B78="Dominant Common Residuals",Input!C78<>"",Input!E78<>""),MIN(Input!C78,Input!E78),"") ->  | G146: =IF(F146<>"",MIN(Input!C78,Input!E78,(Input!C78*Input!E78)^F146),"") -> 
A147: SV, ALL | B147: =IF(AND(Input!B79="Multiplicative",Input!C79<>"",Input!E79<>""),IF(AND(Input!C79<1,Input!E79<1),"ERROR Check Input",Input!C79*Input!E79),"") ->  | C147: =IF(AND(Input!B79="Additive",Input!C79<>"",Input!E79<>""),1-((1-Input!C79)+(1-Input!E79)),"") ->  | D147: =IF(AND(Input!B79="Additive",Input!C79<>"",Input!E79<>""),1-((1-Input!C79)+(1-Input!E79)),"") ->  | E147: =IF(AND(Input!B79="Dominant Effect",Input!C79<>"",Input!E79<>""),MIN(Input!C79,Input!E79),"") ->  | F147: =IF(AND(Input!B79="Dominant Common Residuals",Input!C79<>"",Input!E79<>""),MIN(Input!C79,Input!E79),"") ->  | G147: =IF(F147<>"",MIN(Input!C79,Input!E79,(Input!C79*Input!E79)^F147),"") -> 
A148: SV, FI | B148: =IF(AND(Input!B80="Multiplicative",Input!C80<>"",Input!E80<>""),IF(AND(Input!C80<1,Input!E80<1),"ERROR Check Input",Input!C80*Input!E80),"") ->  | C148: =IF(AND(Input!B80="Additive",Input!C80<>"",Input!E80<>""),1-((1-Input!C80)+(1-Input!E80)),"") ->  | D148: =IF(AND(Input!B80="Additive",Input!C80<>"",Input!E80<>""),1-((1-Input!C80)+(1-Input!E80)),"") ->  | E148: =IF(AND(Input!B80="Dominant Effect",Input!C80<>"",Input!E80<>""),MIN(Input!C80,Input!E80),"") ->  | F148: =IF(AND(Input!B80="Dominant Common Residuals",Input!C80<>"",Input!E80<>""),MIN(Input!C80,Input!E80),"") ->  | G148: =IF(F148<>"",MIN(Input!C80,Input!E80,(Input!C80*Input!E80)^F148),"") -> 
A149: Ped, ALL | B149: =IF(AND(Input!B81="Multiplicative",Input!C81<>"",Input!E81<>""),IF(AND(Input!C81<1,Input!E81<1),"ERROR Check Input",Input!C81*Input!E81),"") ->  | C149: =IF(AND(Input!B81="Additive",Input!C81<>"",Input!E81<>""),1-((1-Input!C81)+(1-Input!E81)),"") ->  | D149: =IF(AND(Input!B81="Additive",Input!C81<>"",Input!E81<>""),1-((1-Input!C81)+(1-Input!E81)),"") ->  | E149: =IF(AND(Input!B81="Dominant Effect",Input!C81<>"",Input!E81<>""),MIN(Input!C81,Input!E81),"") ->  | F149: =IF(AND(Input!B81="Dominant Common Residuals",Input!C81<>"",Input!E81<>""),MIN(Input!C81,Input!E81),"") ->  | G149: =IF(F149<>"",MIN(Input!C81,Input!E81,(Input!C81*Input!E81)^F149),"") -> 
A150: Ped, FI | B150: =IF(AND(Input!B82="Multiplicative",Input!C82<>"",Input!E82<>""),IF(AND(Input!C82<1,Input!E82<1),"ERROR Check Input",Input!C82*Input!E82),"") ->  | C150: =IF(AND(Input!B82="Additive",Input!C82<>"",Input!E82<>""),1-((1-Input!C82)+(1-Input!E82)),"") ->  | D150: =IF(AND(Input!B82="Additive",Input!C82<>"",Input!E82<>""),1-((1-Input!C82)+(1-Input!E82)),"") ->  | E150: =IF(AND(Input!B82="Dominant Effect",Input!C82<>"",Input!E82<>""),MIN(Input!C82,Input!E82),"") ->  | F150: =IF(AND(Input!B82="Dominant Common Residuals",Input!C82<>"",Input!E82<>""),MIN(Input!C82,Input!E82),"") ->  | G150: =IF(F150<>"",MIN(Input!C82,Input!E82,(Input!C82*Input!E82)^F150),"") -> 
A151: Bike, ALL | B151: =IF(AND(Input!B83="Multiplicative",Input!C83<>"",Input!E83<>""),IF(AND(Input!C83<1,Input!E83<1),"ERROR Check Input",Input!C83*Input!E83),"") ->  | C151: =IF(AND(Input!B83="Additive",Input!C83<>"",Input!E83<>""),1-((1-Input!C83)+(1-Input!E83)),"") ->  | D151: =IF(AND(Input!B83="Additive",Input!C83<>"",Input!E83<>""),1-((1-Input!C83)+(1-Input!E83)),"") ->  | E151: =IF(AND(Input!B83="Dominant Effect",Input!C83<>"",Input!E83<>""),MIN(Input!C83,Input!E83),"") ->  | F151: =IF(AND(Input!B83="Dominant Common Residuals",Input!C83<>"",Input!E83<>""),MIN(Input!C83,Input!E83),"") ->  | G151: =IF(F151<>"",MIN(Input!C83,Input!E83,(Input!C83*Input!E83)^F151),"") -> 
A152: Bike, FI | B152: =IF(AND(Input!B84="Multiplicative",Input!C84<>"",Input!E84<>""),IF(AND(Input!C84<1,Input!E84<1),"ERROR Check Input",Input!C84*Input!E84),"") ->  | C152: =IF(AND(Input!B84="Additive",Input!C84<>"",Input!E84<>""),1-((1-Input!C84)+(1-Input!E84)),"") ->  | D152: =IF(AND(Input!B84="Additive",Input!C84<>"",Input!E84<>""),1-((1-Input!C84)+(1-Input!E84)),"") ->  | E152: =IF(AND(Input!B84="Dominant Effect",Input!C84<>"",Input!E84<>""),MIN(Input!C84,Input!E84),"") ->  | F152: =IF(AND(Input!B84="Dominant Common Residuals",Input!C84<>"",Input!E84<>""),MIN(Input!C84,Input!E84),"") ->  | G152: =IF(F152<>"",MIN(Input!C84,Input!E84,(Input!C84*Input!E84)^F152),"") -> 
A155: Alternative 2
A156: Crash Type, Severity | B156: Multiplicative | C156: Additive Calc | D156: Additive < 0 Round | E156: Dominant Effect | F156: Dominant Common Residuals Step 1 | G156: Dominant Common Residuals Result
A157: MV, ALL | B157: =IF(AND(Input!B89="Multiplicative",Input!C89<>"",Input!E89<>""),IF(AND(Input!C89<1,Input!E89<1),"ERROR Check Input",Input!C89*Input!E89),"") ->  | C157: =IF(AND(Input!B89="Additive",Input!C89<>"",Input!E89<>""),1-((1-Input!C89)+(1-Input!E89)),"") ->  | D157: =IF(C157="","",IF(C157<=0,0,C157)) ->  | E157: =IF(AND(Input!B89="Dominant Effect",Input!C89<>"",Input!E89<>""),MIN(Input!C89,Input!E89),"") ->  | F157: =IF(AND(Input!B89="Dominant Common Residuals",Input!C89<>"",Input!E89<>""),MIN(Input!C89,Input!E89),"") ->  | G157: =IF(F157<>"",MIN(Input!C89,Input!E89,(Input!C89*Input!E89)^F157),"") -> 
A158: MV, FI | B158: =IF(AND(Input!B90="Multiplicative",Input!C90<>"",Input!E90<>""),IF(AND(Input!C90<1,Input!E90<1),"ERROR Check Input",Input!C90*Input!E90),"") ->  | C158: =IF(AND(Input!B90="Additive",Input!C90<>"",Input!E90<>""),1-((1-Input!C90)+(1-Input!E90)),"") ->  | D158: =IF(AND(Input!B90="Additive",Input!C90<>"",Input!E90<>""),1-((1-Input!C90)+(1-Input!E90)),"") ->  | E158: =IF(AND(Input!B90="Dominant Effect",Input!C90<>"",Input!E90<>""),MIN(Input!C90,Input!E90),"") ->  | F158: =IF(AND(Input!B90="Dominant Common Residuals",Input!C90<>"",Input!E90<>""),MIN(Input!C90,Input!E90),"") ->  | G158: =IF(F158<>"",MIN(Input!C90,Input!E90,(Input!C90*Input!E90)^F158),"") -> 
A159: SV, ALL | B159: =IF(AND(Input!B91="Multiplicative",Input!C91<>"",Input!E91<>""),IF(AND(Input!C91<1,Input!E91<1),"ERROR Check Input",Input!C91*Input!E91),"") ->  | C159: =IF(AND(Input!B91="Additive",Input!C91<>"",Input!E91<>""),1-((1-Input!C91)+(1-Input!E91)),"") ->  | D159: =IF(AND(Input!B91="Additive",Input!C91<>"",Input!E91<>""),1-((1-Input!C91)+(1-Input!E91)),"") ->  | E159: =IF(AND(Input!B91="Dominant Effect",Input!C91<>"",Input!E91<>""),MIN(Input!C91,Input!E91),"") ->  | F159: =IF(AND(Input!B91="Dominant Common Residuals",Input!C91<>"",Input!E91<>""),MIN(Input!C91,Input!E91),"") ->  | G159: =IF(F159<>"",MIN(Input!C91,Input!E91,(Input!C91*Input!E91)^F159),"") -> 
A160: SV, FI | B160: =IF(AND(Input!B92="Multiplicative",Input!C92<>"",Input!E92<>""),IF(AND(Input!C92<1,Input!E92<1),"ERROR Check Input",Input!C92*Input!E92),"") ->  | C160: =IF(AND(Input!B92="Additive",Input!C92<>"",Input!E92<>""),1-((1-Input!C92)+(1-Input!E92)),"") ->  | D160: =IF(AND(Input!B92="Additive",Input!C92<>"",Input!E92<>""),1-((1-Input!C92)+(1-Input!E92)),"") ->  | E160: =IF(AND(Input!B92="Dominant Effect",Input!C92<>"",Input!E92<>""),MIN(Input!C92,Input!E92),"") ->  | F160: =IF(AND(Input!B92="Dominant Common Residuals",Input!C92<>"",Input!E92<>""),MIN(Input!C92,Input!E92),"") ->  | G160: =IF(F160<>"",MIN(Input!C92,Input!E92,(Input!C92*Input!E92)^F160),"") -> 
A161: Ped, ALL | B161: =IF(AND(Input!B93="Multiplicative",Input!C93<>"",Input!E93<>""),IF(AND(Input!C93<1,Input!E93<1),"ERROR Check Input",Input!C93*Input!E93),"") ->  | C161: =IF(AND(Input!B93="Additive",Input!C93<>"",Input!E93<>""),1-((1-Input!C93)+(1-Input!E93)),"") ->  | D161: =IF(AND(Input!B93="Additive",Input!C93<>"",Input!E93<>""),1-((1-Input!C93)+(1-Input!E93)),"") ->  | E161: =IF(AND(Input!B93="Dominant Effect",Input!C93<>"",Input!E93<>""),MIN(Input!C93,Input!E93),"") ->  | F161: =IF(AND(Input!B93="Dominant Common Residuals",Input!C93<>"",Input!E93<>""),MIN(Input!C93,Input!E93),"") ->  | G161: =IF(F161<>"",MIN(Input!C93,Input!E93,(Input!C93*Input!E93)^F161),"") -> 
A162: Ped, FI | B162: =IF(AND(Input!B94="Multiplicative",Input!C94<>"",Input!E94<>""),IF(AND(Input!C94<1,Input!E94<1),"ERROR Check Input",Input!C94*Input!E94),"") ->  | C162: =IF(AND(Input!B94="Additive",Input!C94<>"",Input!E94<>""),1-((1-Input!C94)+(1-Input!E94)),"") ->  | D162: =IF(AND(Input!B94="Additive",Input!C94<>"",Input!E94<>""),1-((1-Input!C94)+(1-Input!E94)),"") ->  | E162: =IF(AND(Input!B94="Dominant Effect",Input!C94<>"",Input!E94<>""),MIN(Input!C94,Input!E94),"") ->  | F162: =IF(AND(Input!B94="Dominant Common Residuals",Input!C94<>"",Input!E94<>""),MIN(Input!C94,Input!E94),"") ->  | G162: =IF(F162<>"",MIN(Input!C94,Input!E94,(Input!C94*Input!E94)^F162),"") -> 
A163: Bike, ALL | B163: =IF(AND(Input!B95="Multiplicative",Input!C95<>"",Input!E95<>""),IF(AND(Input!C95<1,Input!E95<1),"ERROR Check Input",Input!C95*Input!E95),"") ->  | C163: =IF(AND(Input!B95="Additive",Input!C95<>"",Input!E95<>""),1-((1-Input!C95)+(1-Input!E95)),"") ->  | D163: =IF(AND(Input!B95="Additive",Input!C95<>"",Input!E95<>""),1-((1-Input!C95)+(1-Input!E95)),"") ->  | E163: =IF(AND(Input!B95="Dominant Effect",Input!C95<>"",Input!E95<>""),MIN(Input!C95,Input!E95),"") ->  | F163: =IF(AND(Input!B95="Dominant Common Residuals",Input!C95<>"",Input!E95<>""),MIN(Input!C95,Input!E95),"") ->  | G163: =IF(F163<>"",MIN(Input!C95,Input!E95,(Input!C95*Input!E95)^F163),"") -> 
A164: Bike, FI | B164: =IF(AND(Input!B96="Multiplicative",Input!C96<>"",Input!E96<>""),IF(AND(Input!C96<1,Input!E96<1),"ERROR Check Input",Input!C96*Input!E96),"") ->  | C164: =IF(AND(Input!B96="Additive",Input!C96<>"",Input!E96<>""),1-((1-Input!C96)+(1-Input!E96)),"") ->  | D164: =IF(AND(Input!B96="Additive",Input!C96<>"",Input!E96<>""),1-((1-Input!C96)+(1-Input!E96)),"") ->  | E164: =IF(AND(Input!B96="Dominant Effect",Input!C96<>"",Input!E96<>""),MIN(Input!C96,Input!E96),"") ->  | F164: =IF(AND(Input!B96="Dominant Common Residuals",Input!C96<>"",Input!E96<>""),MIN(Input!C96,Input!E96),"") ->  | G164: =IF(F164<>"",MIN(Input!C96,Input!E96,(Input!C96*Input!E96)^F164),"") -> 
A167: Alternative 3
A168: Crash Type, Severity | B168: Multiplicative | C168: Additive Calc | D168: Additive < 0 Round | E168: Dominant Effect | F168: Dominant Common Residuals Step 1 | G168: Dominant Common Residuals Result
A169: MV, ALL | B169: =IF(AND(Input!B101="Multiplicative",Input!C101<>"",Input!E101<>""),IF(AND(Input!C101<1,Input!E101<1),"ERROR Check Input",Input!C101*Input!E101),"") ->  | C169: =IF(AND(Input!B101="Additive",Input!C101<>"",Input!E101<>""),1-((1-Input!C101)+(1-Input!E101)),"") ->  | D169: =IF(C169="","",IF(C169<=0,0,C169)) ->  | E169: =IF(AND(Input!B101="Dominant Effect",Input!C101<>"",Input!E101<>""),MIN(Input!C101,Input!E101),"") ->  | F169: =IF(AND(Input!B101="Dominant Common Residuals",Input!C101<>"",Input!E101<>""),MIN(Input!C101,Input!E101),"") ->  | G169: =IF(F169<>"",MIN(Input!C101,Input!E101,(Input!C101*Input!E101)^F169),"") -> 
A170: MV, FI | B170: =IF(AND(Input!B102="Multiplicative",Input!C102<>"",Input!E102<>""),IF(AND(Input!C102<1,Input!E102<1),"ERROR Check Input",Input!C102*Input!E102),"") ->  | C170: =IF(AND(Input!B102="Additive",Input!C102<>"",Input!E102<>""),1-((1-Input!C102)+(1-Input!E102)),"") ->  | D170: =IF(AND(Input!B102="Additive",Input!C102<>"",Input!E102<>""),1-((1-Input!C102)+(1-Input!E102)),"") ->  | E170: =IF(AND(Input!B102="Dominant Effect",Input!C102<>"",Input!E102<>""),MIN(Input!C102,Input!E102),"") ->  | F170: =IF(AND(Input!B102="Dominant Common Residuals",Input!C102<>"",Input!E102<>""),MIN(Input!C102,Input!E102),"") ->  | G170: =IF(F170<>"",MIN(Input!C102,Input!E102,(Input!C102*Input!E102)^F170),"") -> 
A171: SV, ALL | B171: =IF(AND(Input!B103="Multiplicative",Input!C103<>"",Input!E103<>""),IF(AND(Input!C103<1,Input!E103<1),"ERROR Check Input",Input!C103*Input!E103),"") ->  | C171: =IF(AND(Input!B103="Additive",Input!C103<>"",Input!E103<>""),1-((1-Input!C103)+(1-Input!E103)),"") ->  | D171: =IF(AND(Input!B103="Additive",Input!C103<>"",Input!E103<>""),1-((1-Input!C103)+(1-Input!E103)),"") ->  | E171: =IF(AND(Input!B103="Dominant Effect",Input!C103<>"",Input!E103<>""),MIN(Input!C103,Input!E103),"") ->  | F171: =IF(AND(Input!B103="Dominant Common Residuals",Input!C103<>"",Input!E103<>""),MIN(Input!C103,Input!E103),"") ->  | G171: =IF(F171<>"",MIN(Input!C103,Input!E103,(Input!C103*Input!E103)^F171),"") -> 
A172: SV, FI | B172: =IF(AND(Input!B104="Multiplicative",Input!C104<>"",Input!E104<>""),IF(AND(Input!C104<1,Input!E104<1),"ERROR Check Input",Input!C104*Input!E104),"") ->  | C172: =IF(AND(Input!B104="Additive",Input!C104<>"",Input!E104<>""),1-((1-Input!C104)+(1-Input!E104)),"") ->  | D172: =IF(AND(Input!B104="Additive",Input!C104<>"",Input!E104<>""),1-((1-Input!C104)+(1-Input!E104)),"") ->  | E172: =IF(AND(Input!B104="Dominant Effect",Input!C104<>"",Input!E104<>""),MIN(Input!C104,Input!E104),"") ->  | F172: =IF(AND(Input!B104="Dominant Common Residuals",Input!C104<>"",Input!E104<>""),MIN(Input!C104,Input!E104),"") ->  | G172: =IF(F172<>"",MIN(Input!C104,Input!E104,(Input!C104*Input!E104)^F172),"") -> 
A173: Ped, ALL | B173: =IF(AND(Input!B105="Multiplicative",Input!C105<>"",Input!E105<>""),IF(AND(Input!C105<1,Input!E105<1),"ERROR Check Input",Input!C105*Input!E105),"") ->  | C173: =IF(AND(Input!B105="Additive",Input!C105<>"",Input!E105<>""),1-((1-Input!C105)+(1-Input!E105)),"") ->  | D173: =IF(AND(Input!B105="Additive",Input!C105<>"",Input!E105<>""),1-((1-Input!C105)+(1-Input!E105)),"") ->  | E173: =IF(AND(Input!B105="Dominant Effect",Input!C105<>"",Input!E105<>""),MIN(Input!C105,Input!E105),"") ->  | F173: =IF(AND(Input!B105="Dominant Common Residuals",Input!C105<>"",Input!E105<>""),MIN(Input!C105,Input!E105),"") ->  | G173: =IF(F173<>"",MIN(Input!C105,Input!E105,(Input!C105*Input!E105)^F173),"") -> 
A174: Ped, FI | B174: =IF(AND(Input!B106="Multiplicative",Input!C106<>"",Input!E106<>""),IF(AND(Input!C106<1,Input!E106<1),"ERROR Check Input",Input!C106*Input!E106),"") ->  | C174: =IF(AND(Input!B106="Additive",Input!C106<>"",Input!E106<>""),1-((1-Input!C106)+(1-Input!E106)),"") ->  | D174: =IF(AND(Input!B106="Additive",Input!C106<>"",Input!E106<>""),1-((1-Input!C106)+(1-Input!E106)),"") ->  | E174: =IF(AND(Input!B106="Dominant Effect",Input!C106<>"",Input!E106<>""),MIN(Input!C106,Input!E106),"") ->  | F174: =IF(AND(Input!B106="Dominant Common Residuals",Input!C106<>"",Input!E106<>""),MIN(Input!C106,Input!E106),"") ->  | G174: =IF(F174<>"",MIN(Input!C106,Input!E106,(Input!C106*Input!E106)^F174),"") -> 
A175: Bike, ALL | B175: =IF(AND(Input!B107="Multiplicative",Input!C107<>"",Input!E107<>""),IF(AND(Input!C107<1,Input!E107<1),"ERROR Check Input",Input!C107*Input!E107),"") ->  | C175: =IF(AND(Input!B107="Additive",Input!C107<>"",Input!E107<>""),1-((1-Input!C107)+(1-Input!E107)),"") ->  | D175: =IF(AND(Input!B107="Additive",Input!C107<>"",Input!E107<>""),1-((1-Input!C107)+(1-Input!E107)),"") ->  | E175: =IF(AND(Input!B107="Dominant Effect",Input!C107<>"",Input!E107<>""),MIN(Input!C107,Input!E107),"") ->  | F175: =IF(AND(Input!B107="Dominant Common Residuals",Input!C107<>"",Input!E107<>""),MIN(Input!C107,Input!E107),"") ->  | G175: =IF(F175<>"",MIN(Input!C107,Input!E107,(Input!C107*Input!E107)^F175),"") -> 
A176: Bike, FI | B176: =IF(AND(Input!B108="Multiplicative",Input!C108<>"",Input!E108<>""),IF(AND(Input!C108<1,Input!E108<1),"ERROR Check Input",Input!C108*Input!E108),"") ->  | C176: =IF(AND(Input!B108="Additive",Input!C108<>"",Input!E108<>""),1-((1-Input!C108)+(1-Input!E108)),"") ->  | D176: =IF(AND(Input!B108="Additive",Input!C108<>"",Input!E108<>""),1-((1-Input!C108)+(1-Input!E108)),"") ->  | E176: =IF(AND(Input!B108="Dominant Effect",Input!C108<>"",Input!E108<>""),MIN(Input!C108,Input!E108),"") ->  | F176: =IF(AND(Input!B108="Dominant Common Residuals",Input!C108<>"",Input!E108<>""),MIN(Input!C108,Input!E108),"") ->  | G176: =IF(F176<>"",MIN(Input!C108,Input!E108,(Input!C108*Input!E108)^F176),"") -> 
A179: Alternative 4
A180: Crash Type, Severity | B180: Multiplicative | C180: Additive Calc | D180: Additive < 0 Round | E180: Dominant Effect | F180: Dominant Common Residuals Step 1 | G180: Dominant Common Residuals Result
A181: MV, ALL | B181: =IF(AND(Input!B113="Multiplicative",Input!C113<>"",Input!E113<>""),IF(AND(Input!C113<1,Input!E113<1),"ERROR Check Input",Input!C113*Input!E113),"") ->  | C181: =IF(AND(Input!B113="Additive",Input!C113<>"",Input!E113<>""),1-((1-Input!C113)+(1-Input!E113)),"") ->  | D181: =IF(C181="","",IF(C181<=0,0,C181)) ->  | E181: =IF(AND(Input!B113="Dominant Effect",Input!C113<>"",Input!E113<>""),MIN(Input!C113,Input!E113),"") ->  | F181: =IF(AND(Input!B113="Dominant Common Residuals",Input!C113<>"",Input!E113<>""),MIN(Input!C113,Input!E113),"") ->  | G181: =IF(F181<>"",MIN(Input!C113,Input!E113,(Input!C113*Input!E113)^F181),"") -> 
A182: MV, FI | B182: =IF(AND(Input!B114="Multiplicative",Input!C114<>"",Input!E114<>""),IF(AND(Input!C114<1,Input!E114<1),"ERROR Check Input",Input!C114*Input!E114),"") ->  | C182: =IF(AND(Input!B114="Additive",Input!C114<>"",Input!E114<>""),1-((1-Input!C114)+(1-Input!E114)),"") ->  | D182: =IF(AND(Input!B114="Additive",Input!C114<>"",Input!E114<>""),1-((1-Input!C114)+(1-Input!E114)),"") ->  | E182: =IF(AND(Input!B114="Dominant Effect",Input!C114<>"",Input!E114<>""),MIN(Input!C114,Input!E114),"") ->  | F182: =IF(AND(Input!B114="Dominant Common Residuals",Input!C114<>"",Input!E114<>""),MIN(Input!C114,Input!E114),"") ->  | G182: =IF(F182<>"",MIN(Input!C114,Input!E114,(Input!C114*Input!E114)^F182),"") -> 
A183: SV, ALL | B183: =IF(AND(Input!B115="Multiplicative",Input!C115<>"",Input!E115<>""),IF(AND(Input!C115<1,Input!E115<1),"ERROR Check Input",Input!C115*Input!E115),"") ->  | C183: =IF(AND(Input!B115="Additive",Input!C115<>"",Input!E115<>""),1-((1-Input!C115)+(1-Input!E115)),"") ->  | D183: =IF(AND(Input!B115="Additive",Input!C115<>"",Input!E115<>""),1-((1-Input!C115)+(1-Input!E115)),"") ->  | E183: =IF(AND(Input!B115="Dominant Effect",Input!C115<>"",Input!E115<>""),MIN(Input!C115,Input!E115),"") ->  | F183: =IF(AND(Input!B115="Dominant Common Residuals",Input!C115<>"",Input!E115<>""),MIN(Input!C115,Input!E115),"") ->  | G183: =IF(F183<>"",MIN(Input!C115,Input!E115,(Input!C115*Input!E115)^F183),"") -> 
A184: SV, FI | B184: =IF(AND(Input!B116="Multiplicative",Input!C116<>"",Input!E116<>""),IF(AND(Input!C116<1,Input!E116<1),"ERROR Check Input",Input!C116*Input!E116),"") ->  | C184: =IF(AND(Input!B116="Additive",Input!C116<>"",Input!E116<>""),1-((1-Input!C116)+(1-Input!E116)),"") ->  | D184: =IF(AND(Input!B116="Additive",Input!C116<>"",Input!E116<>""),1-((1-Input!C116)+(1-Input!E116)),"") ->  | E184: =IF(AND(Input!B116="Dominant Effect",Input!C116<>"",Input!E116<>""),MIN(Input!C116,Input!E116),"") ->  | F184: =IF(AND(Input!B116="Dominant Common Residuals",Input!C116<>"",Input!E116<>""),MIN(Input!C116,Input!E116),"") ->  | G184: =IF(F184<>"",MIN(Input!C116,Input!E116,(Input!C116*Input!E116)^F184),"") -> 
A185: Ped, ALL | B185: =IF(AND(Input!B117="Multiplicative",Input!C117<>"",Input!E117<>""),IF(AND(Input!C117<1,Input!E117<1),"ERROR Check Input",Input!C117*Input!E117),"") ->  | C185: =IF(AND(Input!B117="Additive",Input!C117<>"",Input!E117<>""),1-((1-Input!C117)+(1-Input!E117)),"") ->  | D185: =IF(AND(Input!B117="Additive",Input!C117<>"",Input!E117<>""),1-((1-Input!C117)+(1-Input!E117)),"") ->  | E185: =IF(AND(Input!B117="Dominant Effect",Input!C117<>"",Input!E117<>""),MIN(Input!C117,Input!E117),"") ->  | F185: =IF(AND(Input!B117="Dominant Common Residuals",Input!C117<>"",Input!E117<>""),MIN(Input!C117,Input!E117),"") ->  | G185: =IF(F185<>"",MIN(Input!C117,Input!E117,(Input!C117*Input!E117)^F185),"") -> 
A186: Ped, FI | B186: =IF(AND(Input!B118="Multiplicative",Input!C118<>"",Input!E118<>""),IF(AND(Input!C118<1,Input!E118<1),"ERROR Check Input",Input!C118*Input!E118),"") ->  | C186: =IF(AND(Input!B118="Additive",Input!C118<>"",Input!E118<>""),1-((1-Input!C118)+(1-Input!E118)),"") ->  | D186: =IF(AND(Input!B118="Additive",Input!C118<>"",Input!E118<>""),1-((1-Input!C118)+(1-Input!E118)),"") ->  | E186: =IF(AND(Input!B118="Dominant Effect",Input!C118<>"",Input!E118<>""),MIN(Input!C118,Input!E118),"") ->  | F186: =IF(AND(Input!B118="Dominant Common Residuals",Input!C118<>"",Input!E118<>""),MIN(Input!C118,Input!E118),"") ->  | G186: =IF(F186<>"",MIN(Input!C118,Input!E118,(Input!C118*Input!E118)^F186),"") -> 
A187: Bike, ALL | B187: =IF(AND(Input!B119="Multiplicative",Input!C119<>"",Input!E119<>""),IF(AND(Input!C119<1,Input!E119<1),"ERROR Check Input",Input!C119*Input!E119),"") ->  | C187: =IF(AND(Input!B119="Additive",Input!C119<>"",Input!E119<>""),1-((1-Input!C119)+(1-Input!E119)),"") ->  | D187: =IF(AND(Input!B119="Additive",Input!C119<>"",Input!E119<>""),1-((1-Input!C119)+(1-Input!E119)),"") ->  | E187: =IF(AND(Input!B119="Dominant Effect",Input!C119<>"",Input!E119<>""),MIN(Input!C119,Input!E119),"") ->  | F187: =IF(AND(Input!B119="Dominant Common Residuals",Input!C119<>"",Input!E119<>""),MIN(Input!C119,Input!E119),"") ->  | G187: =IF(F187<>"",MIN(Input!C119,Input!E119,(Input!C119*Input!E119)^F187),"") -> 
A188: Bike, FI | B188: =IF(AND(Input!B120="Multiplicative",Input!C120<>"",Input!E120<>""),IF(AND(Input!C120<1,Input!E120<1),"ERROR Check Input",Input!C120*Input!E120),"") ->  | C188: =IF(AND(Input!B120="Additive",Input!C120<>"",Input!E120<>""),1-((1-Input!C120)+(1-Input!E120)),"") ->  | D188: =IF(AND(Input!B120="Additive",Input!C120<>"",Input!E120<>""),1-((1-Input!C120)+(1-Input!E120)),"") ->  | E188: =IF(AND(Input!B120="Dominant Effect",Input!C120<>"",Input!E120<>""),MIN(Input!C120,Input!E120),"") ->  | F188: =IF(AND(Input!B120="Dominant Common Residuals",Input!C120<>"",Input!E120<>""),MIN(Input!C120,Input!E120),"") ->  | G188: =IF(F188<>"",MIN(Input!C120,Input!E120,(Input!C120*Input!E120)^F188),"") -> 
